{"text_format":"1","workbook":"xlsx","n_sheets":6,"sheets":["Settings","1-1-1","1-1-2","1-1-3","Base","Monster"],"not_rendered":{"charts":0,"images":13,"macros":1,"external_links":1,"defined_names":87,"comments":0,"pivot_tables":0},"unopened":[],"bounds":{"document_bytes":16777216,"sheet_cells":100000,"rows_first":2000,"rows_last":500,"rows_between":2000,"halvings":0,"cell_chars":16384,"cell_head_chars":4096},"cells_cut":0,"cells_raw":0,"read":"whole","date_system":"1900"}

{"sheet":"Settings","index":0,"n_rows":175,"n_cols":7,"rows_kept":175,"cut":false,"hidden":false,"merged":[[174,1,174,6],[164,1,164,2],[171,1,171,6],[154,1,154,2],[125,1,125,2],[120,1,120,2],[134,1,134,2],[138,1,138,2],[142,1,142,2],[147,1,147,2]]}
[]
[null,"Ｌａｙｅｒ"]
[null,"ID","Name"]
[null,"Map","Map only"]
[null,"Treasure","Treasure box"]
[null,"Foe","F.O.E"]
[null,"Gimmick","Gimmick"]
[null,"Event","Event etc"]
[]
[]
[]
[]
[]
[]
[null,"Icon"]
[null,"ID","Name","Symbol","Draw border","Always display","SVG"]
[null,"door","Door","DOOR",1,1,"<path d=\"M0.5,16.5 l5,0 l0,-12 l6,0 l0,12 l5,0 l0,-16 l-16,0 l0,16\" stroke=\"none\" fill=\"#9cefe7\" />\n<line x1=\"6\" y1=\"4.5\" x2=\"11\" y2=\"4.5\" stroke=\"#0b270e\" stroke-width=\"1\" />\n<rect x=\"3.5\" y=\"3.5\" width=\"3\" height=\"12.5\" stroke=\"none\" fill=\"#005a51\" />\n<rect x=\"10.5\" y=\"3.5\" width=\"3\" height=\"12.5\" stroke=\"none\" fill=\"#005a51\" />\n<path d=\"M3.5,16.5 l0,-13 l10,0 l0,13\" stroke=\"#3a948b\" stroke-width=\"1\" fill=\"none\" />\n<path d=\"M5.5,16.5 l-5,0 l0,-16 l16,0 l0,16 l-5,0\" stroke=\"#0b270e\" stroke-width=\"1\" fill=\"none\" />"]
[null,"up","Up stairs","UP",1,1,"<rect x=\"0.5\" y=\"0.5\" width=\"6\" height=\"10\" stroke=\"none\" fill=\"#9cefe7\" />\n<rect x=\"5.5\" y=\"2.5\" width=\"6\" height=\"10\" stroke=\"none\" fill=\"#9cefe7\" />\n<rect x=\"10.5\" y=\"4.5\" width=\"6\" height=\"10\" stroke=\"none\" fill=\"#9cefe7\" />\n<path d=\"M0.5,10.5 l5,0 l0,2 l6,0 l0,2 l5,0 l-12,0 l0,-2 l-4,0 l0,-2\" stroke=\"#052812\" stroke-width=\"1\" fill=\"#052812\" />\n<line x1=\"5.5\" y1=\"2.5\" x2=\"5.5\" y2=\"12.5\" stroke=\"#3c938a\" stroke-width=\"1\" />\n<line x1=\"11.5\" y1=\"4.5\" x2=\"11.5\" y2=\"14.5\" stroke=\"#3c938a\" stroke-width=\"1\" />\n<path d=\"M5.5,0.5 l0,2 l6,0 l0,2 l5,0\" stroke=\"#052812\" stroke-width=\"1\" fill=\"none\" />"]
[null,"down","Down stairs","DWN",1,1,"<path d=\"M2.5,2.5 l0,6 l3,0 l0,-4 l4,0 l0,-2 l-7,0\" stroke=\"#002b37\" stroke-width=\"1\" fill=\"none\" />\n<rect x=\"2.5\" y=\"9.5\" width=\"4\" height=\"5\" stroke=\"#3d938a\" stroke-width=\"1\" fill=\"#9cefe7\" />\n<rect x=\"6.5\" y=\"5.5\" width=\"4\" height=\"9\" stroke=\"#3d938a\" stroke-width=\"1\" fill=\"#9cefe7\" />\n<rect x=\"10.5\" y=\"2.5\" width=\"4\" height=\"12\" stroke=\"#3d938a\" stroke-width=\"1\" fill=\"#9cefe7\" />\n<rect x=\"2.5\" y=\"2.5\" width=\"12\" height=\"12\" stroke=\"#042a1d\" stroke-width=\"1\" fill=\"none\" />"]
[null,"close","Closed Door","CDR",1,1,"<rect x=\"0.5\" y=\"0.5\" width=\"16\" height=\"16\" fill=\"#99efe6\" />\n<rect x=\"3.5\" y=\"4.5\" width=\"4\" height=\"12\" stroke=\"#39938a\" stroke-width=\"1\" fill=\"#99efe6\" />\n<rect x=\"9.5\" y=\"4.5\" width=\"4\" height=\"12\" stroke=\"#39938a\" stroke-width=\"1\" fill=\"#99efe6\" />\n<line x1=\"8.5\" y1=\"4\" x2=\"8.5\" y2=\"16\" stroke=\"#00322a\" stroke-width=\"1\" />\n<path d=\"M3.5,16.5 l0,-13 l10,0 l0,13\" stroke=\"#005a51\" stroke-width=\"1\" fill=\"none\" />\n<rect x=\"0.5\" y=\"0.5\" width=\"16\" height=\"16\" stroke=\"#082811\" stroke-width=\"1\" fill=\"none\" />"]
[null,"note","Note","NOTE",0,0,"<path d=\"M1,1 l0,7 l7,-7 l-7,0\" fill=\"#ff1a31\" />"]
[null,"treasure","Treasure Box","TR",1,1,"<linearGradient id=\"treasure-g1\" x1=\"0\" y1=\"0\" x2=\"0\" y2=\"100%\">\n    <stop offset=\"0.0\" stop-color=\"#5a2400\"/>\n    <stop offset=\"1.0\" stop-color=\"#eb8e3e\"/>\n</linearGradient>\n<path d=\"M0.5,5 l2,2 l-2,2 l16,0 l-2,-2 l2,-2 l-16,0\" fill=\"#3f1c0c\" />\n<path d=\"M0.5,5 q0,-3 3,-5 l10,0 q3,2 3,5 l-16,0\" stroke=\"#3f1c0c\" stroke-width=\"1\" fill=\"url(#treasure-g1)\" />\n<rect x=\"1.5\" y=\"4\" width=\"14\" height=\"1\" fill=\"#e6d780\" />\n<rect x=\"6.5\" y=\"3\" width=\"4\" height=\"2\" stroke=\"#e6d780\" fill=\"#3f1c0c\" />\n<rect x=\"0.5\" y=\"9\" rx=\"1\" ry=\"1\" width=\"16\" height=\"7\" stroke=\"#3f1c0c\" stroke-width=\"1\" fill=\"#e6d780\" />\n<rect x=\"1.5\" y=\"10\" width=\"5\" height=\"5\" stroke=\"#e6d780\" stroke-width=\"1\" fill=\"#3f1c0c\" />\n<rect x=\"6.5\" y=\"10\" width=\"6\" height=\"5\" stroke=\"#e6d780\" stroke-width=\"1\" fill=\"#3f1c0c\" />\n<rect x=\"10.5\" y=\"10\" width=\"5\" height=\"5\" stroke=\"#e6d780\" stroke-width=\"1\" fill=\"#3f1c0c\" />\n<rect x=\"7.5\" y=\"11\" width=\"2\" height=\"2\" stroke=\"none\" fill=\"#e6d780\" />"]
[null,"exclamation","Exclamation","!",0,0,"<rect x=\"1.5\" y=\"1.5\" rx=\"2\" ry=\"2\" width=\"14\" height=\"14\" stroke=\"#251b00\" stroke-width=\"1\" fill=\"#fcffa1\" />\n<text x=\"2.5\" y=\"13\" font-size=\"12\" stroke=\"#075045\" stroke-width=\"1\" fill=\"#075045\">！</text>"]
[null,"question","Question","?",0,0,"<rect x=\"1.5\" y=\"1.5\" rx=\"2\" ry=\"2\" width=\"14\" height=\"14\" stroke=\"#251b00\" stroke-width=\"1\" fill=\"#fcffa1\" />\n<text x=\"2.5\" y=\"13\" font-size=\"12\" stroke=\"#075045\" stroke-width=\"1\" fill=\"#075045\">？</text>"]
[null,"foe-up","F.O.E(up)","Fu",0,0,"<radialGradient id=\"foe-up-g1\" gradientUnits=\"userSpaceOnUse\" cx=\"6\" cy=\"6\" fx=\"6\" fy=\"6\" r=\"7.5\">\n    <stop offset=\"0%\" stop-color=\"#f8f0f8\"/>\n    <stop offset=\"50%\" stop-color=\"#a878f8\"/>\n</radialGradient>\n<circle cx=\"8.5\" cy=\"8.5\" r=\"7.5\" stroke=\"#281898\" stroke-width=\"1\" fill=\"url(#foe-up-g1)\" />\n<path d=\"M8.5,3.5 l-5,8 l10,0\" fill=\"#281898\" />"]
[null,"foe-down","F.O.E(down)","Fd",0,0,"<radialGradient id=\"foe-down-g1\" gradientUnits=\"userSpaceOnUse\" cx=\"10\" cy=\"10\" fx=\"10\" fy=\"10\" r=\"7.5\">\n    <stop offset=\"0%\" stop-color=\"#f8f0f8\"/>\n    <stop offset=\"50%\" stop-color=\"#a878f8\"/>\n</radialGradient>\n<circle cx=\"8.5\" cy=\"8.5\" r=\"7.5\" stroke=\"#281898\" stroke-width=\"1\" fill=\"url(#foe-down-g1)\" />\n<path d=\"M8.5,13.5 l5,-8 l-10,0\" fill=\"#281898\" />"]
[null,"foe-left","F.O.E(left)","Fl",0,0,"<radialGradient id=\"foe-left-g1\" gradientUnits=\"userSpaceOnUse\" cx=\"6\" cy=\"10\" fx=\"6\" fy=\"10\" r=\"7.5\">\n    <stop offset=\"0%\" stop-color=\"#f8f0f8\"/>\n    <stop offset=\"50%\" stop-color=\"#a878f8\"/>\n</radialGradient>\n<circle cx=\"8.5\" cy=\"8.5\" r=\"7.5\" stroke=\"#281898\" stroke-width=\"1\" fill=\"url(#foe-left-g1)\" />\n<path d=\"M3.5,8.5 l8,5 l0,-10\" fill=\"#281898\" />"]
[null,"foe-right","F.O.E(right)","Fr",0,0,"<radialGradient id=\"foe-right-g1\" gradientUnits=\"userSpaceOnUse\" cx=\"10\" cy=\"6\" fx=\"10\" fy=\"6\" r=\"7.5\">\n    <stop offset=\"0%\" stop-color=\"#f8f0f8\"/>\n    <stop offset=\"50%\" stop-color=\"#a878f8\"/>\n</radialGradient>\n<circle cx=\"8.5\" cy=\"8.5\" r=\"7.5\" stroke=\"#281898\" stroke-width=\"1\" fill=\"url(#foe-right-g1)\" />\n<path d=\"M13.5,8.5 l-8,-5 l0,10\" fill=\"#281898\" />"]
[null,"foe","F.O.E","FOE",0,0,"<path d=\"m0.5,0.5 v4 h3 l4,5 h2 l4,-5 v3 l-4,2 h-2 l-4,-2 v-3 h-3 v3 l8,4 l8,-4 v-7 l-3,3 h-1 l-2,-3 l-2,4 l-2,-4 l-2,3 h-1 l-3,-3 z\" fill=\"#e41c38\" />\n<path d=\"m0.5,0.5 v7 l8,4 l8,-4 v-7 l-3,3 h-1 l-2,-3 l-2,4 l-2,-4 l-2,3 h-1 l-3,-3z\" fill=\"none\" stroke=\"#6a040f\" stroke-linecap=\"round\" stroke-linejoin=\"round\" stroke-width=\"0.5\" />\n<path d=\"m1.5 10.5 l3,6 h8 l3,-6 h-1 l-2,3 l-2,-2 l-2,2 l-2,-2 l-2,2 l-2,-3 h-1 z\" fill=\"#e41c38\" stroke=\"#6a040f\" stroke-linecap=\"round\" stroke-linejoin=\"round\" stroke-width=\"0.5\" />"]
[null,"hand","Hand","HND",0,1,"<path d=\"M6.5,16 q-5,-3,-4,-6 l0,-4 a1,1,0,0,1,2.5,0 l0,4 l0,-7 a1,1,0,0,1,2.5,0 l0,5 l0,-5.5 a1,1,0,0,1,2.5,0 l0,5.5 l0,-5 a1,1,0,0,1,2.5,0 l0,5 l0,-3 a1,1,0,0,1,2,0 l0,6 q-1,4,-4,5 l-5,0\" stroke=\"#328ea3\" stroke-width=\"1\" fill=\"#feffef\" />"]
[null,"shears","Shears","SHRS",0,1,"<path d=\"M8.5,1 q-7,5,0,10 q7,-5,0,-10\" stroke=\"#328ea3\" stroke-width=\"1\" fill=\"#feffef\" />\n<path d=\"M8.5,10 q-5,0,-5,4 a2,2,0,0,0,2,2 l3,0 l0,-6 l0,6 l3,0 a2,2,0,0,0,2,-2 q0,-4,-5,-4\" stroke=\"#328ea3\" stroke-width=\"1\" fill=\"#feffef\" />\n<line x1=\"8.5\" y1=\"1\" x2=\"8.5\" y2=\"10\" stroke=\"#328ea3\" stroke-width=\"1\" />\n<circle cx=\"8.5\" cy=\"10\" r=\"1\" stroke=\"#328ea3\" stroke-width=\"1\" fill=\"#feffef\" />\n<circle cx=\"6\" cy=\"13\" r=\"0.5\" stroke=\"#328ea3\" stroke-width=\"1\" />\n<circle cx=\"11\" cy=\"13\" r=\"0.5\" stroke=\"#328ea3\" stroke-width=\"1\" />\n"]
[null,"mattock","Mattock","MTK",0,1,"<path d=\"M3,5.5 q4,1,6,2 l-7,7 l1.5,1.5 l7,-7 q2,2,3,4 q0,-5,-1,-6 l2,-2 l-1.5,-1.5 l-2,2 q-3,-4,-8,0\" stroke=\"#328ea3\" stroke-width=\"1\" fill=\"#feffef\" />"]
[null,"event","Event","EVT",0,0,"<rect x=\"1.5\" y=\"1.5\" rx=\"2\" ry=\"2\" width=\"14\" height=\"14\" stroke=\"#251b00\" stroke-width=\"1\" fill=\"#fcffa1\" />\n<text x=\"2.5\" y=\"13\" font-size=\"12\" stroke=\"#075045\" stroke-width=\"1\" fill=\"#075045\">Ｅ</text>"]
[null,"arrow-up","Arrow(up)","ARu",0,1,"<path d=\"M8.5,3.5 l-6,6 l4.5,0 l0,5 l3,0 l0,-5 l4.5,0 Z\" stroke=\"#1e5f4b\" stroke-width=\"1\" fill=\"#a4ffee\" />"]
[null,"arrow-down","Arrow(down)","ARd",0,1,"<path d=\"M8.5,14.5 l6,-6 l-4.5,0 l0,-5 l-3,0 l0,5 l-4.5,0 Z\" stroke=\"#1e5f4b\" stroke-width=\"1\" fill=\"#a4ffee\" />"]
[null,"arrow-up-down","Arrow(up down)","ARud",0,1,"<path d=\"M8.5,1.5 l-5,5 l3.5,0 l0,4 l-3.5,0 l5,5 l5,-5 l-3.5,0 l0,-4 l3.5,0 Z\" stroke=\"#5d3c0f\" stroke-width=\"1\" fill=\"#ffdc0c\" />"]
[null,"arrow-left","Arrow(left)","ARl",0,1,"<path d=\"M2.5,8.5 l6,6 l0,-4.5 l5,0 l0,-3 l-5,0 l0,-4.5 Z\" stroke=\"#1e5f4b\" stroke-width=\"1\" fill=\"#a4ffee\" />"]
[null,"arrow-right","Arrow(right)","ARr",0,1,"<path d=\"M14.5,8.5 l-6,-6 l0,4.5 l-5,0 l0,3 l5,0 l0,4.5 Z\" stroke=\"#1e5f4b\" stroke-width=\"1\" fill=\"#a4ffee\" />"]
[null,"arrow-left-right","Arrow(left right)","ARlr",0,1,"<path d=\"M1.5,8.5 l5,5 l0,-3.5 l4,0 l0,3.5 l5,-5 l-5,-5 l0,3.5 l-4,0 l0,-3.5 Z\" stroke=\"#5d3c0f\" stroke-width=\"1\" fill=\"#ffdc0c\" />"]
[null,"ladder-up","Ladder(up)","LDu",0,1,"<linearGradient id=\"ladder-g1\" x1=\"0\" y1=\"0\" x2=\"0\" y2=\"15.5\" gradientUnits=\"userSpaceOnUse\">\n    <stop offset=\"0%\" stop-color=\"#cc9036\" />\n    <stop offset=\"100%\" stop-color=\"#33240e\" />\n</linearGradient>\n<linearGradient id=\"ladder-g2\" x1=\"0\" y1=\"0\" x2=\"0\" y2=\"15.5\" gradientUnits=\"userSpaceOnUse\">\n    <stop offset=\"0%\" stop-color=\"#694a1c\" />\n    <stop offset=\"100%\" stop-color=\"#1a1207\" />\n</linearGradient>\n<path d=\"m 2.5,0.75 v15.5 h2 v-1.5 h9 v-2.5 h-9 v-2.5 h9 v-2.5 h-9 v-2.5 h9 v-2.5 h-9 v-1.5 h-2 z\" stroke=\"none\" fill=\"url(#ladder-g1)\" />\n<rect x=\"12.5\" y=\"0.75\" width=\"2\" height=\"15.5\" stroke=\"none\" fill=\"url(#ladder-g1)\" />\n<rect x=\"2\" y=\"0.75\" width=\"1\" height=\"15.5\" stroke=\"none\" fill=\"url(#ladder-g2)\" />\n<rect x=\"14\" y=\"0.75\" width=\"1\" height=\"15.5\" stroke=\"none\" fill=\"url(#ladder-g2)\" />\n<rect x=\"4.5\" y=\"2.25\" width=\"1\" height=\"2.5\" stroke=\"none\" fill=\"#694a1c\" />\n<rect x=\"11.5\" y=\"2.25\" width=\"1\" height=\"2.5\" stroke=\"none\" fill=\"#694a1c\" />\n<rect x=\"4.5\" y=\"7.25\" width=\"1\" height=\"2.5\" stroke=\"none\" fill=\"#4f3815\" />\n<rect x=\"11.5\" y=\"7.25\" width=\"1\" height=\"2.5\" stroke=\"none\" fill=\"#4f3815\" />\n<rect x=\"4.5\" y=\"12.25\" width=\"1\" height=\"2.5\" stroke=\"none\" fill=\"#36260e\" />\n<rect x=\"11.5\" y=\"12.25\" width=\"1\" height=\"2.5\" stroke=\"none\" fill=\"#36260e\" />\n<path d=\"M8.5,-2.5 l-5,5 l10,0 l-5,-5\" stroke=\"#b09723\" stroke-width=\"1\" fill=\"#fff443\" />"]
[null,"ladder-down","Ladder(down)","LDd",0,1,"<linearGradient id=\"ladder-g1\" x1=\"0\" y1=\"0\" x2=\"0\" y2=\"15.5\" gradientUnits=\"userSpaceOnUse\">\n    <stop offset=\"0%\" stop-color=\"#cc9036\" />\n    <stop offset=\"100%\" stop-color=\"#33240e\" />\n</linearGradient>\n<linearGradient id=\"ladder-g2\" x1=\"0\" y1=\"0\" x2=\"0\" y2=\"15.5\" gradientUnits=\"userSpaceOnUse\">\n    <stop offset=\"0%\" stop-color=\"#694a1c\" />\n    <stop offset=\"100%\" stop-color=\"#1a1207\" />\n</linearGradient>\n<path d=\"m 2.5,0.75 v15.5 h2 v-1.5 h9 v-2.5 h-9 v-2.5 h9 v-2.5 h-9 v-2.5 h9 v-2.5 h-9 v-1.5 h-2 z\" stroke=\"none\" fill=\"url(#ladder-g1)\" />\n<rect x=\"12.5\" y=\"0.75\" width=\"2\" height=\"15.5\" stroke=\"none\" fill=\"url(#ladder-g1)\" />\n<rect x=\"2\" y=\"0.75\" width=\"1\" height=\"15.5\" stroke=\"none\" fill=\"url(#ladder-g2)\" />\n<rect x=\"14\" y=\"0.75\" width=\"1\" height=\"15.5\" stroke=\"none\" fill=\"url(#ladder-g2)\" />\n<rect x=\"4.5\" y=\"2.25\" width=\"1\" height=\"2.5\" stroke=\"none\" fill=\"#694a1c\" />\n<rect x=\"11.5\" y=\"2.25\" width=\"1\" height=\"2.5\" stroke=\"none\" fill=\"#694a1c\" />\n<rect x=\"4.5\" y=\"7.25\" width=\"1\" height=\"2.5\" stroke=\"none\" fill=\"#4f3815\" />\n<rect x=\"11.5\" y=\"7.25\" width=\"1\" height=\"2.5\" stroke=\"none\" fill=\"#4f3815\" />\n<rect x=\"4.5\" y=\"12.25\" width=\"1\" height=\"2.5\" stroke=\"none\" fill=\"#36260e\" />\n<rect x=\"11.5\" y=\"12.25\" width=\"1\" height=\"2.5\" stroke=\"none\" fill=\"#36260e\" />\n<path d=\"M8.5,19.5 l-5,-5 l10,0 l-5,5\" stroke=\"#b09723\" stroke-width=\"1\" fill=\"#fff443\" />"]
[null,"ladder-left","Ladder(left)","LDl",0,1,"<linearGradient id=\"ladder-g1\" x1=\"0\" y1=\"0\" x2=\"0\" y2=\"15.5\" gradientUnits=\"userSpaceOnUse\">\n    <stop offset=\"0%\" stop-color=\"#cc9036\" />\n    <stop offset=\"100%\" stop-color=\"#33240e\" />\n</linearGradient>\n<linearGradient id=\"ladder-g2\" x1=\"0\" y1=\"0\" x2=\"0\" y2=\"15.5\" gradientUnits=\"userSpaceOnUse\">\n    <stop offset=\"0%\" stop-color=\"#694a1c\" />\n    <stop offset=\"100%\" stop-color=\"#1a1207\" />\n</linearGradient>\n<path d=\"m 2.5,0.75 v15.5 h2 v-1.5 h9 v-2.5 h-9 v-2.5 h9 v-2.5 h-9 v-2.5 h9 v-2.5 h-9 v-1.5 h-2 z\" stroke=\"none\" fill=\"url(#ladder-g1)\" />\n<rect x=\"12.5\" y=\"0.75\" width=\"2\" height=\"15.5\" stroke=\"none\" fill=\"url(#ladder-g1)\" />\n<rect x=\"2\" y=\"0.75\" width=\"1\" height=\"15.5\" stroke=\"none\" fill=\"url(#ladder-g2)\" />\n<rect x=\"14\" y=\"0.75\" width=\"1\" height=\"15.5\" stroke=\"none\" fill=\"url(#ladder-g2)\" />\n<rect x=\"4.5\" y=\"2.25\" width=\"1\" height=\"2.5\" stroke=\"none\" fill=\"#694a1c\" />\n<rect x=\"11.5\" y=\"2.25\" width=\"1\" height=\"2.5\" stroke=\"none\" fill=\"#694a1c\" />\n<rect x=\"4.5\" y=\"7.25\" width=\"1\" height=\"2.5\" stroke=\"none\" fill=\"#4f3815\" />\n<rect x=\"11.5\" y=\"7.25\" width=\"1\" height=\"2.5\" stroke=\"none\" fill=\"#4f3815\" />\n<rect x=\"4.5\" y=\"12.25\" width=\"1\" height=\"2.5\" stroke=\"none\" fill=\"#36260e\" />\n<rect x=\"11.5\" y=\"12.25\" width=\"1\" height=\"2.5\" stroke=\"none\" fill=\"#36260e\" />\n<path d=\"M-2.5,8.5 l5,5 l0,-10 l-5,5\" stroke=\"#b09723\" stroke-width=\"1\" fill=\"#fff443\" />"]
[null,"ladder-right","Ladder(right)","LDr",0,1,"<linearGradient id=\"ladder-g1\" x1=\"0\" y1=\"0\" x2=\"0\" y2=\"15.5\" gradientUnits=\"userSpaceOnUse\">\n    <stop offset=\"0%\" stop-color=\"#cc9036\" />\n    <stop offset=\"100%\" stop-color=\"#33240e\" />\n</linearGradient>\n<linearGradient id=\"ladder-g2\" x1=\"0\" y1=\"0\" x2=\"0\" y2=\"15.5\" gradientUnits=\"userSpaceOnUse\">\n    <stop offset=\"0%\" stop-color=\"#694a1c\" />\n    <stop offset=\"100%\" stop-color=\"#1a1207\" />\n</linearGradient>\n<path d=\"m 2.5,0.75 v15.5 h2 v-1.5 h9 v-2.5 h-9 v-2.5 h9 v-2.5 h-9 v-2.5 h9 v-2.5 h-9 v-1.5 h-2 z\" stroke=\"none\" fill=\"url(#ladder-g1)\" />\n<rect x=\"12.5\" y=\"0.75\" width=\"2\" height=\"15.5\" stroke=\"none\" fill=\"url(#ladder-g1)\" />\n<rect x=\"2\" y=\"0.75\" width=\"1\" height=\"15.5\" stroke=\"none\" fill=\"url(#ladder-g2)\" />\n<rect x=\"14\" y=\"0.75\" width=\"1\" height=\"15.5\" stroke=\"none\" fill=\"url(#ladder-g2)\" />\n<rect x=\"4.5\" y=\"2.25\" width=\"1\" height=\"2.5\" stroke=\"none\" fill=\"#694a1c\" />\n<rect x=\"11.5\" y=\"2.25\" width=\"1\" height=\"2.5\" stroke=\"none\" fill=\"#694a1c\" />\n<rect x=\"4.5\" y=\"7.25\" width=\"1\" height=\"2.5\" stroke=\"none\" fill=\"#4f3815\" />\n<rect x=\"11.5\" y=\"7.25\" width=\"1\" height=\"2.5\" stroke=\"none\" fill=\"#4f3815\" />\n<rect x=\"4.5\" y=\"12.25\" width=\"1\" height=\"2.5\" stroke=\"none\" fill=\"#36260e\" />\n<rect x=\"11.5\" y=\"12.25\" width=\"1\" height=\"2.5\" stroke=\"none\" fill=\"#36260e\" />\n<path d=\"M19.5,8.5 l-5,-5 l0,10 l5,-5\" stroke=\"#b09723\" stroke-width=\"1\" fill=\"#fff443\" />"]
[null,"fallen-tree","Fallen Tree","FT",0,1,"<path d=\"m 0.5,9 v5 h7 z\" stroke=\"#2a2307\" stroke-width=\"0.5\" fill=\"#2a2307\" />\n<path d=\"m 0.5,7 v3 h3 z\" stroke=\"#634024\" stroke-width=\"0.5\" fill=\"#88794e\" />\n<path d=\"m 0.5,10 v3 l3,-3 z\" stroke=\"#2a2307\" stroke-width=\"0.5\" fill=\"#634024\" />\n<path d=\"m 16.5,2 l-8,1 l4,4 z\" stroke=\"#634024\" stroke-width=\"0.5\" fill=\"#88794e\" />\n<path d=\"m 16.5,2 l-4,5 l4,6 z\" stroke=\"#634024\" stroke-width=\"0.5\" fill=\"#88794e\" />\n<rect x=\"10.5\" y=\"5\" width=\"6\" height=\"2\" stroke=\"none\" fill=\"#634024\" />\n<path d=\"m 10.5,7 l2,2 h4 v-2 z\" stroke=\"none\" fill=\"#2a2307\" />\n<path d=\"m 15.5,10 l-5,4 h7 z\" stroke=\"none\" fill=\"#2a2307\" />"]
[null,"bonfire","Bonfire","BNFR",0,1,"<radialGradient id=\"bonfire-g1\" gradientUnits=\"userSpaceOnUse\" cx=\"8.5\" cy=\"10\" fx=\"8.5\" fy=\"11\" r=\"7.5\">\n    <stop offset=\"0%\" stop-color=\"#ffd724\" />\n    <stop offset=\"10%\" stop-color=\"#ffd724\" />\n    <stop offset=\"35%\" stop-color=\"#f74800\" />\n    <stop offset=\"50%\" stop-color=\"#dc0e00\" />\n    <stop offset=\"90%\" stop-color=\"#811103\" />\n</radialGradient>\n<line x1=\"2\" y1=\"15\" x2=\"8\" y2=\"12.5\" stroke=\"#5e4e2c\" stroke-width=\"2\" />\n<line x1=\"9\" y1=\"15.5\" x2=\"8\" y2=\"12.5\" stroke=\"#5e4e2c\" stroke-width=\"2\" />\n<line x1=\"15\" y1=\"15\" x2=\"9\" y2=\"12.5\" stroke=\"#5e4e2c\" stroke-width=\"2\" />\n<path d=\"M8.5,13.5 q-9,0,-5,-10 q1,3,3,2 q-1,-4,2,-5 c1,4,6,3,4,8 q2,-1,2,-3 q1,8,-6,8\" fill=\"url(#bonfire-g1)\" />"]
[null,"stele","Stele","STL",0,0,"<linearGradient id=\"stele-g1\" x1=\"0\" y1=\"0\" x2=\"0\" y2=\"100%\">\n    <stop offset=\"0.0\" stop-color=\"#dfded9\" />\n    <stop offset=\"1.0\" stop-color=\"#a5a5a3\" />\n</linearGradient>\n<rect x=\"3.5\" y=\"0.5\" rx=\"3\" ry=\"3\" width=\"10\" height=\"16\" stroke=\"#64645a\" stroke-width=\"1\" fill=\"url(#stele-g1)\" />\n<rect x=\"5.5\" y=\"2.5\" rx=\"3\" ry=\"3\" width=\"6\" height=\"13\" stroke=\"#8b8b8d\" stroke-width=\"1\" fill=\"none\" />\n<path d=\"M1.5,16.5 l2.5,-2.5 l9,0 l2.5,2.5 l-13,0\" stroke=\"#7f7b70\" stroke-width=\"1\" fill=\"#a5a5a3\" />"]
[null,"pedestal-down","Pedestal(down)","PSLd",1,1,"<radialGradient id=\"pedestal-down-g1\" gradientUnits=\"userSpaceOnUse\" cx=\"7\" cy=\"7\" fx=\"5.5\" fy=\"5.5\" r=\"12\">\n    <stop offset=\"0%\" stop-color=\"#191970\" />\n    <stop offset=\"100%\" stop-color=\"#48d1cc\" />\n</radialGradient>\n<rect x=\"1\" y=\"1.5\" width=\"15\" height=\"14\" stroke=\"none\" fill=\"#000040\" />\n<rect x=\"2\" y=\"2.5\" width=\"13\" height=\"12\" stroke=\"#4682b4\" stroke-width=\"0.75\" fill=\"none\" />\n<rect x=\"3\" y=\"3.5\" width=\"11\" height=\"10\" stroke=\"none\" fill=\"#00ced1\" />\n<circle cx=\"8.5\" cy=\"8.5\" r=\"5.5\" fill=\"url(#pedestal-down-g1)\" />\n<path d=\"m 4,7.5 c3,-9 12,6 2,0 q-3,0 0,3 c9,4 -1,3 -2,0\" fill=\"rgba(70,130,180,0.75)\" />"]
[null,"pedestal-up","Pedestal(up)","PSLu",1,1,"<radialGradient id=\"pedestal-up-g1\" gradientUnits=\"userSpaceOnUse\" cx=\"7\" cy=\"7\" fx=\"5.5\" fy=\"5.5\" r=\"12\">\n    <stop offset=\"0%\" stop-color=\"#191970\" />\n    <stop offset=\"100%\" stop-color=\"#48d1cc\" />\n</radialGradient>\n<rect x=\"1\" y=\"1.5\" width=\"15\" height=\"14\" stroke=\"none\" fill=\"#000040\" />\n<rect x=\"2\" y=\"2.5\" width=\"13\" height=\"12\" stroke=\"#4682b4\" stroke-width=\"0.75\" fill=\"none\" />\n<rect x=\"2.5\" y=\"0.5\" width=\"12\" height=\"12\" stroke=\"#000040\" stroke-width=\"0.5\" fill=\"#00ffff\" />\n<circle cx=\"8.5\" cy=\"6.5\" r=\"5.5\" fill=\"url(#pedestal-up-g1)\" />\n<path d=\"m 4,5.5 c3,-9 12,6 2,0 q-3,0 0,3 c9,4 -1,3 -2,0\" fill=\"rgba(70,130,180,0.75)\" />"]
[null,"board","Board","BRD",0,1,"<line x1=\"7.5\" y1=\"0.5\" x2=\"7.5\" y2=\"16.5\" stroke=\"#43250d\" stroke-width=\"1\" />\n<line x1=\"8.5\" y1=\"0.5\" x2=\"8.5\" y2=\"16.5\" stroke=\"#875d44\" stroke-width=\"1\" />\n<line x1=\"9.5\" y1=\"0.5\" x2=\"9.5\" y2=\"16.5\" stroke=\"#43250d\" stroke-width=\"1\" />\n<line x1=\"8.5\" y1=\"1.5\" x2=\"8.5\" y2=\"13.5\" stroke=\"#43250d\" stroke-width=\"1\" />\n<rect x=\"1\" y=\"2\" width=\"15\" height=\"10\" stroke=\"none\" fill=\"#846539\" />\n<line x1=\"1.5\" y1=\"7\" x2=\"16\" y2=\"7\" stroke=\"#43250d\" stroke-width=\"1\" />\n<path d=\"M1.5,3 l0,9 l14,0 l0,-9\" stroke=\"#43250d\" stroke-width=\"1\" fill=\"none\" />\n<rect x=\"4\" y=\"4\" width=\"9\" height=\"6\" stroke=\"none\" fill=\"#f0d2ae\" />\n<line x1=\"6\" y1=\"5.5\" x2=\"11.5\" y2=\"5.5\" stroke=\"#c3ad73\" stroke-width=\"1\" />\n<line x1=\"8\" y1=\"7.5\" x2=\"11.5\" y2=\"7.5\" stroke=\"#c3ad73\" stroke-width=\"1\" />\n<line x1=\"9\" y1=\"8.5\" x2=\"11.5\" y2=\"8.5\" stroke=\"#c3ad73\" stroke-width=\"1\" />\n"]
[null,"pitfall","Pitfall","PF",0,1,"<linearGradient id=\"pitfall-g1\" x1=\"0\" y1=\"0\" x2=\"0\" y2=\"100%\">\n    <stop offset=\"0%\" stop-color=\"#c3e493\" />\n    <stop offset=\"100%\" stop-color=\"#1f391c\" />\n</linearGradient>\n<linearGradient id=\"pitfall-g2\" x1=\"0\" y1=\"0\" x2=\"100%\" y2=\"0\">\n    <stop offset=\"0%\" stop-color=\"#c3e493\" />\n    <stop offset=\"100%\" stop-color=\"#1f391c\" />\n</linearGradient>\n<linearGradient id=\"pitfall-g3\" x1=\"0\" y1=\"0\" x2=\"100%\" y2=\"0\">\n    <stop offset=\"0%\" stop-color=\"#1f391c\" />\n    <stop offset=\"100%\" stop-color=\"#c3e493\" />\n</linearGradient>\n<linearGradient id=\"pitfall-g4\" x1=\"0\" y1=\"0\" x2=\"0\" y2=\"100%\">\n    <stop offset=\"0%\" stop-color=\"#1f391c\" />\n    <stop offset=\"100%\" stop-color=\"#c3e493\" />\n</linearGradient>\n<path d=\"M0.5,0.5 l4,4 h8 l4,-4 z\" stroke=\"none\" fill=\"url(#pitfall-g1)\" />\n<path d=\"M0.5,0.5 l4,4 v8 l-4,4 z\" stroke=\"none\" fill=\"url(#pitfall-g2)\" />\n<path d=\"M16.5,0.5 l-4,4 v8 l4,4 z\" stroke=\"none\" fill=\"url(#pitfall-g3)\" />\n<path d=\"M0.5,16.5 l4,-4 h8 l4,4 z\" stroke=\"none\" fill=\"url(#pitfall-g4)\" />\n<rect x=\"4.5\" y=\"4.5\" width=\"8\" height=\"8\" fill=\"#1f391c\" />"]
[null,"switch","Opened security gate(top)","OSGt",1,1,"<radialGradient id=\"switch-g1\" gradientUnits=\"userSpaceOnUse\" cx=\"4.5\" cy=\"7.5\" r=\"1\">\n    <stop offset=\"0%\" stop-color=\"#ffffff\" />\n    <stop offset=\"100%\" stop-color=\"#ff0000\" />\n</radialGradient>\n<linearGradient id=\"switch-g2\" x1=\"100%\" y1=\"0\" x2=\"0\" y2=\"100%\">\n    <stop offset=\"0%\" stop-color=\"#d0d0d0\" />\n    <stop offset=\"50%\" stop-color=\"#a0a0a0\" />\n</linearGradient>\n<rect x=\"1.5\" y=\"1.5\" width=\"13\" height=\"14\" stroke=\"none\" fill=\"#808080\" />\n<path d=\"M4.5,2.5 a 2,2 0 0 0 -2,2 v10 h11 v-12 z\" stroke=\"none\" fill=\"url(#switch-g2)\" />\n<circle cx=\"5\" cy=\"8\" r=\"1.5\" stroke=\"none\" fill=\"url(#switch-g1)\" />\n<rect x=\"3.5\" y=\"10.5\" width=\"3\" height=\"1\" stroke=\"none\" fill=\"#808080\" />\n<rect x=\"3.5\" y=\"12.5\" width=\"3\" height=\"1\" stroke=\"none\" fill=\"#808080\" />\n<rect x=\"8.5\" y=\"4\" width=\"3\" height=\"10\" stroke=\"#a0a0a0\" stroke-width=\"1\" fill=\"#000000\" />\n<path d=\"M8.5,8.5 h3 v-3.5 h3 l-2,-2 h-5 l-2,2 h3 z\" stroke=\"#a0a0a0\" stroke-width=\"1\" fill=\"#d0d0d0\" />"]
[null,"circle","Circle","CCL",1,1,"<radialGradient id=\"circle-g1\" gradientUnits=\"userSpaceOnUse\" cx=\"8.5\" cy=\"8.5\" fx=\"8.5\" fy=\"8.5\" r=\"7.5\">\n    <stop offset=\"60%\" stop-color=\"rgba(173,174,169,0.0)\" />\n    <stop offset=\"80%\" stop-color=\"#adaea9\" />\n</radialGradient>\n<circle cx=\"8.5\" cy=\"8.5\" r=\"7.5\" stroke=\"#7f7c73\" stroke-width=\"1\" fill=\"url(#circle-g1)\" />"]
[null,"wall","Wall","WALL",0,1,"<linearGradient id=\"wall-g1\" x1=\"0\" y1=\"0\" x2=\"0\" y2=\"100%\">\n    <stop offset=\"50%\" stop-color=\"#c9df7a\" />\n    <stop offset=\"75%\" stop-color=\"#abc56c\" />\n</linearGradient>\n<linearGradient id=\"wall-g2\" x1=\"0\" y1=\"0\" x2=\"0\" y2=\"100%\">\n    <stop offset=\"25%\" stop-color=\"#c9df7a\" />\n    <stop offset=\"50%\" stop-color=\"#abc56c\" />\n</linearGradient>\n<rect x=\"1.5\" y=\"1.5\" width=\"4.5\" height=\"5\" stroke=\"#627b27\" stroke-width=\"1\" fill=\"url(#wall-g1)\" />\n<rect x=\"6\" y=\"1.5\" width=\"5\" height=\"5\" stroke=\"#627b27\" stroke-width=\"1\" fill=\"url(#wall-g1)\" />\n<rect x=\"11\" y=\"1.5\" width=\"4.5\" height=\"5\" stroke=\"#627b27\" stroke-width=\"1\" fill=\"url(#wall-g1)\" />\n<rect x=\"1.5\" y=\"6.5\" width=\"7\" height=\"4\" stroke=\"#627b27\" stroke-width=\"1\" fill=\"url(#wall-g1)\" />\n<rect x=\"8.5\" y=\"6.5\" width=\"7\" height=\"4\" stroke=\"#627b27\" stroke-width=\"1\" fill=\"url(#wall-g1)\" />\n<rect x=\"1.5\" y=\"10.5\" width=\"4.5\" height=\"5\" stroke=\"#627b27\" stroke-width=\"1\" fill=\"url(#wall-g2)\" />\n<rect x=\"6\" y=\"10.5\" width=\"5\" height=\"5\" stroke=\"#627b27\" stroke-width=\"1\" fill=\"url(#wall-g2)\" />\n<rect x=\"11\" y=\"10.5\" width=\"4.5\" height=\"5\" stroke=\"#627b27\" stroke-width=\"1\" fill=\"url(#wall-g2)\" />"]
[null,"star","Star","STR",0,1,"<radialGradient id=\"star-g1\" gradientUnits=\"userSpaceOnUse\" cx=\"6.5\" cy=\"10.5\" fx=\"6.5\" fy=\"10.5\" r=\"11\">\n    <stop offset=\"0%\" stop-color=\"#7cffff\" />\n    <stop offset=\"100%\" stop-color=\"#36ab99\" />\n</radialGradient>\n<radialGradient id=\"star-g2\" gradientUnits=\"userSpaceOnUse\" cx=\"11.5\" cy=\"5.5\" fx=\"11.5\" fy=\"5.5\" r=\"10\">\n    <stop offset=\"0%\" stop-color=\"#7cffff\" />\n    <stop offset=\"100%\" stop-color=\"#36ab99\" />\n</radialGradient>\n<path d=\"M6.5,5 q0,4,-3.5,5.5 q3.5,1,3.5,5.5 q0,-4.5,3.5,-5.5 q-3.5,-1,-3.5,-5.5\" stroke=\"#218a8e\" stroke-width=\"1\" fill=\"url(#star-g1)\" />\n<path d=\"M11.5,0.5 q0,3.5,-3,5 q3,1,3,5 q0,-4,3,-5 q-3,-1,-3,-5\" stroke=\"#218a8e\" stroke-width=\"1\" fill=\"url(#star-g2)\" />"]
[null,"number-0","Number 0","NUM0",0,0,"<rect x=\"1.5\" y=\"1.5\" rx=\"1.5\" ry=\"1.5\" width=\"14\" height=\"14\" stroke=\"#aca442\" stroke-width=\"1.5\" fill=\"#013773\" />\n<text x=\"2.5\" y=\"13\" font-size=\"12\" stroke=\"#fff660\" stroke-width=\"1\" fill=\"#fff660\">０</text>"]
[null,"number-1","Number 1","NUM1",0,0,"<rect x=\"1.5\" y=\"1.5\" rx=\"1.5\" ry=\"1.5\" width=\"14\" height=\"14\" stroke=\"#aca442\" stroke-width=\"1.5\" fill=\"#013773\" />\n<text x=\"2.5\" y=\"13\" font-size=\"12\" stroke=\"#fff660\" stroke-width=\"1\" fill=\"#fff660\">１</text>"]
[null,"number-2","Number 2","NUM2",0,0,"<rect x=\"1.5\" y=\"1.5\" rx=\"1.5\" ry=\"1.5\" width=\"14\" height=\"14\" stroke=\"#aca442\" stroke-width=\"1.5\" fill=\"#013773\" />\n<text x=\"2.5\" y=\"13\" font-size=\"12\" stroke=\"#fff660\" stroke-width=\"1\" fill=\"#fff660\">２</text>"]
[null,"number-3","Number 3","NUM3",0,0,"<rect x=\"1.5\" y=\"1.5\" rx=\"1.5\" ry=\"1.5\" width=\"14\" height=\"14\" stroke=\"#aca442\" stroke-width=\"1.5\" fill=\"#013773\" />\n<text x=\"2.5\" y=\"13\" font-size=\"12\" stroke=\"#fff660\" stroke-width=\"1\" fill=\"#fff660\">３</text>"]
[null,"number-4","Number 4","NUM4",0,0,"<rect x=\"1.5\" y=\"1.5\" rx=\"1.5\" ry=\"1.5\" width=\"14\" height=\"14\" stroke=\"#aca442\" stroke-width=\"1.5\" fill=\"#013773\" />\n<text x=\"2.5\" y=\"13\" font-size=\"12\" stroke=\"#fff660\" stroke-width=\"1\" fill=\"#fff660\">４</text>"]
[null,"number-5","Number 5","NUM5",0,0,"<rect x=\"1.5\" y=\"1.5\" rx=\"1.5\" ry=\"1.5\" width=\"14\" height=\"14\" stroke=\"#aca442\" stroke-width=\"1.5\" fill=\"#013773\" />\n<text x=\"2.5\" y=\"13\" font-size=\"12\" stroke=\"#fff660\" stroke-width=\"1\" fill=\"#fff660\">５</text>"]
[null,"number-6","Number 6","NUM6",0,0,"<rect x=\"1.5\" y=\"1.5\" rx=\"1.5\" ry=\"1.5\" width=\"14\" height=\"14\" stroke=\"#aca442\" stroke-width=\"1.5\" fill=\"#013773\" />\n<text x=\"2.5\" y=\"13\" font-size=\"12\" stroke=\"#fff660\" stroke-width=\"1\" fill=\"#fff660\">６</text>"]
[null,"number-7","Number 7","NUM7",0,0,"<rect x=\"1.5\" y=\"1.5\" rx=\"1.5\" ry=\"1.5\" width=\"14\" height=\"14\" stroke=\"#aca442\" stroke-width=\"1.5\" fill=\"#013773\" />\n<text x=\"2.5\" y=\"13\" font-size=\"12\" stroke=\"#fff660\" stroke-width=\"1\" fill=\"#fff660\">７</text>"]
[null,"number-8","Number 8","NUM8",0,0,"<rect x=\"1.5\" y=\"1.5\" rx=\"1.5\" ry=\"1.5\" width=\"14\" height=\"14\" stroke=\"#aca442\" stroke-width=\"1.5\" fill=\"#013773\" />\n<text x=\"2.5\" y=\"13\" font-size=\"12\" stroke=\"#fff660\" stroke-width=\"1\" fill=\"#fff660\">８</text>"]
[null,"number-9","Number 9","NUM9",0,0,"<rect x=\"1.5\" y=\"1.5\" rx=\"1.5\" ry=\"1.5\" width=\"14\" height=\"14\" stroke=\"#aca442\" stroke-width=\"1.5\" fill=\"#013773\" />\n<text x=\"2.5\" y=\"13\" font-size=\"12\" stroke=\"#fff660\" stroke-width=\"1\" fill=\"#fff660\">９</text>"]
[null,"axis","Axis","AXS",1,1,"<radialGradient id=\"axis-g1\" gradientUnits=\"userSpaceOnUse\" cx=\"8.5\" cy=\"8.5\" fx=\"8.5\" fy=\"8.5\" r=\"8.5\">\n    <stop offset=\"25%\" stop-color=\"#fffee6\" />\n    <stop offset=\"50%\" stop-color=\"#c02992\" />\n    <stop offset=\"75%\" stop-color=\"#961f79\" />\n    <stop offset=\"100%\" stop-color=\"rgba(150,31,121,0.0)\" />\n</radialGradient>\n<linearGradient id=\"axis-g2\" x1=\"0\" y1=\"0\" x2=\"100%\" y2=\"0\">\n    <stop offset=\"0%\" stop-color=\"#edeedc\" />\n    <stop offset=\"25%\" stop-color=\"#f791d2\" />\n    <stop offset=\"50%\" stop-color=\"#fffce1\" />\n    <stop offset=\"75%\" stop-color=\"#f791d2\" />\n    <stop offset=\"100%\" stop-color=\"#edeedc\" />\n</linearGradient>\n<linearGradient id=\"axis-g3\" x1=\"0\" y1=\"0\" x2=\"0\" y2=\"100%\">\n    <stop offset=\"0%\" stop-color=\"#edeedc\" />\n    <stop offset=\"25%\" stop-color=\"#f791d2\" />\n    <stop offset=\"50%\" stop-color=\"#fffce1\" />\n    <stop offset=\"75%\" stop-color=\"#f791d2\" />\n    <stop offset=\"100%\" stop-color=\"#edeedc\" />\n</linearGradient>\n<rect x=\"0.5\" y=\"0.5\" width=\"16\" height=\"16\" fill=\"#50214f\" />\n<circle cx=\"8.5\" cy=\"8.5\" r=\"8.5\" fill=\"url(#axis-g1)\" />\n<line x1=\"0.5\" y1=\"0.5\" x2=\"16.5\" y2=\"16.5\" stroke=\"url(#axis-g2)\" stroke-width=\"1\" />\n<line x1=\"16.5\" y1=\"0.5\" x2=\"0.5\" y2=\"16.5\" stroke=\"url(#axis-g2)\" stroke-width=\"1\" />\n<rect x=\"0.5\" y=\"7.5\" width=\"16\" height=\"2\" fill=\"url(#axis-g2)\" />\n<rect x=\"7.5\" y=\"0.5\" width=\"2\" height=\"16\" fill=\"url(#axis-g3)\" />"]
[null,"ice","Ice","ICE",0,1,"<radialGradient id=\"ice-g1\" gradientUnits=\"objectBoundingBox\" spreadMethod=\"reflect\">\n    <stop offset=\"25%\" stop-color=\"#2999a3\" />\n    <stop offset=\"65%\" stop-color=\"#40efff\" />\n    <stop offset=\"100%\" stop-color=\"#80f7ff\" />\n</radialGradient>\n<path d=\"M3.5,7.5 q-5,5,-1,9 l12,0 q4,-1,-1,-8 q1,-9,-5,-6 q-5,1,-5,5\" stroke=\"none\" fill=\"#c0ffff\" />\n<path d=\"M1.5,9.5 c3,-2,6,9,13,0 l5,-6 l-5,6 q-2,-9,-13,0\" fill=\"url(#ice-g1)\" />\n<path d=\"M1.5,10.5 c4,4,10,0,14,6 l-14,0 l0,3 l0,-3 l-3,0 l3,0\" fill=\"url(#ice-g1)\" />\n<path d=\"M3.5,7.5 q-5,5,-1,9 l12,0 q4,-1,-1,-8 q1,-9,-5,-6 q-5,1,-5,5\" stroke=\"#0b3d71\" stroke-width=\"1\" fill=\"none\" />"]
[null,"floating","Floating","FLT",0,1,"<polygon points=\"4,1.5 0.5,8.5 4,15.5 13,15.5 16.5,8.5 13,1.5\" stroke=\"#041a2f\" stroke-width=\"1\" fill=\"#916d0f\" />\n<polygon points=\"5.5,3.5 3,8.5 5.5,13.5 11.5,13.5 14,8.5 11.5,3.5\" stroke=\"#c7a65f\" stroke-width=\"1\" fill=\"#dfd49e\" />\n<polygon points=\"8.5,5 6.5,7 10.5,7\" stroke=\"none\" fill=\"#ac9d2a\" />\n<polygon points=\"5,8.5 7,10.5 7,6.5\" stroke=\"none\" fill=\"#ac9d2a\" />\n<polygon points=\"8.5,12 10.5,10 6.5,10\" stroke=\"none\" fill=\"#ac9d2a\" />\n<polygon points=\"12,8.5 10,6.5 10,10.5\" stroke=\"none\" fill=\"#ac9d2a\" />"]
[null,"bug","Bug","BUG",0,1,"<linearGradient id=\"bug-g1\" x1=\"0\" y1=\"0\" x2=\"100%\" y2=\"100%\">\n    <stop offset=\"0%\" stop-color=\"#8f9a92\" />\n    <stop offset=\"75%\" stop-color=\"#55564e\" />\n</linearGradient>\n<path d=\"m 5,15 v-12 q11,0 11,10 l-2,2 z\" stroke=\"#1f1c17\" stroke-width=\"1\" fill=\"#55564e\" />\n<line x1=\"14\" y1=\"6\" x2=\"10\" y2=\"15\" stroke=\"#1f1c17\" stroke-width=\"1\" />\n<line x1=\"15.5\" y1=\"9\" x2=\"13\" y2=\"15\" stroke=\"#1f1c17\" stroke-width=\"1\" />\n<path d=\"m 3,15 q5,0 7,-4.5 l-2,-2 l3,-4\" stroke=\"#1f1c17\" stroke-width=\"2\" fill=\"none\" />\n<path d=\"m 7,2 q-5,0 -6,6 v5 l2,2 q5,0 7,-5 l-2,-2 l5,-6 z\" stroke=\"#1f1c17\" stroke-width=\"1\" fill=\"url(#bug-g1)\" />\n<line x1=\"7\" y1=\"3\" x2=\"1.5\" y2=\"11\" stroke=\"#474d43\" stroke-width=\"2\" />\n<path d=\"m 7,7 l-2.5,3 l1,1 l-2,3\" stroke=\"#474d43\" stroke-width=\"1\" fill=\"none\" />"]
[null,"strange","Strange","STRG",0,1,"<radialGradient id=\"strange-g1\" gradientUnits=\"userSpaceOnUse\" cx=\"3.5\" cy=\"15\" fx=\"3.5\" fy=\"15\" r=\"9\">\n    <stop offset=\"0%\" stop-color=\"#fa7c03\" />\n    <stop offset=\"50%\" stop-color=\"#f9cb06\" />\n    <stop offset=\"100%\" stop-color=\"#fff0a0\" />\n</radialGradient>\n<path d=\"m10,2 h4 l0,3 q2,8 -10,11 l-1.5,-1 q0,-11 8,-13\" stroke=\"#fa7c03\" stroke-width=\"0.5\" fill=\"url(#strange-g1)\" />\n<path d=\"m 6.5,4 q6,0 7,6\" stroke=\"#f84600\" stroke-linecap=\"round\" stroke-width=\"1.5\" fill=\"none\" />\n<path d=\"m 10.5,4.5 h1.25 l0.25,1.5\" stroke=\"#f84600\" stroke-width=\"1\" fill=\"none\" />\n<path d=\"m 8.5,2 h5.5 l1,5\" stroke=\"#de0905\" stroke-width=\"1.5\" fill=\"none\" />"]
[null,"withered","Windbreak(right)","WBKr",1,1,"<path d=\"m0.5,0.5 v4 h3 l4,5 h2 l4,-5 v3 l-4,2 h-2 l-4,-2 v-3 h-3 v3 l8,4 l8,-4 v-7 l-3,3 h-1 l-2,-3 l-2,4 l-2,-4 l-2,3 h-1 l-3,-3 z\" fill=\"#e41c38\" />\n<path d=\"m0.5,0.5 v7 l8,4 l8,-4 v-7 l-3,3 h-1 l-2,-3 l-2,4 l-2,-4 l-2,3 h-1 l-3,-3z\" fill=\"none\" stroke=\"#6a040f\" stroke-linecap=\"round\" stroke-linejoin=\"round\" stroke-width=\"0.5\" />\n<path d=\"m1.5 10.5 l3,6 h8 l3,-6 h-1 l-2,3 l-2,-2 l-2,2 l-2,-2 l-2,2 l-2,-3 h-1 z\" fill=\"#e41c38\" stroke=\"#6a040f\" stroke-linecap=\"round\" stroke-linejoin=\"round\" stroke-width=\"0.5\" />"]
[null,"red-foe-up","Red F.O.E(up)","RFu",0,0,"<radialGradient id=\"red-foe-up-g1\" gradientUnits=\"userSpaceOnUse\" cx=\"6\" cy=\"6\" fx=\"6\" fy=\"6\" r=\"7.5\">\n    <stop offset=\"0%\" stop-color=\"#ffa17c\"/>\n    <stop offset=\"50%\" stop-color=\"#bc180f\"/>\n</radialGradient>\n<circle cx=\"8.5\" cy=\"8.5\" r=\"7.5\" stroke=\"#791104\" stroke-width=\"1\" fill=\"url(#red-foe-up-g1)\" />\n<path d=\"M8.5,3.5 l-5,8 l10,0\" fill=\"#4a0e0d\" />"]
[null,"red-foe-down","Red F.O.E(down)","RFd",0,0,"<radialGradient id=\"red-foe-down-g1\" gradientUnits=\"userSpaceOnUse\" cx=\"10\" cy=\"10\" fx=\"10\" fy=\"10\" r=\"7.5\">\n    <stop offset=\"0%\" stop-color=\"#ffa17c\"/>\n    <stop offset=\"50%\" stop-color=\"#bc180f\"/>\n</radialGradient>\n<circle cx=\"8.5\" cy=\"8.5\" r=\"7.5\" stroke=\"#791104\" stroke-width=\"1\" fill=\"url(#red-foe-down-g1)\" />\n<path d=\"M8.5,13.5 l5,-8 l-10,0\" fill=\"#4a0e0d\" />"]
[null,"red-foe-left","Red F.O.E(left)","RFl",0,0,"<radialGradient id=\"red-foe-left-g1\" gradientUnits=\"userSpaceOnUse\" cx=\"6\" cy=\"10\" fx=\"6\" fy=\"10\" r=\"7.5\">\n    <stop offset=\"0%\" stop-color=\"#ffa17c\"/>\n    <stop offset=\"50%\" stop-color=\"#bc180f\"/>\n</radialGradient>\n<circle cx=\"8.5\" cy=\"8.5\" r=\"7.5\" stroke=\"#791104\" stroke-width=\"1\" fill=\"url(#red-foe-left-g1)\" />\n<path d=\"M3.5,8.5 l8,5 l0,-10\" fill=\"#4a0e0d\" />"]
[null,"red-foe-right","Red F.O.E(right)","RFr",0,0,"<radialGradient id=\"red-foe-right-g1\" gradientUnits=\"userSpaceOnUse\" cx=\"10\" cy=\"6\" fx=\"10\" fy=\"6\" r=\"7.5\">\n    <stop offset=\"0%\" stop-color=\"#ffa17c\"/>\n    <stop offset=\"50%\" stop-color=\"#bc180f\"/>\n</radialGradient>\n<circle cx=\"8.5\" cy=\"8.5\" r=\"7.5\" stroke=\"#791104\" stroke-width=\"1\" fill=\"url(#red-foe-right-g1)\" />\n<path d=\"M13.5,8.5 l-8,-5 l0,10\" fill=\"#4a0e0d\" />"]
[null,"floating-block","Floating Block","FB",0,1,"<linearGradient id=\"floating-block-g1\" x1=\"0\" y1=\"0\" x2=\"100%\" y2=\"0%\">\n    <stop offset=\"50%\" stop-color=\"#b69971\" />\n    <stop offset=\"100%\" stop-color=\"#806451\" />\n</linearGradient>\n<linearGradient id=\"floating-block-g2\" x1=\"0\" y1=\"0\" x2=\"0%\" y2=\"100%\">\n    <stop offset=\"0%\" stop-color=\"rgba(0,0,0,0)\" />\n    <stop offset=\"100%\" stop-color=\"rgba(0,0,0,0.5)\" />\n</linearGradient>\n<rect x=\"1.0\" y=\"7\" width=\"15\" height=\"8\" stroke=\"#122d49\" stroke-width=\"1\" fill=\"#436066\" />\n<rect x=\"1.0\" y=\"15\" width=\"15\" height=\"1\" stroke=\"none\" fill=\"#122d49\" />\n<line x1=\"1.0\" y1=\"9\" x2=\"16\" y2=\"9\" stroke=\"#479aa4\" stroke-width=\"1\" />\n<line x1=\"1.0\" y1=\"11\" x2=\"16\" y2=\"11\" stroke=\"#479aa4\" stroke-width=\"1\" />\n<line x1=\"1.0\" y1=\"13\" x2=\"16\" y2=\"13\" stroke=\"#479aa4\" stroke-width=\"1\" />\n<path d=\"m4,7 q1,-1 2,0 l-0.5,3 v6 h-2 v-6 z\" fill=\"rgba(0,0,0,0.5)\" stroke=\"none\" />\n<path d=\"m8,6.5 q1,-1 2,0 l1,5 l0,5 h-2,0 l0,-5 z\" fill=\"rgba(0,0,0,0.5)\" stroke=\"none\" />\n<path d=\"m13,7 q1,-1 2,0 l-0.5,6 l-1,3 h-2 l1,-3 z\" fill=\"rgba(0,0,0,0.5)\" stroke=\"none\" />\n<path d=\"m3,6 q1,-1 2,0 l-0.5,5 v4 q-1,1 -2,0 v-4 z\" fill=\"url(#floating-block-g1)\" stroke=\"#86825f\" stroke-linecap=\"round\" stroke-linejoin=\"round\" stroke-width=\"0.5\" />\n<path d=\"m6.5,5.5 q1,-1 2,0 l1,5 l0,5 q-1,1 -2,0 l0,-5 z\" fill=\"url(#floating-block-g1)\" stroke=\"#86825f\" stroke-linecap=\"round\" stroke-linejoin=\"round\" stroke-width=\"0.5\" />\n<path d=\"m12,6 q1,-1 2,0 l-0.5,6 l-1,3 q-1,1 -2,0 l1,-3 z\" fill=\"url(#floating-block-g1)\" stroke=\"#86825f\" stroke-linecap=\"round\" stroke-linejoin=\"round\" stroke-width=\"0.5\" />\n<rect x=\"1.0\" y=\"13\" width=\"15\" height=\"3.5\" stroke=\"none\" fill=\"url(#floating-block-g2)\" />"]
[null,"front-block","Front Block","FRB",0,1,"<rect x=\"1.0\" y=\"8\" width=\"15\" height=\"8\" stroke=\"none\" fill=\"#436066\" />\n<line x1=\"1.0\" y1=\"10\" x2=\"16\" y2=\"10\" stroke=\"#479aa4\" stroke-width=\"0.5\" />\n<line x1=\"1.0\" y1=\"12.5\" x2=\"16\" y2=\"12.5\" stroke=\"#479aa4\" stroke-width=\"0.5\" />\n<line x1=\"1.0\" y1=\"14\" x2=\"16\" y2=\"14\" stroke=\"#479aa4\" stroke-width=\"0.5\" />\n<path d=\"m8.5,10 l-3,1.5 l3,4 l3,-4 z\" stroke=\"none\" fill=\"#436066\" />\n<circle cx=\"8.5\" cy=\"9\" r=\"0.5\" stroke=\"none\" fill=\"#479aa4\" />\n<circle cx=\"8.5\" cy=\"10.5\" r=\"0.5\" stroke=\"none\" fill=\"#479aa4\" />\n<circle cx=\"6.5\" cy=\"11.5\" r=\"0.5\" stroke=\"none\" fill=\"#479aa4\" />\n<circle cx=\"10.5\" cy=\"11.5\" r=\"0.5\" stroke=\"none\" fill=\"#479aa4\" />\n<circle cx=\"8.5\" cy=\"14\" r=\"0.5\" stroke=\"none\" fill=\"#479aa4\" />\n<rect x=\"1.0\" y=\"8\" width=\"15\" height=\"8\" stroke=\"#122d49\" stroke-width=\"1\" fill=\"none\" />"]
[null,"rear-block","Rear Block","RRB",0,1,"<rect x=\"3.0\" y=\"2.5\" width=\"11\" height=\"5.5\" stroke=\"none\" fill=\"#436066\" />\n<line x1=\"2.5\" y1=\"2.5\" x2=\"14.5\" y2=\"2.5\" stroke=\"#5d6861\" stroke-width=\"1\" />\n<line x1=\"6.5\" y1=\"4.5\" x2=\"10.5\" y2=\"4.5\" stroke=\"#5d6861\" stroke-width=\"1\" />\n<line x1=\"8.5\" y1=\"4.5\" x2=\"8.5\" y2=\"7.5\" stroke=\"#5d6861\" stroke-width=\"1\" />\n<path d=\"m4.5,4.5 v4 h2.5 v-2.5 h-1.5 v-1.5 z\" stroke=\"none\" fill=\"#5d6861\" />\n<path d=\"m11.5,4.5 v1.5 h-1.5 v2.5 h2.5 v-4 z\" stroke=\"none\" fill=\"#5d6861\" />\n<rect x=\"1.0\" y=\"8\" width=\"15\" height=\"8\" stroke=\"none\" fill=\"#436066\" />\n<line x1=\"1.0\" y1=\"10\" x2=\"16\" y2=\"10\" stroke=\"#479aa4\" stroke-width=\"0.5\" />\n<line x1=\"1.0\" y1=\"12.5\" x2=\"16\" y2=\"12.5\" stroke=\"#479aa4\" stroke-width=\"0.5\" />\n<line x1=\"1.0\" y1=\"14\" x2=\"16\" y2=\"14\" stroke=\"#479aa4\" stroke-width=\"0.5\" />\n<path d=\"m8.5,10 l-3,1.5 l3,4 l3,-4 z\" stroke=\"none\" fill=\"#436066\" />\n<circle cx=\"8.5\" cy=\"9\" r=\"0.5\" stroke=\"none\" fill=\"#479aa4\" />\n<circle cx=\"8.5\" cy=\"10.5\" r=\"0.5\" stroke=\"none\" fill=\"#479aa4\" />\n<circle cx=\"6.5\" cy=\"11.5\" r=\"0.5\" stroke=\"none\" fill=\"#479aa4\" />\n<circle cx=\"10.5\" cy=\"11.5\" r=\"0.5\" stroke=\"none\" fill=\"#479aa4\" />\n<circle cx=\"8.5\" cy=\"14\" r=\"0.5\" stroke=\"none\" fill=\"#479aa4\" />\n<path d=\"m3,1.5 l-2,2 h2 v5 h-2 v7.5 h15 v-7.5 h-2 v-5 h2 l-2,-2 z\" stroke=\"#122d49\" stroke-width=\"1\" fill=\"none\" />"]
[null,"fishing","Fishing","FSH",0,1,"<path d=\"M1,14 l3,-3 a2.5,2.5 0 1 1 3,-3 l7,-7 l2,2 l-13,13 l-2,-2\" stroke=\"#328ea3\" stroke-width=\"1\" fill=\"#feffef\" />\n<path d=\"M14,7 c-11,9 2,4 -0,7 a1,1 0 0 0 0,2 c8,-9 -9,0,0,-7.5 a0.75,0.75 0 0 0 0,-1.5\" stroke=\"#328ea3\" stroke-width=\"0.5\" fill=\"#feffef\" />"]
[null,"harvest","Harvest","HVST",0,1,"<linearGradient id=\"harvest-g1\" x1=\"0\" y1=\"0\" x2=\"0\" y2=\"100%\">\n    <stop offset=\"0.0\" stop-color=\"#1588b4\" />\n    <stop offset=\"1.0\" stop-color=\"#84ccda\" />\n</linearGradient>\n<radialGradient id=\"harvest-g2\" gradientUnits=\"userSpaceOnUse\" cx=\"8.5\" cy=\"10\" fx=\"7.5\" fy=\"11\" r=\"8.5\">\n    <stop offset=\"0%\" stop-color=\"#e5fff1\" />\n    <stop offset=\"100%\" stop-color=\"#83ccdd\" />\n</radialGradient>\n<ellipse cx=\"8.5\" cy=\"14.5\" rx=\"8\" ry=\"2\" stroke=\"none\" fill=\"url(#harvest-g1)\" />\n<path d=\"M5.5,14.5 c-7,-9,7,-3,-2,-12 q2,0,4,2 q1,-1,0,-3 q2,1,2,3 q1,-1,4,-2 c-9,9,5,3,-2,12\" stroke=\"#0996d9\" stroke-width=\"1\" fill=\"url(#harvest-g2)\" />\n<line x1=\"9.5\" y1=\"11\" x2=\"11.5\" y2=\"11\" stroke=\"#70d2ed\" stroke-width=\"1\" />\n<line x1=\"8.5\" y1=\"13\" x2=\"10.5\" y2=\"13\" stroke=\"#70d2ed\" stroke-width=\"1\" />"]
[null,"lever","Lever","LVR",1,1,"<radialGradient id=\"lever-g1\" gradientUnits=\"userSpaceOnUse\" cx=\"2\" cy=\"4\" fx=\"2\" fy=\"4\" r=\"2\">\n    <stop offset=\"0%\" stop-color=\"#ff664d\" />\n    <stop offset=\"100%\" stop-color=\"#bc1e15\" />\n</radialGradient>\n<radialGradient id=\"lever-g2\" gradientUnits=\"userSpaceOnUse\" cx=\"15\" cy=\"13\" fx=\"15\" fy=\"13\" r=\"15\">\n    <stop offset=\"0%\" stop-color=\"#6f7567\" />\n    <stop offset=\"100%\" stop-color=\"#bdbaa7\" />\n</radialGradient>\n<line x1=\"2.5\" y1=\"4.5\" x2=\"6.5\" y2=\"8.5\" stroke=\"#595c47\" stroke-width=\"3\" />\n<line x1=\"3\" y1=\"4\" x2=\"7\" y2=\"8\" stroke=\"#b5b6a5\" stroke-width=\"1\" />\n<path d=\"M1.5,15 a7,7,0,0,1,14,0 l-14,0\" stroke=\"#5e5c45\" stroke-width=\"1\" fill=\"url(#lever-g2)\" />\n<circle cx=\"2.5\" cy=\"4.5\" r=\"2\" stroke=\"#8e1700\" fill=\"url(#lever-g1)\" />"]
[null,"rock","Rock","RCK",0,1,"<radialGradient id=\"rock-g1\" gradientUnits=\"objectBoundingBox\" spreadMethod=\"reflect\">\n    <stop offset=\"25%\" stop-color=\"#aa4720\" />\n    <stop offset=\"65%\" stop-color=\"#e16935\" />\n    <stop offset=\"100%\" stop-color=\"#db8e58\" />\n</radialGradient>\n<path d=\"M3.5,7.5 q-5,5,-1,9 l12,0 q4,-1,-1,-8 q1,-9,-5,-6 q-5,1,-5,5\" stroke=\"none\" fill=\"#f3c06f\" />\n<path d=\"M1.5,9.5 c3,-2,6,9,13,0 l5,-6 l-5,6 q-2,-9,-13,0\" fill=\"url(#rock-g1)\" />\n<path d=\"M1.5,10.5 c4,4,10,0,14,6 l-14,0 l0,3 l0,-3 l-3,0 l3,0\" fill=\"url(#rock-g1)\" />\n<path d=\"M3.5,7.5 q-5,5,-1,9 l12,0 q4,-1,-1,-8 q1,-9,-5,-6 q-5,1,-5,5\" stroke=\"#71380b\" stroke-width=\"1\" fill=\"none\" />"]
[null,"stone","Stone","STN",0,1,"<radialGradient id=\"stone-g1\" gradientUnits=\"objectBoundingBox\" spreadMethod=\"reflect\">\n    <stop offset=\"25%\" stop-color=\"#5f6769\" />\n    <stop offset=\"65%\" stop-color=\"#8b9596\" />\n    <stop offset=\"100%\" stop-color=\"#a5aead\" />\n</radialGradient>\n<path d=\"M3.5,7.5 q-5,5,-1,9 l12,0 q4,-1,-1,-8 q1,-9,-5,-6 q-5,1,-5,5\" stroke=\"none\" fill=\"#d9ddde\" />\n<path d=\"M1.5,9.5 c3,-2,6,9,13,0 l5,-6 l-5,6 q-2,-9,-13,0\" fill=\"url(#stone-g1)\" />\n<path d=\"M1.5,10.5 c4,4,10,0,14,6 l-14,0 l0,3 l0,-3 l-3,0 l3,0\" fill=\"url(#stone-g1)\" />\n<path d=\"M3.5,7.5 q-5,5,-1,9 l12,0 q4,-1,-1,-8 q1,-9,-5,-6 q-5,1,-5,5\" stroke=\"#232319\" stroke-width=\"1\" fill=\"none\" />"]
[null,"statue","Statue","STT",1,1,"<radialGradient id=\"statue-g1\" gradientUnits=\"userSpaceOnUse\" cx=\"2.5\" cy=\"5.5\" fx=\"2.5\" fy=\"5.5\" r=\"16\">\n    <stop offset=\"50%\" stop-color=\"#a9a790\" />\n    <stop offset=\"80%\" stop-color=\"#878d71\" />\n    <stop offset=\"100%\" stop-color=\"#88a788\" />\n</radialGradient>\n<ellipse cx=\"8.5\" cy=\"14.5\" rx=\"6\" ry=\"2\" stroke=\"none\" fill=\"#534d3e\" />\n<path d=\"M8.5,0.5 q-4,0,-6,7 q-5,4,0,5 q0,7,6,2 q6,4,6,-2 q5,-1,0,-5 q-2,-7,-6,-7\" stroke=\"#4d4b34\" stroke-width=\"1\" fill=\"url(#statue-g1)\" />\n<path d=\"M4,6 l2,2 l1,0 l0,-1 l-1,-1 l-2,0\" stroke=\"none\" fill=\"#4f4c3b\" />\n<path d=\"M13,6 l-2,2 l-1,0 l0,-1 l1,-1 l2,0\" stroke=\"none\" fill=\"#4f4c3b\" />\n<path d=\"M8.5,9 l-1,1.5 l2,0 l-1,-1.5\" stroke=\"#4f4c3b\" stroke-width=\"0.5\" fill=\"#4f4c3b\" />"]
[null,"wall-gimmick","Wall Gimmick","WG",0,0,"<linearGradient id=\"wall-gimmick-g1\" x1=\"0\" y1=\"0\" x2=\"0\" y2=\"100%\">\n    <stop offset=\"25%\" stop-color=\"#8dcdcc\" />\n    <stop offset=\"50%\" stop-color=\"#75b6bc\" />\n</linearGradient>\n<linearGradient id=\"wall-gimmick-g2\" x1=\"0\" y1=\"0\" x2=\"0\" y2=\"100%\">\n    <stop offset=\"0%\" stop-color=\"#8dcdcc\" />\n    <stop offset=\"100%\" stop-color=\"#75b6bc\" />\n</linearGradient>\n<radialGradient id=\"wall-gimmick-g3\" gradientUnits=\"userSpaceOnUse\" cx=\"7\" cy=\"7\" fx=\"7\" fy=\"7\" r=\"3\">\n    <stop offset=\"0%\" stop-color=\"#2ee8ff\" />\n    <stop offset=\"100%\" stop-color=\"#1d678c\" />\n</radialGradient>\n<rect x=\"1.5\" y=\"1.5\" width=\"14\" height=\"14\" rx=\"1\" ry=\"1\" stroke=\"#95e2d0\" stroke-width=\"1\" fill=\"#70b2ae\" />\n<rect x=\"3.5\" y=\"3.5\" width=\"3\" height=\"3\" stroke=\"#387274\" stroke-width=\"1\" fill=\"url(#wall-gimmick-g1)\" />\n<rect x=\"6.5\" y=\"3.5\" width=\"4\" height=\"3\" stroke=\"#387274\" stroke-width=\"1\" fill=\"url(#wall-gimmick-g1)\" />\n<rect x=\"10.5\" y=\"3.5\" width=\"3\" height=\"3\" stroke=\"#387274\" stroke-width=\"1\" fill=\"url(#wall-gimmick-g1)\" />\n<rect x=\"3.5\" y=\"6.5\" width=\"5\" height=\"4\" stroke=\"#387274\" stroke-width=\"1\" fill=\"url(#wall-gimmick-g1)\" />\n<rect x=\"8.5\" y=\"6.5\" width=\"5\" height=\"4\" stroke=\"#387274\" stroke-width=\"1\" fill=\"url(#wall-gimmick-g1)\" />\n<rect x=\"3.5\" y=\"10.5\" width=\"3\" height=\"3\" stroke=\"#387274\" stroke-width=\"1\" fill=\"url(#wall-gimmick-g2)\" />\n<rect x=\"6.5\" y=\"10.5\" width=\"4\" height=\"3\" stroke=\"#387274\" stroke-width=\"1\" fill=\"url(#wall-gimmick-g2)\" />\n<rect x=\"10.5\" y=\"10.5\" width=\"3\" height=\"3\" stroke=\"#387274\" stroke-width=\"1\" fill=\"url(#wall-gimmick-g2)\" />\n<circle cx=\"8.5\" cy=\"8.5\" r=\"3\" fill=\"url(#wall-gimmick-g3)\" />"]
[null,"crystal","Crystal","CRTL",1,1,"<linearGradient id=\"crystal-g1\" x1=\"0\" y1=\"0\" x2=\"0\" y2=\"100%\">\n    <stop offset=\"0.0\" stop-color=\"#bdf8f6\" />\n    <stop offset=\"0.5\" stop-color=\"#5173a1\" />\n</linearGradient>\n<linearGradient id=\"crystal-g2\" x1=\"0\" y1=\"0\" x2=\"0\" y2=\"100%\">\n    <stop offset=\"0.0\" stop-color=\"#80c8d6\" />\n    <stop offset=\"1.0\" stop-color=\"#5173a1\" />\n</linearGradient>\n<linearGradient id=\"crystal-g3\" x1=\"0\" y1=\"0\" x2=\"0\" y2=\"100%\">\n    <stop offset=\"0.0\" stop-color=\"#e4f9ff\" />\n    <stop offset=\"1.0\" stop-color=\"#4cc8ff\" />\n</linearGradient>\n<linearGradient id=\"crystal-g4\" x1=\"0\" y1=\"0\" x2=\"0\" y2=\"100%\">\n    <stop offset=\"0.0\" stop-color=\"#caf7ff\" />\n    <stop offset=\"1.0\" stop-color=\"#7e8dde\" />\n</linearGradient>\n<linearGradient id=\"crystal-g5\" x1=\"0\" y1=\"0\" x2=\"100%\" y2=\"0\">\n    <stop offset=\"0.0\" stop-color=\"#80b4fd\" />\n    <stop offset=\"1.0\" stop-color=\"#b1ffff\" />\n</linearGradient>\n<path d=\"M5.5,16.5 l3,-14 l3,-2 l0,3 l-1,13\" stroke=\"#9fb6a2\" stroke-width=\"1\" fill=\"url(#crystal-g1)\" />\n<path d=\"M5.5,12.5 l8,-8 l1,0 l0,3 l-5,5\" stroke=\"#1892d1\" stroke-width=\"1\" fill=\"url(#crystal-g2)\" />\n<path d=\"M7.5,13.5 l-7,-7 l0,-4 l3,0 l5,7\" stroke=\"#1892d1\" stroke-width=\"1\" fill=\"url(#crystal-g3)\" />\n<path d=\"M4.5,16.5 l-4,-4 l1,-3 l3,0 l4,7 l-4,0\" stroke=\"#7e8dde\" stroke-width=\"1\" fill=\"url(#crystal-g1)\" />\n<path d=\"M6.5,16.5 l7,-7 l2,0 l0,3 l-5,4 l-4,0\" stroke=\"#5173a1\" stroke-width=\"1\" fill=\"url(#crystal-g4)\" />\n<path d=\"M7.5,16.5 l0,-7 l4,-2 l2,3 l-2,6 l-4,0\" stroke=\"#0562b0\" stroke-width=\"1\" fill=\"url(#crystal-g5)\" />"]
[null,"hole","Hole","HOLE",1,1,"<radialGradient id=\"hole-g1\" gradientUnits=\"userSpaceOnUse\" cx=\"8.5\" cy=\"8.5\" fx=\"8.5\" fy=\"8.5\" r=\"7.5\">\n    <stop offset=\"40%\" stop-color=\"#102838\"/>\n    <stop offset=\"75%\" stop-color=\"#50c8e0\"/>\n</radialGradient>\n<circle cx=\"8.5\" cy=\"8.5\" r=\"7.5\" fill=\"url(#hole-g1)\" />\n"]
[null,"direction-up","Direction(up)","DRCu",0,0,"<path d=\"M8.5,-2.5 l-5,5 l10,0 l-5,-5\" stroke=\"#b09723\" stroke-width=\"1\" fill=\"#fff443\" />"]
[null,"direction-down","Direction(down)","DRCd",0,0,"<path d=\"M8.5,19.5 l-5,-5 l10,0 l-5,5\" stroke=\"#b09723\" stroke-width=\"1\" fill=\"#fff443\" />"]
[null,"direction-left","Direction(left)","DRCl",0,0,"<path d=\"M-2.5,8.5 l5,5 l0,-10 l-5,5\" stroke=\"#b09723\" stroke-width=\"1\" fill=\"#fff443\" />"]
[null,"direction-right","Direction(right)","DRCr",0,0,"<path d=\"M19.5,8.5 l-5,-5 l0,10 l5,-5\" stroke=\"#b09723\" stroke-width=\"1\" fill=\"#fff443\" />"]
[]
[]
[]
[null,"Balloon direction"]
[null,"値"]
[]
[null,"↖"]
[null,"↗"]
[null,"↙"]
[null,"↘"]
[null,"←"]
[null,"→"]
[]
[]
[]
[null,"Shape"]
[null,"値"]
[]
[null,"Line"]
[null,"Arrow"]
[null,"Rectangle（fill）"]
[null,"Rectangle"]
[null,"Warp"]
[null,"Dot line"]
[null,"Arrow（Dot）"]
[]
[]
[]
[null,"Coordinates/Color etc"]
[null,"Property","Value"]
[null,"Whole"]
[null,"Offset X",150,"(0-999)"]
[null,"Offset Y",60,"(0-999)"]
[null,"Title color","#000000"]
[null,"Title font size",18,"(1-99)"]
[null,"Cell"]
[null,"Cell width",17,"(1-99)"]
[null,"Cell height",17,"(1-99)"]
[null,"Horizontal cell count",35,"(1-130)"]
[null,"Vertical cell count",30,"(1-130)"]
[null,"Fill opacity",0.65,"(0.0-1.0)"]
[null,"Border line color","#05383b"]
[null,"Border line width",2,"(0-9)"]
[null,"Border line fill",1,"(0 or 1)"]
[null,"Balloon"]
[null,"Balloon text color","#9a0079"]
[null,"Balloon font size",10,"(1-99)"]
[null,"Balloon line length",17,"(0-99)"]
[null,"Background"]
[null,"Background color","#fff9d8"]
[null,"Minor tick color","#efd6a6"]
[null,"Major tick color","#d7b985"]
[null,"Guide"]
[null,"Guide background color","#774411"]
[null,"Guide text color","#e6d780"]
[null,"Guide border color"]
[null,"Guide font size",12,"(0-99  0:No guide)"]
[null,"Layer select"]
[null,"Layer background color","#438bbd"]
[null,"Layer text color","#c1fcff"]
[null,"Selected background","#e9696a"]
[null,"Selected text","#ffe9a7"]
[null,"Border color","#044379"]
[null,"Font size",13,"(1-99)"]
[null,"Floor select"]
[null,"Floor select width",180,"(1-999)"]
[null,"Background color","#cfffff"]
[null,"Text color","#004d8c"]
[null,"Disabled background","#9bbfbf"]
[null,"Disabled text","#002a4d"]
[null,"Selected background","#ff8389"]
[null,"Selected text","#fffddb"]
[null,"Font size",12,"(1-99)"]
[null,"Count per page",16,"(1-99)"]
[null,"Reference"]
[null,"Link color","blue"]
[null,"Link list width","180","(0-999)"]
[]
[]
[]
[null,"Addition to stylesheet"]
[null,"span.reference-title{\n    color: black;\n    font-size: 12pt;\n    font-weight: bold;\n}\n\ntable.reference{\n    background-color: white;\n    border: 1px solid #002a4d;\n    border-collapse: collapse;\n    width: 100%;\n}\n\ntable.reference tr th{\n    background-color: #438bbd;\n    border: 1px solid #002a4d;\n    color: #ffe9a7;\n    font-size: 9pt;\n    font-weight: bold;\n    text-align: center;\n    vertical-align: middle;\n}\n\ntable.reference tr td{\n    background-color: white;\n    border: 1px solid #002a4d;\n    color: black;\n    font-size: 9pt;\n}"]
[]
[null,"Addition to SVG"]
[null,"<g id=\"icon-fire\">\n    <radialGradient id=\"icon-fire-g1\" cx=\"8\" cy=\"12\" fx=\"8\" fy=\"14\" r=\"6\" gradientUnits=\"userSpaceOnUse\">\n        <stop offset=\"0%\" stop-color=\"#ffff00\" />\n        <stop offset=\"100%\" stop-color=\"#ff0000\" />\n    </radialGradient>\n    <path d=\"M 5 0 C 6 5 4 6 3 9.5 A 5 5 0 0 0 3 11 A 5 5 0 0 0 8 16 A 5 5 0 0 0 13 11 C 13 8 10 4 5 0\" stroke=\"none\" fill=\"url(#icon-fire-g1)\" />\n</g>\n<g id=\"icon-ice\">\n    <path d=\"M 11.5,12 v -2 m 2,-1.5 -2,1 m 1.5,3.5 v -2.5 m 2,-1 -2,1 m 1.5,1 -4.5,-2.5 v 0 0 m -5.5,3 v -2 m -2,-1.5 2,1 m -1.5,3.5 v -2.5 m -2,-1 2,1 m -1.5,1 4.5,-2.5 v 0 0 m 5.5,-5 v 2 m 2,1.5 -2,-1 m 1.5,-3.5 v 2.5 m 2,1 -2,-1 m 1.5,-1 -4.5,2.5 v 0 0 m -2,3 -1.73,-1 v -2 l 1.73,-1 1.7,1 v 2 z m 0,-9 0.1,5 v 0 h -0.1 m -2,-4.5 c 2,1 2,1 2,1 m 2,-1 c -2,1 -2,1 -2,1 m -2,1 c 2,1 2,1 2,1 m 2,-1 c -2,1 -2,1 -2,1 m -3.5,-0.5 v 2 m -2,1.5 2,-1 m -1.5,-3.5 v 2.5 m -2,1 2,-1 m -1.5,-1 4.5,2.5 v 0 0 m 2,8 c 0,-5 0,-5 0,-5 v 0 0 m -2,4.5 c 2,-1 2,-1 2,-1 m 2,1 c -2,-1 -2,-1 -2,-1 m -2,-1 c 2,-1 2,-1 2,-1 m 2,1 c -2,-1 -2,-1 -2,-1\" stroke=\"#00ffff\" stroke-width=\"1\" fill=\"none\" />\n</g>\n<g id=\"icon-thunder\">\n    <path d=\"m 12,1 -10,8 6,0.5 -4,5.5 10,-8 -6,-0.5\" stroke=\"none\" fill=\"#ffff00\" />\n</g>\n<g id=\"icon-slash\">\n    <path d=\"m 13,0 c -5.5,5 -8,9.5 -10,16 4.5,-4.5 7.5,-8.5 10,-16\" stroke=\"none\" fill=\"#ffffff\" />\n</g>\n<g id=\"icon-stab\">\n    <linearGradient id=\"icon-stab-g1\" x1=\"8\" y1=\"8\" x2=\"13\" y2=\"8\" gradientUnits=\"userSpaceOnUse\">\n        <stop offset=\"0%\" stop-color=\"rgba(255,255,255,1)\" />\n        <stop offset=\"100%\" stop-color=\"rgba(255,255,255,0)\" />\n    </linearGradient>\n    <path d=\"m 1,8 5,-3 v 6\" stroke=\"none\" fill=\"#ffffff\" />\n    <rect x=\"8\" y=\"7\" width=\"8\" height=\"2\" stroke=\"none\" fill=\"#ffffff\" />\n    <path d=\"m 8,4 v 8 l 5,3 v -14 z\" stroke=\"none\" fill=\"url(#icon-stab-g1)\" />\n</g>\n<g id=\"icon-bash\">\n    <radialGradient id=\"icon-bash-g1\" cx=\"1\" cy=\"15\" fx=\"1\" fy=\"15\" r=\"32\" gradientUnits=\"userSpaceOnUse\">\n        <stop offset=\"0%\" stop-color=\"rgba(255,255,255,1)\" />\n        <stop offset=\"100%\" stop-color=\"rgba(255,255,255,0)\" />\n    </radialGradient>\n    <path d=\"M 4.25,7.01 A 5.75,6.03 0 0 0 2,7.5 V 15 H 9.67 A 5.75,6.03 0 0 0 10,13 5.75,6.03 0 0 0 4.25,7.01 Z\" stroke=\"none\" fill=\"#ffffff\" />\n    <path d=\"M 7.35,1.86 3.18,8.42 2.1,2.42 V 15 H 14.5 L 8.63,14 15.2,9.71 7.6,11.5 12,5 5.69,9.47 Z\" stroke=\"none\" fill=\"url(#icon-bash-g1)\" />\n</g>\n<g id=\"icon-stun\">\n    <radialGradient id=\"icon-stun-g1\" cx=\"14\" cy=\"14\" fx=\"14\" fy=\"14\" r=\"10\" gradientUnits=\"userSpaceOnUse\">\n        <stop offset=\"0%\" stop-color=\"#ffffff\" />\n        <stop offset=\"100%\" stop-color=\"#ffcc00\" />\n    </radialGradient>\n    <path d=\"m 15.1,1 v 14 h -14.1 l 3,-2 -3,-3 5,-1 -4,-7 7,4 1,-5 3,3\" stroke=\"none\" fill=\"url(#icon-stun-g1)\" />\n</g>\n<g id=\"icon-death\">\n    <path d=\"m 2,15 v -11 c 0,-1.5 2,-3 3,-3 h 6 c 1.3,0 3,1.5 3,3 l 0,11\" stroke=\"#000000\" stroke-width=\"0.5\" fill=\"#a0a0a0\" />\n    <rect x=\"5\" y=\"6\" width=\"6\" height=\"1\" stroke=\"none\" fill=\"#000000\" />\n    <rect x=\"7.5\" y=\"3\" width=\"1\" height=\"9\" stroke=\"none\" fill=\"#000000\" />\n    <rect x=\"1\" y=\"14\" width=\"14\" height=\"1\" stroke=\"none\" fill=\"#404040\" />\n</g>\n<g id=\"icon-petrification\">\n    <path d=\"m 5,2 -3,2 -1,5 2,4 6,1 6,-4 -2,-5 -5,-3\" stroke=\"none\" fill=\"#787878\" />\n    <path d=\"m 4,10 -1,3 6,1 6,-4 h -11 v 0\" stroke=\"none\" fill=\"#282828\" />\n    <path d=\"m 13,5 -4,3 6,2\" stroke=\"none\" fill=\"#505050\" />\n    <path d=\"m 5,4 -1,2 v 4 l 5,-2 z\" stroke=\"none\" fill=\"#a0a0a0\" />\n    <path d=\"m 5,2 v 2 l 4,4 -1,-6 h -3\" stroke=\"none\" fill=\"#c8c8c8\" />\n    <path d=\"m 5,2 -3,2 2,2 1,-2\" stroke=\"none\" fill=\"#dedede\" />\n</g>\n<g id=\"icon-curse\">\n    <radialGradient id=\"icon-curse-g1\" cx=\"8\" cy=\"4\" fx=\"8\" fy=\"4\" r=\"15\" gradientUnits=\"userSpaceOnUse\">\n        <stop offset=\"0%\" stop-color=\"#ffd5f6\" />\n        <stop offset=\"75%\" stop-color=\"#d400aa\" />\n    </radialGradient>\n    <path d=\"M 8 1 A 7 5.38 0 0 0 1 6.38 A 7 5.38 0 0 0 1.77 8.84 A 7 3 0 0 0 1 10.2 A 7 3 0 0 0 4.06 12.7 A 4 2.75 0 0 0 8 14.9 A 4 2.75 0 0 0 11.9 12.7 A 7 3 0 0 0 15 10.2 A 7 3 0 0 0 14.2 8.83 A 7 5.38 0 0 0 15 6.38 A 7 5.38 0 0 0 8 1\" stroke=\"none\" fill=\"url(#icon-curse-g1)\" />\n    <circle cx=\"5\" cy=\"7\" r=\"2\" stroke=\"none\" fill=\"#2b0022\" />\n    <circle cx=\"11\" cy=\"7\" r=\"2\" stroke=\"none\" fill=\"#2b0022\" />\n    <path d=\"m 8,9 -1,3 h 2\" stroke=\"none\" fill=\"#2b0022\" />\n</g>\n<g id=\"icon-sleep\">\n    <path d=\"m 1,3.5 4,-2 -2,10 4,-2 m 0,-4 3,-1 -2,9 3,-1 m 1,-4 h 3 l -3,6 h 3\" stroke=\"#ffffff\" stroke-width=\"1\" fill=\"none\" />\n</g>\n<g id=\"icon-panic\">\n    <ellipse cx=\"8\" cy=\"8\" rx=\"6\" ry=\"5\" stroke=\"none\" fill=\"#ff80e5\" />\n    <path d=\"m 14,13 -3.5,-1 2.5,-2.5\" stroke=\"none\" fill=\"#ff80e5\" />\n    <path d=\"M 8.5,9 c 0.45,0 0.22,-0.61 0,-0.75 -0.61,-0.38 -1.32,0.18 -1.5,0.76 -0.33,1.04 0.52,1.99 1.51,2.19 1.46,0.4 2.79,-0.81 2.99,-2.21 0.3,-1.87 -1.2,-3.52 -3.02,-3.74 -2.27,-0.28 -4.26,1.55 -4.48,3.77\" stroke=\"#ffffff\" stroke-width=\"1\" stroke-linecap=\"round\" fill=\"none\" />\n</g>\n<g id=\"icon-paralysis\">\n    <path d=\"m 3,3 v 3 h 2 v 3 h 2 v 3 h 2 v 3\" stroke=\"#ffff00\" stroke-width=\"1\" fill=\"none\" />\n    <path d=\"m 7,1 v 3 h 2 v 3 h 2 v 3 h 2 v 3\" stroke=\"#ffff00\" stroke-width=\"1\" fill=\"none\" />\n</g>\n<g id=\"icon-poison\">\n    <radialGradient id=\"icon-poison-g1\" cx=\"12\" cy=\"12\" fx=\"12\" fy=\"12\" r=\"3\" gradientUnits=\"userSpaceOnUse\">\n        <stop offset=\"0%\" stop-color=\"#aade87\" />\n        <stop offset=\"50%\" stop-color=\"#2d5016\" />\n    </radialGradient>\n    <radialGradient id=\"icon-poison-g2\" cx=\"10\" cy=\"4\" fx=\"10\" fy=\"4\" r=\"6\" gradientUnits=\"userSpaceOnUse\">\n        <stop offset=\"0%\" stop-color=\"#aade87\" />\n        <stop offset=\"50%\" stop-color=\"#2d5016\" />\n    </radialGradient>\n    <radialGradient id=\"icon-poison-g3\" cx=\"4\" cy=\"8\" fx=\"4\" fy=\"8\" r=\"9\" gradientUnits=\"userSpaceOnUse\">\n        <stop offset=\"0%\" stop-color=\"#aade87\" />\n        <stop offset=\"50%\" stop-color=\"#2d5016\" />\n    </radialGradient>\n    <circle cx=\"13\" cy=\"13\" r=\"2\" stroke=\"#aade87\" stroke-width=\"1\" fill=\"url(#icon-poison-g1)\" />\n    <circle cx=\"12\" cy=\"6\" r=\"4\" stroke=\"#aade87\" stroke-width=\"1\" fill=\"url(#icon-poison-g2)\" />\n    <circle cx=\"6\" cy=\"10\" r=\"5\" stroke=\"#aade87\" stroke-width=\"1\" fill=\"url(#icon-poison-g3)\" />\n</g>\n<g id=\"icon-blind\">\n    <linearGradient id=\"icon-blind-g1\" x1=\"8\" y1=\"5\" x2=\"8\" y2=\"12\" gradientUnits=\"userSpaceOnUse\">\n        <stop offset=\"0%\" stop-color=\"#e9afdd\" />\n        <stop offset=\"50%\" stop-color=\"#782167\" />\n    </linearGradient>\n    <linearGradient id=\"icon-blind-g2\" x1=\"8\" y1=\"12\" x2=\"8\" y2=\"5\" gradientUnits=\"userSpaceOnUse\">\n        <stop offset=\"0%\" stop-color=\"#c837ab\" />\n        <stop offset=\"100%\" stop-color=\"#de87ce\" />\n    </linearGradient>\n    <path d=\"m 2.5,10.5 5.5,-5 -4,6 4,-6 -2,7 2,-7 V 13 5.5 l 2,7 -2,-7 4,6 -4,-6 5.5,5\" stroke=\"#782167\" stroke-width=\"1\" stroke-linecap=\"round\" stroke-linejoin=\"round\" fill=\"none\" />\n    <path d=\"M 2,7 C 6,4.33 10,4.33 14,7 9.82,13.4 5.85,12.6 2,7 Z\" stroke=\"url(#icon-blind-g1)\" stroke-width=\"1\" fill=\"url(#icon-blind-g2)\" />\n</g>\n<g id=\"icon-head\">\n    <circle cx=\"8\" cy=\"8\" r=\"6\" stroke=\"#0088aa\" fill=\"#55ddff\" />\n    <ellipse cx=\"6\" cy=\"7\" rx=\"1\" ry=\"1.5\" stroke=\"none\" fill=\"#0088aa\" />\n    <ellipse cx=\"10\" cy=\"7\" rx=\"1\" ry=\"1.5\" stroke=\"none\" fill=\"#0088aa\" />\n    <line x1=\"7\" y1=\"11\" x2=\"9\" y2=\"11\" stroke=\"#0088aa\" stroke-width=\"1\" stroke-linecap=\"round\" />\n</g>\n<g id=\"icon-arm\">\n    <path d=\"M 3,4 C 1.61,3.99 1.02,4.72 1,6 v 3 c -0.05,3 1.65,3.9 4,4 h 1 v 2 h 5 c 0,-2 0,-2 0,-2 2.2,-0.2 4,-0.8 4,-4 V 4 Z\" stroke=\"#803300\" stroke-width=\"0.5\" fill=\"#ffe6d5\" />\n    <path d=\"m 13,3 v 4 c 0.7,0.67 1.3,0.67 2,0 V 3 C 14.2,2.21 13.6,2.47 13,3 Z\" stroke=\"#803300\" stroke-width=\"0.5\" fill=\"#ffe6d5\" />\n    <path d=\"m 9.75,2.25 v 6 c 1.05,1.33 2.05,1.33 3.05,0 v -6 C 11.7,0.743 10.7,1.1 9.75,2.25 Z\" stroke=\"#803300\" stroke-width=\"0.5\" fill=\"#ffe6d5\" />\n    <path d=\"m 6.75,2.25 v 6 c 1,1.35 2,1.35 3,0 v -6 c -1.1,-1.507 -2.1,-1.15 -3,0 z\" stroke=\"#803300\" stroke-width=\"0.5\" fill=\"#ffe6d5\" />\n    <path d=\"m 3.75,2.25 v 6 c 1,1.33 2,1.33 3,0 v -6 c -1.09,-1.507 -2.07,-1.15 -3,0\" stroke=\"#803300\" stroke-width=\"0.5\" fill=\"#ffe6d5\" />\n    <path d=\"M 3,4 H 5 C 6.79,5.26 7.2,6.57 5,8 H 3\" stroke=\"#803300\" stroke-width=\"0.5\" fill=\"#ffe6d5\" />\n</g>\n<g id=\"icon-leg\">\n    <path d=\"M 9,2 V 9 H 7 C 6.14,8.55 5.27,8.15 4,9 1.02,11.5 0.331,14 4,14 h 2 c 2.2,-0.6 3.96,-0.7 5,0 h 3 V 2 Z\" stroke=\"#d40000\" stroke-width=\"1\" fill=\"#ffaaaa\" />\n</g>"]

{"sheet":"1-1-1","index":1,"n_rows":120,"n_cols":53,"rows_kept":120,"cut":false,"hidden":false,"merged":[[29,2,33,2],[0,23,1,27],[2,3,2,27],[2,28,2,37],[3,3,3,7],[3,8,3,12],[3,13,3,17],[3,18,3,22],[3,23,3,27],[3,28,3,32],[3,33,3,37],[4,2,8,2],[9,2,13,2],[14,2,18,2],[19,2,23,2],[24,2,28,2]]}
[null,null,null,null,null,null,null,null,null,null,null,null,null,null,null,null,null,null,null,null,null,null,null,"Palette"]
[null,null,null,null,null,null,null,null,null,null,null,null,null,null,null,null,null,null,null,null,null,null,null,null,null,null,null,null,null,null,null,null,null,null,null,null,null,null,null,null,null,null,null,null,null,"[A-1](a-1)"]
["Toolbar",null,null,"Level 1-1 First",null,null,null,null,null,null,null,null,null,null,null,null,null,null,null,null,null,null,null,null,null,null,null,null,"1-1 1st",null,null,null,null,null,null,null,null,null,null,"Icon list",null,null,null,null,null,"Shape list"]
[null,null,null,1,null,null,null,null,2,null,null,null,null,3,null,null,null,null,4,null,null,null,null,5,null,null,null,null,6,null,null,null,null,7,null,null,null,null,null,"Coordinates","Icon","Layer","Balloon direction","Text",null,"Coordinates","Shape","Layer","Color","X","Y"]
[null,null,"A",null,null,null,null,null,null,null,null,null,null,null,null,null,null,null,null,null,null,null,null,null,null,null,null,null,null,null,null,null,null,null,null,null,null,null,null,"[A-5](e-3)","Question","Treasure box","↗","Coin",null,"[E-5](d-2)","Arrow","Gimmick","#0000ff",0,5,null,"Enemies"]
[null,null,null,null,null,null,null,null,null,null,null,null,null,null,null,null,null,null,null,null,null,null,null,null,null,null,null,null,null,null,null,null,null,null,null,null,null,null,null,"[B-4](d-2)","Question","Treasure box","↖","Coin",null,"[E-5](d-3)","Arrow","Gimmick","#0000ff",0,5,null,"<a>Little Goomba</a>"]
[null,null,null,null,null,null,null,null,null,null,null,null,null,null,null,null,null,null,null,null,null,null,null,null,null,null,null,null,null,null,null,null,null,null,null,null,null,null,null,"[B-5](d-2)","Question","Treasure box","↘","Mario Mushroom\nor Fire Flower"]
[null,null,null,null,null,null,null,null,null,null,null,null,null,null,null,null,null,null,null,null,null,null,null,null,null,null,null,null,null,null,null,null,null,null,null,null,null,null,null,"[B-5](d-4)","Question","Treasure box","↖"]
[null,null,null,null,null,null,null,null,null,null,null,null,null,null,null,null,null,null,null,null,null,null,null,null,null,"?",null,null,null,null,null,null,null,null,null,null,null,null,null,"[C-5](b-3)","F.O.E","F.O.E","↗","<a>Little Goomba</a>"]
[null,null,"B",null,null,null,null,null,null,null,null,null,null,null,null,null,null,null,null,null,null,null,null,null,null,null,null,null,null,null,null,null,null,null,null,null,null,null,null,"[E-6](c-4)","Note","Treasure box","↗","1 up Mashroom"]
[null,null,null,null,null,null,null,null,null,null,null,null,null,null,null,null,null,null,null,null,null,null,null,null,null,null,null,null,null,null,null,null,null,null,null,null,null,null,null,"[F-1](b-5)","F.O.E","F.O.E","↖","<a>Little Goomba</a>"]
[null,null,null,null,null,null,null,null,null,null,null,null,null,null,null,null,null,null,null,null,null,null,null,null,null,null,null,null,null,null,null,null,null,null,null,null,null,null,null,"[F-4](b-1)","F.O.E","F.O.E","↖"]
[null,null,null,null,null,null,null,null,null,null,null,null,null,null,null,null,null,null,null,"?",null,null,null,null,"?",null,"?",null,null,null,null,null,null,null,null,null,null,null,null,"[F-4](b-2)","F.O.E","F.O.E","↖"]
[null,null,null,null,null,null,null,null,null,null,null,null,null,null,null,null,null,null,null,null,null,null,null,null,null,null,null,null,null,null,null,null,null,null,null,null,null,null,null,null,""]
[null,null,"C",null,null,null,null,null,null,null,null,null,null,null,null,null,null,null,null,null,null,null,null,null,null,null,null,null,null,null,null,null,null,null,null,null,null,null,null,null,""]
[null,null,null,null,null,null,null,null,null,null,null,null,null,null,null,null,null,null,null,null,null,null,null,null,null,"FOE",null,null,null,null,null,null,null,null,null,null,null,null,null,null,""]
[null,null,null,null,null,null,null,null,null,null,null,null,null,null,null,null,null,null,null,null,null,null,null,null,null,null,null,null,null,null,null,null,null,null,null,null,null,null,null,null,""]
[null,null,null,null,null,null,null,null,null,null,null,null,null,null,null,null,null,null,null,null,null,null,null,null,null,null,null,null,null,null,null,null,null,null,null,null,null,null,null,null,""]
[null,null,null,null,null,null,null,null,null,null,null,null,null,null,null,null,null,null,null,null,null,null,null,null,null,null,null,null,null,null,null,null,null,null,null,null,null,null,null,null,""]
[null,null,"D",null,null,null,null,null,null,null,null,null,null,null,null,null,null,null,null,null,null,null,null,null,null,null,null,null,null,null,null,null,null,null,null,null,null,null,null,null,""]
[null,null,null,null,null,null,null,null,null,null,null,null,null,null,null,null,null,null,null,null,null,null,null,null,null,null,null,null,null,null,null,null,null,null,null,null,null,null,null,null,""]
[null,null,null,null,null,null,null,null,null,null,null,null,null,null,null,null,null,null,null,null,null,null,null,null,null,null,null,null,null,null,null,null,null,null,null,null,null,null,null,null,""]
[null,null,null,null,null,null,null,null,null,null,null,null,null,null,null,null,null,null,null,null,null,null,null,null,null,null,null,null,null,null,null,null,null,null,null,null,null,null,null,null,""]
[null,null,null,null,null,null,null,null,null,null,null,null,null,null,null,null,null,null,null,null,null,null,null,null,null,null,null,null,null,null,null,null,null,null,null,null,null,null,null,null,""]
[null,null,"Ｅ",null,null,null,null,null,null,null,null,null,null,null,null,null,null,null,null,null,null,null,null,null,null,null,null,null,null,null,null,null,null,null,null,null,null,null,null,null,""]
[null,null,null,null,null,null,null,null,null,null,null,null,null,null,null,null,null,null,null,null,null,null,null,null,null,null,null,null,null,null,null,null,null,null,null,null,null,null,null,null,""]
[null,null,null,null,null,null,null,null,null,null,null,null,null,null,null,null,null,null,null,null,null,null,null,null,null,null,null,null,null,null,null,"NOTE",null,null,null,null,null,null,null,null,""]
[null,null,null,null,null,null,null,null,null,null,null,null,null,null,null,null,null,null,null,null,null,null,null,null,null,null,null,null,null,null,null,null,null,null,null,null,null,null,null,null,""]
[null,null,null,null,null,null,null,null,null,null,null,null,null,null,null,null,null,null,null,null,null,null,null,null,null,null,null,null,null,null,null,null,null,null,null,null,null,null,null,null,""]
[null,null,"F",null,null,null,null,null,null,null,null,null,null,null,null,null,null,null,null,null,null,null,null,null,null,null,null,null,null,null,null,null,null,null,null,null,null,null,null,null,""]
[null,null,null,null,null,null,null,"FOE",null,null,null,null,null,null,null,null,null,null,"FOE","FOE",null,null,null,null,null,null,null,null,null,null,null,null,null,null,null,null,null,null,null,null,""]
[null,null,null,null,null,null,null,null,null,null,null,null,null,null,null,null,null,null,null,null,null,null,null,null,null,null,null,null,null,null,null,null,null,null,null,null,null,null,null,null,""]
[null,null,null,null,null,null,null,null,null,null,null,null,null,null,null,null,null,null,null,null,null,null,null,null,null,null,null,null,null,null,null,null,null,null,null,null,null,null,null,null,""]
[null,null,null,null,null,null,null,null,null,null,null,null,null,null,null,null,null,null,null,null,null,null,null,null,null,null,null,null,null,null,null,null,null,null,null,null,null,null,null,null,""]
[null,null,null,null,null,null,null,null,null,null,null,null,null,null,null,null,null,null,null,null,null,null,null,null,null,null,null,null,null,null,null,null,null,null,null,null,null,null,null,null,""]
[null,null,null,null,null,null,null,null,null,null,null,null,null,null,null,null,null,null,null,null,null,null,null,null,null,null,null,null,null,null,null,null,null,null,null,null,null,null,null,null,""]
[null,null,null,null,null,null,null,null,null,null,null,null,null,null,null,null,null,null,null,null,null,null,null,null,null,null,null,null,null,null,null,null,null,null,null,null,null,null,null,null,""]
[null,null,null,null,null,null,null,null,null,null,null,null,null,null,null,null,null,null,null,null,null,null,null,null,null,null,null,null,null,null,null,null,null,null,null,null,null,null,null,null,""]
[null,null,null,null,null,null,null,null,null,null,null,null,null,null,null,null,null,null,null,null,null,null,null,null,null,null,null,null,null,null,null,null,null,null,null,null,null,null,null,null,""]
[null,null,null,null,null,null,null,null,null,null,null,null,null,null,null,null,null,null,null,null,null,null,null,null,null,null,null,null,null,null,null,null,null,null,null,null,null,null,null,null,""]
[null,null,null,null,null,null,null,null,null,null,null,null,null,null,null,null,null,null,null,null,null,null,null,null,null,null,null,null,null,null,null,null,null,null,null,null,null,null,null,null,""]
[null,null,null,null,null,null,null,null,null,null,null,null,null,null,null,null,null,null,null,null,null,null,null,null,null,null,null,null,null,null,null,null,null,null,null,null,null,null,null,null,""]
[null,null,null,null,null,null,null,null,null,null,null,null,null,null,null,null,null,null,null,null,null,null,null,null,null,null,null,null,null,null,null,null,null,null,null,null,null,null,null,null,""]
[null,null,null,null,null,null,null,null,null,null,null,null,null,null,null,null,null,null,null,null,null,null,null,null,null,null,null,null,null,null,null,null,null,null,null,null,null,null,null,null,""]
[null,null,null,null,null,null,null,null,null,null,null,null,null,null,null,null,null,null,null,null,null,null,null,null,null,null,null,null,null,null,null,null,null,null,null,null,null,null,null,null,""]
[null,null,null,null,null,null,null,null,null,null,null,null,null,null,null,null,null,null,null,null,null,null,null,null,null,null,null,null,null,null,null,null,null,null,null,null,null,null,null,null,""]
[null,null,null,null,null,null,null,null,null,null,null,null,null,null,null,null,null,null,null,null,null,null,null,null,null,null,null,null,null,null,null,null,null,null,null,null,null,null,null,null,""]
[null,null,null,null,null,null,null,null,null,null,null,null,null,null,null,null,null,null,null,null,null,null,null,null,null,null,null,null,null,null,null,null,null,null,null,null,null,null,null,null,""]
[null,null,null,null,null,null,null,null,null,null,null,null,null,null,null,null,null,null,null,null,null,null,null,null,null,null,null,null,null,null,null,null,null,null,null,null,null,null,null,null,""]
[null,null,null,null,null,null,null,null,null,null,null,null,null,null,null,null,null,null,null,null,null,null,null,null,null,null,null,null,null,null,null,null,null,null,null,null,null,null,null,null,""]
[null,null,null,null,null,null,null,null,null,null,null,null,null,null,null,null,null,null,null,null,null,null,null,null,null,null,null,null,null,null,null,null,null,null,null,null,null,null,null,null,""]
[null,null,null,null,null,null,null,null,null,null,null,null,null,null,null,null,null,null,null,null,null,null,null,null,null,null,null,null,null,null,null,null,null,null,null,null,null,null,null,null,""]
[null,null,null,null,null,null,null,null,null,null,null,null,null,null,null,null,null,null,null,null,null,null,null,null,null,null,null,null,null,null,null,null,null,null,null,null,null,null,null,null,""]
[null,null,null,null,null,null,null,null,null,null,null,null,null,null,null,null,null,null,null,null,null,null,null,null,null,null,null,null,null,null,null,null,null,null,null,null,null,null,null,null,""]
[null,null,null,null,null,null,null,null,null,null,null,null,null,null,null,null,null,null,null,null,null,null,null,null,null,null,null,null,null,null,null,null,null,null,null,null,null,null,null,null,""]
[null,null,null,null,null,null,null,null,null,null,null,null,null,null,null,null,null,null,null,null,null,null,null,null,null,null,null,null,null,null,null,null,null,null,null,null,null,null,null,null,""]
[null,null,null,null,null,null,null,null,null,null,null,null,null,null,null,null,null,null,null,null,null,null,null,null,null,null,null,null,null,null,null,null,null,null,null,null,null,null,null,null,""]
[null,null,null,null,null,null,null,null,null,null,null,null,null,null,null,null,null,null,null,null,null,null,null,null,null,null,null,null,null,null,null,null,null,null,null,null,null,null,null,null,""]
[null,null,null,null,null,null,null,null,null,null,null,null,null,null,null,null,null,null,null,null,null,null,null,null,null,null,null,null,null,null,null,null,null,null,null,null,null,null,null,null,""]
[null,null,null,null,null,null,null,null,null,null,null,null,null,null,null,null,null,null,null,null,null,null,null,null,null,null,null,null,null,null,null,null,null,null,null,null,null,null,null,null,""]
[null,null,null,null,null,null,null,null,null,null,null,null,null,null,null,null,null,null,null,null,null,null,null,null,null,null,null,null,null,null,null,null,null,null,null,null,null,null,null,null,""]
[null,null,null,null,null,null,null,null,null,null,null,null,null,null,null,null,null,null,null,null,null,null,null,null,null,null,null,null,null,null,null,null,null,null,null,null,null,null,null,null,""]
[null,null,null,null,null,null,null,null,null,null,null,null,null,null,null,null,null,null,null,null,null,null,null,null,null,null,null,null,null,null,null,null,null,null,null,null,null,null,null,null,""]
[null,null,null,null,null,null,null,null,null,null,null,null,null,null,null,null,null,null,null,null,null,null,null,null,null,null,null,null,null,null,null,null,null,null,null,null,null,null,null,null,""]
[null,null,null,null,null,null,null,null,null,null,null,null,null,null,null,null,null,null,null,null,null,null,null,null,null,null,null,null,null,null,null,null,null,null,null,null,null,null,null,null,""]
[null,null,null,null,null,null,null,null,null,null,null,null,null,null,null,null,null,null,null,null,null,null,null,null,null,null,null,null,null,null,null,null,null,null,null,null,null,null,null,null,""]
[null,null,null,null,null,null,null,null,null,null,null,null,null,null,null,null,null,null,null,null,null,null,null,null,null,null,null,null,null,null,null,null,null,null,null,null,null,null,null,null,""]
[null,null,null,null,null,null,null,null,null,null,null,null,null,null,null,null,null,null,null,null,null,null,null,null,null,null,null,null,null,null,null,null,null,null,null,null,null,null,null,null,""]
[null,null,null,null,null,null,null,null,null,null,null,null,null,null,null,null,null,null,null,null,null,null,null,null,null,null,null,null,null,null,null,null,null,null,null,null,null,null,null,null,""]
[null,null,null,null,null,null,null,null,null,null,null,null,null,null,null,null,null,null,null,null,null,null,null,null,null,null,null,null,null,null,null,null,null,null,null,null,null,null,null,null,""]
[null,null,null,null,null,null,null,null,null,null,null,null,null,null,null,null,null,null,null,null,null,null,null,null,null,null,null,null,null,null,null,null,null,null,null,null,null,null,null,null,""]
[null,null,null,null,null,null,null,null,null,null,null,null,null,null,null,null,null,null,null,null,null,null,null,null,null,null,null,null,null,null,null,null,null,null,null,null,null,null,null,null,""]
[null,null,null,null,null,null,null,null,null,null,null,null,null,null,null,null,null,null,null,null,null,null,null,null,null,null,null,null,null,null,null,null,null,null,null,null,null,null,null,null,""]
[null,null,null,null,null,null,null,null,null,null,null,null,null,null,null,null,null,null,null,null,null,null,null,null,null,null,null,null,null,null,null,null,null,null,null,null,null,null,null,null,""]
[null,null,null,null,null,null,null,null,null,null,null,null,null,null,null,null,null,null,null,null,null,null,null,null,null,null,null,null,null,null,null,null,null,null,null,null,null,null,null,null,""]
[null,null,null,null,null,null,null,null,null,null,null,null,null,null,null,null,null,null,null,null,null,null,null,null,null,null,null,null,null,null,null,null,null,null,null,null,null,null,null,null,""]
[null,null,null,null,null,null,null,null,null,null,null,null,null,null,null,null,null,null,null,null,null,null,null,null,null,null,null,null,null,null,null,null,null,null,null,null,null,null,null,null,""]
[null,null,null,null,null,null,null,null,null,null,null,null,null,null,null,null,null,null,null,null,null,null,null,null,null,null,null,null,null,null,null,null,null,null,null,null,null,null,null,null,""]
[null,null,null,null,null,null,null,null,null,null,null,null,null,null,null,null,null,null,null,null,null,null,null,null,null,null,null,null,null,null,null,null,null,null,null,null,null,null,null,null,""]
[null,null,null,null,null,null,null,null,null,null,null,null,null,null,null,null,null,null,null,null,null,null,null,null,null,null,null,null,null,null,null,null,null,null,null,null,null,null,null,null,""]
[null,null,null,null,null,null,null,null,null,null,null,null,null,null,null,null,null,null,null,null,null,null,null,null,null,null,null,null,null,null,null,null,null,null,null,null,null,null,null,null,""]
[null,null,null,null,null,null,null,null,null,null,null,null,null,null,null,null,null,null,null,null,null,null,null,null,null,null,null,null,null,null,null,null,null,null,null,null,null,null,null,null,""]
[null,null,null,null,null,null,null,null,null,null,null,null,null,null,null,null,null,null,null,null,null,null,null,null,null,null,null,null,null,null,null,null,null,null,null,null,null,null,null,null,""]
[null,null,null,null,null,null,null,null,null,null,null,null,null,null,null,null,null,null,null,null,null,null,null,null,null,null,null,null,null,null,null,null,null,null,null,null,null,null,null,null,""]
[null,null,null,null,null,null,null,null,null,null,null,null,null,null,null,null,null,null,null,null,null,null,null,null,null,null,null,null,null,null,null,null,null,null,null,null,null,null,null,null,""]
[null,null,null,null,null,null,null,null,null,null,null,null,null,null,null,null,null,null,null,null,null,null,null,null,null,null,null,null,null,null,null,null,null,null,null,null,null,null,null,null,""]
[null,null,null,null,null,null,null,null,null,null,null,null,null,null,null,null,null,null,null,null,null,null,null,null,null,null,null,null,null,null,null,null,null,null,null,null,null,null,null,null,""]
[null,null,null,null,null,null,null,null,null,null,null,null,null,null,null,null,null,null,null,null,null,null,null,null,null,null,null,null,null,null,null,null,null,null,null,null,null,null,null,null,""]
[null,null,null,null,null,null,null,null,null,null,null,null,null,null,null,null,null,null,null,null,null,null,null,null,null,null,null,null,null,null,null,null,null,null,null,null,null,null,null,null,""]
[null,null,null,null,null,null,null,null,null,null,null,null,null,null,null,null,null,null,null,null,null,null,null,null,null,null,null,null,null,null,null,null,null,null,null,null,null,null,null,null,""]
[null,null,null,null,null,null,null,null,null,null,null,null,null,null,null,null,null,null,null,null,null,null,null,null,null,null,null,null,null,null,null,null,null,null,null,null,null,null,null,null,""]
[null,null,null,null,null,null,null,null,null,null,null,null,null,null,null,null,null,null,null,null,null,null,null,null,null,null,null,null,null,null,null,null,null,null,null,null,null,null,null,null,""]
[null,null,null,null,null,null,null,null,null,null,null,null,null,null,null,null,null,null,null,null,null,null,null,null,null,null,null,null,null,null,null,null,null,null,null,null,null,null,null,null,""]
[null,null,null,null,null,null,null,null,null,null,null,null,null,null,null,null,null,null,null,null,null,null,null,null,null,null,null,null,null,null,null,null,null,null,null,null,null,null,null,null,""]
[null,null,null,null,null,null,null,null,null,null,null,null,null,null,null,null,null,null,null,null,null,null,null,null,null,null,null,null,null,null,null,null,null,null,null,null,null,null,null,null,""]
[null,null,null,null,null,null,null,null,null,null,null,null,null,null,null,null,null,null,null,null,null,null,null,null,null,null,null,null,null,null,null,null,null,null,null,null,null,null,null,null,""]
[null,null,null,null,null,null,null,null,null,null,null,null,null,null,null,null,null,null,null,null,null,null,null,null,null,null,null,null,null,null,null,null,null,null,null,null,null,null,null,null,""]
[null,null,null,null,null,null,null,null,null,null,null,null,null,null,null,null,null,null,null,null,null,null,null,null,null,null,null,null,null,null,null,null,null,null,null,null,null,null,null,null,""]
[null,null,null,null,null,null,null,null,null,null,null,null,null,null,null,null,null,null,null,null,null,null,null,null,null,null,null,null,null,null,null,null,null,null,null,null,null,null,null,null,""]
[null,null,null,null,null,null,null,null,null,null,null,null,null,null,null,null,null,null,null,null,null,null,null,null,null,null,null,null,null,null,null,null,null,null,null,null,null,null,null,null,""]
[null,null,null,null,null,null,null,null,null,null,null,null,null,null,null,null,null,null,null,null,null,null,null,null,null,null,null,null,null,null,null,null,null,null,null,null,null,null,null,null,""]
[null,null,null,null,null,null,null,null,null,null,null,null,null,null,null,null,null,null,null,null,null,null,null,null,null,null,null,null,null,null,null,null,null,null,null,null,null,null,null,null,""]
[null,null,null,null,null,null,null,null,null,null,null,null,null,null,null,null,null,null,null,null,null,null,null,null,null,null,null,null,null,null,null,null,null,null,null,null,null,null,null,null,""]
[null,null,null,null,null,null,null,null,null,null,null,null,null,null,null,null,null,null,null,null,null,null,null,null,null,null,null,null,null,null,null,null,null,null,null,null,null,null,null,null,""]
[null,null,null,null,null,null,null,null,null,null,null,null,null,null,null,null,null,null,null,null,null,null,null,null,null,null,null,null,null,null,null,null,null,null,null,null,null,null,null,null,""]
[null,null,null,null,null,null,null,null,null,null,null,null,null,null,null,null,null,null,null,null,null,null,null,null,null,null,null,null,null,null,null,null,null,null,null,null,null,null,null,null,""]
[null,null,null,null,null,null,null,null,null,null,null,null,null,null,null,null,null,null,null,null,null,null,null,null,null,null,null,null,null,null,null,null,null,null,null,null,null,null,null,null,""]
[null,null,null,null,null,null,null,null,null,null,null,null,null,null,null,null,null,null,null,null,null,null,null,null,null,null,null,null,null,null,null,null,null,null,null,null,null,null,null,null,""]
[null,null,null,null,null,null,null,null,null,null,null,null,null,null,null,null,null,null,null,null,null,null,null,null,null,null,null,null,null,null,null,null,null,null,null,null,null,null,null,null,""]
[null,null,null,null,null,null,null,null,null,null,null,null,null,null,null,null,null,null,null,null,null,null,null,null,null,null,null,null,null,null,null,null,null,null,null,null,null,null,null,null,""]
[null,null,null,null,null,null,null,null,null,null,null,null,null,null,null,null,null,null,null,null,null,null,null,null,null,null,null,null,null,null,null,null,null,null,null,null,null,null,null,null,""]
[null,null,null,null,null,null,null,null,null,null,null,null,null,null,null,null,null,null,null,null,null,null,null,null,null,null,null,null,null,null,null,null,null,null,null,null,null,null,null,null,""]
[null,null,null,null,null,null,null,null,null,null,null,null,null,null,null,null,null,null,null,null,null,null,null,null,null,null,null,null,null,null,null,null,null,null,null,null,null,null,null,null,""]
[null,null,null,null,null,null,null,null,null,null,null,null,null,null,null,null,null,null,null,null,null,null,null,null,null,null,null,null,null,null,null,null,null,null,null,null,null,null,null,null,""]
[null,null,null,null,null,null,null,null,null,null,null,null,null,null,null,null,null,null,null,null,null,null,null,null,null,null,null,null,null,null,null,null,null,null,null,null,null,null,null,null,""]
[null,null,null,null,null,null,null,null,null,null,null,null,null,null,null,null,null,null,null,null,null,null,null,null,null,null,null,null,null,null,null,null,null,null,null,null,null,null,null,null,""]
[null,null,null,null,null,null,null,null,null,null,null,null,null,null,null,null,null,null,null,null,null,null,null,null,null,null,null,null,null,null,null,null,null,null,null,null,null,null,null,null,""]
[null,null,null,null,null,null,null,null,null,null,null,null,null,null,null,null,null,null,null,null,null,null,null,null,null,null,null,null,null,null,null,null,null,null,null,null,null,null,null,null,""]
[null,null,null,null,null,null,null,null,null,null,null,null,null,null,null,null,null,null,null,null,null,null,null,null,null,null,null,null,null,null,null,null,null,null,null,null,null,null,null,null,""]
[null,null,null,null,null,null,null,null,null,null,null,null,null,null,null,null,null,null,null,null,null,null,null,null,null,null,null,null,null,null,null,null,null,null,null,null,null,null,null,null,""]

{"sheet":"1-1-2","index":2,"n_rows":120,"n_cols":53,"rows_kept":120,"cut":false,"hidden":false,"merged":[[29,2,33,2],[0,23,1,27],[2,3,2,27],[2,28,2,37],[3,3,3,7],[3,8,3,12],[3,13,3,17],[3,18,3,22],[3,23,3,27],[3,28,3,32],[3,33,3,37],[4,2,8,2],[9,2,13,2],[14,2,18,2],[19,2,23,2],[24,2,28,2]]}
[null,null,null,null,null,null,null,null,null,null,null,null,null,null,null,null,null,null,null,null,null,null,null,"Palette"]
[null,null,null,null,null,null,null,null,null,null,null,null,null,null,null,null,null,null,null,null,null,null,null,null,null,null,null,null,null,null,null,null,null,null,null,null,null,null,null,null,null,null,null,null,null,"[A-1](a-1)"]
["Toolbar",null,null,"Level 1-1 Second",null,null,null,null,null,null,null,null,null,null,null,null,null,null,null,null,null,null,null,null,null,null,null,null,"1-1 2nd",null,null,null,null,null,null,null,null,null,null,"Icon list",null,null,null,null,null,"Shape list"]
[null,null,null,1,null,null,null,null,2,null,null,null,null,3,null,null,null,null,4,null,null,null,null,5,null,null,null,null,6,null,null,null,null,7,null,null,null,null,null,"Coordinates","Icon","Layer","Balloon direction","Text",null,"Coordinates","Shape","Layer","Color","X","Y"]
[null,null,"A",null,null,null,null,null,null,null,null,null,null,null,null,null,null,null,null,null,null,null,null,null,null,null,null,null,null,null,null,null,null,null,null,null,null,null,null,"[A-2](d-5)","F.O.E","F.O.E","↖","<a>Little Goomba</a>",null,null,null,null,null,null,null,null,"Enemies"]
[null,null,null,null,null,null,null,null,null,null,null,null,null,null,null,null,null,null,null,null,null,null,null,null,null,null,null,null,null,null,null,null,null,null,null,null,null,null,null,"[A-3](d-2)","F.O.E","F.O.E","↖",null,null,null,null,null,null,null,null,null,"<a>Little Goomba</a>"]
[null,null,null,null,null,null,null,null,null,null,null,null,null,null,null,null,null,null,null,null,null,null,null,null,null,null,null,null,null,null,null,null,null,null,null,null,null,null,null,"[A-5](e-4)","Question","Treasure box","↗","Coin",null,null,null,null,null,null,null,null,"<a>Koopa Troopa</a>"]
[null,null,null,null,null,null,null,null,null,null,null,null,"FOE",null,"FOE",null,null,null,null,null,null,null,null,null,null,null,null,null,null,null,null,null,null,null,null,null,null,null,null,"[B-2](d-3)","Question","Treasure box","↖","Mario Mushroom\nor Fire Flower"]
[null,null,null,null,null,null,null,null,null,null,null,null,null,null,null,null,null,null,null,null,null,null,null,null,null,null,"?",null,null,null,null,null,null,null,null,null,null,null,null,"[B-5](d-4)","Note","Treasure box","↗","Coin"]
[null,null,"B",null,null,null,null,null,null,null,null,null,null,null,null,null,null,null,null,null,null,null,null,null,null,null,null,null,null,null,null,null,null,null,null,null,null,null,null,"[B-7](d-1)","Note","Treasure box","↘","Starmaｎ"]
[null,null,null,null,null,null,null,null,null,null,null,null,null,null,null,null,null,null,null,null,null,null,null,null,null,null,null,null,null,null,null,null,null,null,null,null,null,null,null,"[C-6](b-2)","F.O.E","F.O.E","↗","<a>Little Goomba</a>"]
[null,null,null,null,null,null,null,null,null,null,null,null,null,null,null,null,null,null,null,null,null,null,null,null,null,null,null,null,null,null,null,null,null,null,null,null,null,null,null,"[C-6](b-3)","F.O.E","F.O.E","↗"]
[null,null,null,null,null,null,null,null,null,null,"?",null,null,null,null,null,null,null,null,null,null,null,null,null,null,null,"NOTE",null,null,null,null,null,null,"NOTE",null,null,null,null,null,"[D-1](e-4)","Question","Treasure box","↖","Mario Mushroom\nor Fire Flower"]
[null,null,null,null,null,null,null,null,null,null,null,null,null,null,null,null,null,null,null,null,null,null,null,null,null,null,null,null,null,null,null,null,null,null,null,null,null,null,null,"[D-5](e-3)","Question","Treasure box","↗","Coin"]
[null,null,"C",null,null,null,null,null,null,null,null,null,null,null,null,null,null,null,null,null,null,null,null,null,null,null,null,null,null,null,null,null,null,null,null,null,null,null,null,"[D-5](e-4)","Question","Treasure box","↗"]
[null,null,null,null,null,null,null,null,null,null,null,null,null,null,null,null,null,null,null,null,null,null,null,null,null,null,null,null,null,"FOE","FOE",null,null,null,null,null,null,null,null,"[E-1](d-1)","Question","Treasure box","↖","Coin"]
[null,null,null,null,null,null,null,null,null,null,null,null,null,null,null,null,null,null,null,null,null,null,null,null,null,null,null,null,null,null,null,null,null,null,null,null,null,null,null,"[E-1](d-4)","Question","Treasure box","↖"]
[null,null,null,null,null,null,null,null,null,null,null,null,null,null,null,null,null,null,null,null,null,null,null,null,null,null,null,null,null,null,null,null,null,null,null,null,null,null,null,"[E-2](d-2)","Question","Treasure box","↖"]
[null,null,null,null,null,null,null,null,null,null,null,null,null,null,null,null,null,null,null,null,null,null,null,null,null,null,null,null,null,null,null,null,null,null,null,null,null,null,null,"[F-1](b-2)","Bug","F.O.E","↖","<a>Koopa Troopa</a>"]
[null,null,"D",null,null,null,null,null,null,null,null,null,null,null,null,null,null,null,null,null,null,null,null,null,null,null,null,null,null,null,null,null,null,null,null,null,null,null,null,"[F-2](b-4)","F.O.E","F.O.E","↗","<a>Little Goomba</a>"]
[null,null,null,null,null,null,null,null,null,null,null,null,null,null,null,null,null,null,null,null,null,null,null,null,null,null,null,null,null,null,null,null,null,null,null,null,null,null,null,"[F-2](b-5)","F.O.E","F.O.E","↗"]
[null,null,null,null,null,null,null,null,null,null,null,null,null,null,null,null,null,null,null,null,null,null,null,null,null,null,null,null,null,null,null,null,null,null,null,null,null,null,null,"[F-4](b-3)","F.O.E","F.O.E","↗"]
[null,null,null,null,null,null,null,null,null,null,null,null,null,null,null,null,null,null,null,null,null,null,null,null,null,null,null,null,null,null,null,null,null,null,null,null,null,null,null,"[F-4](b-4)","F.O.E","F.O.E","↗"]
[null,null,null,null,null,null,"?",null,null,null,null,null,null,null,null,null,null,null,null,null,null,null,null,null,null,"?","?",null,null,null,null,null,null,null,null,null,null,null,null,"[F-5](b-2)","F.O.E","F.O.E","↗"]
[null,null,"Ｅ",null,null,null,null,null,null,null,null,null,null,null,null,null,null,null,null,null,null,null,null,null,null,null,null,null,null,null,null,null,null,null,null,null,null,null,null,"[F-5](b-3)","F.O.E","F.O.E","↗"]
[null,null,null,null,null,null,null,null,null,null,null,null,null,null,null,null,null,null,null,null,null,null,null,null,null,null,null,null,null,null,null,null,null,null,null,null,null,null,null,null,""]
[null,null,null,null,null,null,null,null,null,null,null,null,null,null,null,null,null,null,null,null,null,null,null,null,null,null,null,null,null,null,null,null,null,null,null,null,null,null,null,null,""]
[null,null,null,"?",null,null,"?",null,null,"?",null,null,null,null,null,null,null,null,null,null,null,null,null,null,null,null,null,null,null,null,null,null,null,null,null,null,null,null,null,null,""]
[null,null,null,null,null,null,null,null,null,null,null,null,null,null,null,null,null,null,null,null,null,null,null,null,null,null,null,null,null,null,null,null,null,null,null,null,null,null,null,null,""]
[null,null,"F",null,null,null,null,null,null,null,null,null,null,null,null,null,null,null,null,null,null,null,null,null,null,null,null,null,null,null,null,null,null,null,null,null,null,null,null,null,""]
[null,null,null,null,"BUG",null,null,null,null,null,null,"FOE","FOE",null,null,null,null,null,null,null,"FOE","FOE",null,null,"FOE","FOE",null,null,null,null,null,null,null,null,null,null,null,null,null,null,""]
[null,null,null,null,null,null,null,null,null,null,null,null,null,null,null,null,null,null,null,null,null,null,null,null,null,null,null,null,null,null,null,null,null,null,null,null,null,null,null,null,""]
[]
[]
[]
[]
[]
[]
[]
[]
[]
[]
[]
[]
[]
[]
[]
[]
[]
[]
[]
[]
[]
[null,null,null,null,null,null,null,null,null,null,null,null,null,null,null,null,null,null,null,null,null,null,null,null,null,null,null,null,null,null,null,null,null,null,null,null,null,null,null,null,""]
[null,null,null,null,null,null,null,null,null,null,null,null,null,null,null,null,null,null,null,null,null,null,null,null,null,null,null,null,null,null,null,null,null,null,null,null,null,null,null,null,""]
[null,null,null,null,null,null,null,null,null,null,null,null,null,null,null,null,null,null,null,null,null,null,null,null,null,null,null,null,null,null,null,null,null,null,null,null,null,null,null,null,""]
[null,null,null,null,null,null,null,null,null,null,null,null,null,null,null,null,null,null,null,null,null,null,null,null,null,null,null,null,null,null,null,null,null,null,null,null,null,null,null,null,""]
[null,null,null,null,null,null,null,null,null,null,null,null,null,null,null,null,null,null,null,null,null,null,null,null,null,null,null,null,null,null,null,null,null,null,null,null,null,null,null,null,""]
[null,null,null,null,null,null,null,null,null,null,null,null,null,null,null,null,null,null,null,null,null,null,null,null,null,null,null,null,null,null,null,null,null,null,null,null,null,null,null,null,""]
[null,null,null,null,null,null,null,null,null,null,null,null,null,null,null,null,null,null,null,null,null,null,null,null,null,null,null,null,null,null,null,null,null,null,null,null,null,null,null,null,""]
[null,null,null,null,null,null,null,null,null,null,null,null,null,null,null,null,null,null,null,null,null,null,null,null,null,null,null,null,null,null,null,null,null,null,null,null,null,null,null,null,""]
[null,null,null,null,null,null,null,null,null,null,null,null,null,null,null,null,null,null,null,null,null,null,null,null,null,null,null,null,null,null,null,null,null,null,null,null,null,null,null,null,""]
[null,null,null,null,null,null,null,null,null,null,null,null,null,null,null,null,null,null,null,null,null,null,null,null,null,null,null,null,null,null,null,null,null,null,null,null,null,null,null,null,""]
[null,null,null,null,null,null,null,null,null,null,null,null,null,null,null,null,null,null,null,null,null,null,null,null,null,null,null,null,null,null,null,null,null,null,null,null,null,null,null,null,""]
[null,null,null,null,null,null,null,null,null,null,null,null,null,null,null,null,null,null,null,null,null,null,null,null,null,null,null,null,null,null,null,null,null,null,null,null,null,null,null,null,""]
[null,null,null,null,null,null,null,null,null,null,null,null,null,null,null,null,null,null,null,null,null,null,null,null,null,null,null,null,null,null,null,null,null,null,null,null,null,null,null,null,""]
[null,null,null,null,null,null,null,null,null,null,null,null,null,null,null,null,null,null,null,null,null,null,null,null,null,null,null,null,null,null,null,null,null,null,null,null,null,null,null,null,""]
[null,null,null,null,null,null,null,null,null,null,null,null,null,null,null,null,null,null,null,null,null,null,null,null,null,null,null,null,null,null,null,null,null,null,null,null,null,null,null,null,""]
[null,null,null,null,null,null,null,null,null,null,null,null,null,null,null,null,null,null,null,null,null,null,null,null,null,null,null,null,null,null,null,null,null,null,null,null,null,null,null,null,""]
[null,null,null,null,null,null,null,null,null,null,null,null,null,null,null,null,null,null,null,null,null,null,null,null,null,null,null,null,null,null,null,null,null,null,null,null,null,null,null,null,""]
[null,null,null,null,null,null,null,null,null,null,null,null,null,null,null,null,null,null,null,null,null,null,null,null,null,null,null,null,null,null,null,null,null,null,null,null,null,null,null,null,""]
[null,null,null,null,null,null,null,null,null,null,null,null,null,null,null,null,null,null,null,null,null,null,null,null,null,null,null,null,null,null,null,null,null,null,null,null,null,null,null,null,""]
[null,null,null,null,null,null,null,null,null,null,null,null,null,null,null,null,null,null,null,null,null,null,null,null,null,null,null,null,null,null,null,null,null,null,null,null,null,null,null,null,""]
[null,null,null,null,null,null,null,null,null,null,null,null,null,null,null,null,null,null,null,null,null,null,null,null,null,null,null,null,null,null,null,null,null,null,null,null,null,null,null,null,""]
[null,null,null,null,null,null,null,null,null,null,null,null,null,null,null,null,null,null,null,null,null,null,null,null,null,null,null,null,null,null,null,null,null,null,null,null,null,null,null,null,""]
[null,null,null,null,null,null,null,null,null,null,null,null,null,null,null,null,null,null,null,null,null,null,null,null,null,null,null,null,null,null,null,null,null,null,null,null,null,null,null,null,""]
[null,null,null,null,null,null,null,null,null,null,null,null,null,null,null,null,null,null,null,null,null,null,null,null,null,null,null,null,null,null,null,null,null,null,null,null,null,null,null,null,""]
[null,null,null,null,null,null,null,null,null,null,null,null,null,null,null,null,null,null,null,null,null,null,null,null,null,null,null,null,null,null,null,null,null,null,null,null,null,null,null,null,""]
[null,null,null,null,null,null,null,null,null,null,null,null,null,null,null,null,null,null,null,null,null,null,null,null,null,null,null,null,null,null,null,null,null,null,null,null,null,null,null,null,""]
[null,null,null,null,null,null,null,null,null,null,null,null,null,null,null,null,null,null,null,null,null,null,null,null,null,null,null,null,null,null,null,null,null,null,null,null,null,null,null,null,""]
[null,null,null,null,null,null,null,null,null,null,null,null,null,null,null,null,null,null,null,null,null,null,null,null,null,null,null,null,null,null,null,null,null,null,null,null,null,null,null,null,""]
[null,null,null,null,null,null,null,null,null,null,null,null,null,null,null,null,null,null,null,null,null,null,null,null,null,null,null,null,null,null,null,null,null,null,null,null,null,null,null,null,""]
[null,null,null,null,null,null,null,null,null,null,null,null,null,null,null,null,null,null,null,null,null,null,null,null,null,null,null,null,null,null,null,null,null,null,null,null,null,null,null,null,""]
[null,null,null,null,null,null,null,null,null,null,null,null,null,null,null,null,null,null,null,null,null,null,null,null,null,null,null,null,null,null,null,null,null,null,null,null,null,null,null,null,""]
[null,null,null,null,null,null,null,null,null,null,null,null,null,null,null,null,null,null,null,null,null,null,null,null,null,null,null,null,null,null,null,null,null,null,null,null,null,null,null,null,""]
[null,null,null,null,null,null,null,null,null,null,null,null,null,null,null,null,null,null,null,null,null,null,null,null,null,null,null,null,null,null,null,null,null,null,null,null,null,null,null,null,""]
[null,null,null,null,null,null,null,null,null,null,null,null,null,null,null,null,null,null,null,null,null,null,null,null,null,null,null,null,null,null,null,null,null,null,null,null,null,null,null,null,""]
[null,null,null,null,null,null,null,null,null,null,null,null,null,null,null,null,null,null,null,null,null,null,null,null,null,null,null,null,null,null,null,null,null,null,null,null,null,null,null,null,""]
[null,null,null,null,null,null,null,null,null,null,null,null,null,null,null,null,null,null,null,null,null,null,null,null,null,null,null,null,null,null,null,null,null,null,null,null,null,null,null,null,""]
[null,null,null,null,null,null,null,null,null,null,null,null,null,null,null,null,null,null,null,null,null,null,null,null,null,null,null,null,null,null,null,null,null,null,null,null,null,null,null,null,""]
[null,null,null,null,null,null,null,null,null,null,null,null,null,null,null,null,null,null,null,null,null,null,null,null,null,null,null,null,null,null,null,null,null,null,null,null,null,null,null,null,""]
[null,null,null,null,null,null,null,null,null,null,null,null,null,null,null,null,null,null,null,null,null,null,null,null,null,null,null,null,null,null,null,null,null,null,null,null,null,null,null,null,""]
[null,null,null,null,null,null,null,null,null,null,null,null,null,null,null,null,null,null,null,null,null,null,null,null,null,null,null,null,null,null,null,null,null,null,null,null,null,null,null,null,""]
[null,null,null,null,null,null,null,null,null,null,null,null,null,null,null,null,null,null,null,null,null,null,null,null,null,null,null,null,null,null,null,null,null,null,null,null,null,null,null,null,""]
[null,null,null,null,null,null,null,null,null,null,null,null,null,null,null,null,null,null,null,null,null,null,null,null,null,null,null,null,null,null,null,null,null,null,null,null,null,null,null,null,""]
[null,null,null,null,null,null,null,null,null,null,null,null,null,null,null,null,null,null,null,null,null,null,null,null,null,null,null,null,null,null,null,null,null,null,null,null,null,null,null,null,""]
[null,null,null,null,null,null,null,null,null,null,null,null,null,null,null,null,null,null,null,null,null,null,null,null,null,null,null,null,null,null,null,null,null,null,null,null,null,null,null,null,""]
[null,null,null,null,null,null,null,null,null,null,null,null,null,null,null,null,null,null,null,null,null,null,null,null,null,null,null,null,null,null,null,null,null,null,null,null,null,null,null,null,""]
[null,null,null,null,null,null,null,null,null,null,null,null,null,null,null,null,null,null,null,null,null,null,null,null,null,null,null,null,null,null,null,null,null,null,null,null,null,null,null,null,""]
[null,null,null,null,null,null,null,null,null,null,null,null,null,null,null,null,null,null,null,null,null,null,null,null,null,null,null,null,null,null,null,null,null,null,null,null,null,null,null,null,""]
[null,null,null,null,null,null,null,null,null,null,null,null,null,null,null,null,null,null,null,null,null,null,null,null,null,null,null,null,null,null,null,null,null,null,null,null,null,null,null,null,""]
[null,null,null,null,null,null,null,null,null,null,null,null,null,null,null,null,null,null,null,null,null,null,null,null,null,null,null,null,null,null,null,null,null,null,null,null,null,null,null,null,""]
[null,null,null,null,null,null,null,null,null,null,null,null,null,null,null,null,null,null,null,null,null,null,null,null,null,null,null,null,null,null,null,null,null,null,null,null,null,null,null,null,""]
[null,null,null,null,null,null,null,null,null,null,null,null,null,null,null,null,null,null,null,null,null,null,null,null,null,null,null,null,null,null,null,null,null,null,null,null,null,null,null,null,""]
[null,null,null,null,null,null,null,null,null,null,null,null,null,null,null,null,null,null,null,null,null,null,null,null,null,null,null,null,null,null,null,null,null,null,null,null,null,null,null,null,""]
[null,null,null,null,null,null,null,null,null,null,null,null,null,null,null,null,null,null,null,null,null,null,null,null,null,null,null,null,null,null,null,null,null,null,null,null,null,null,null,null,""]
[null,null,null,null,null,null,null,null,null,null,null,null,null,null,null,null,null,null,null,null,null,null,null,null,null,null,null,null,null,null,null,null,null,null,null,null,null,null,null,null,""]
[null,null,null,null,null,null,null,null,null,null,null,null,null,null,null,null,null,null,null,null,null,null,null,null,null,null,null,null,null,null,null,null,null,null,null,null,null,null,null,null,""]
[null,null,null,null,null,null,null,null,null,null,null,null,null,null,null,null,null,null,null,null,null,null,null,null,null,null,null,null,null,null,null,null,null,null,null,null,null,null,null,null,""]
[null,null,null,null,null,null,null,null,null,null,null,null,null,null,null,null,null,null,null,null,null,null,null,null,null,null,null,null,null,null,null,null,null,null,null,null,null,null,null,null,""]
[null,null,null,null,null,null,null,null,null,null,null,null,null,null,null,null,null,null,null,null,null,null,null,null,null,null,null,null,null,null,null,null,null,null,null,null,null,null,null,null,""]
[null,null,null,null,null,null,null,null,null,null,null,null,null,null,null,null,null,null,null,null,null,null,null,null,null,null,null,null,null,null,null,null,null,null,null,null,null,null,null,null,""]
[null,null,null,null,null,null,null,null,null,null,null,null,null,null,null,null,null,null,null,null,null,null,null,null,null,null,null,null,null,null,null,null,null,null,null,null,null,null,null,null,""]
[null,null,null,null,null,null,null,null,null,null,null,null,null,null,null,null,null,null,null,null,null,null,null,null,null,null,null,null,null,null,null,null,null,null,null,null,null,null,null,null,""]
[null,null,null,null,null,null,null,null,null,null,null,null,null,null,null,null,null,null,null,null,null,null,null,null,null,null,null,null,null,null,null,null,null,null,null,null,null,null,null,null,""]
[null,null,null,null,null,null,null,null,null,null,null,null,null,null,null,null,null,null,null,null,null,null,null,null,null,null,null,null,null,null,null,null,null,null,null,null,null,null,null,null,""]
[null,null,null,null,null,null,null,null,null,null,null,null,null,null,null,null,null,null,null,null,null,null,null,null,null,null,null,null,null,null,null,null,null,null,null,null,null,null,null,null,""]
[null,null,null,null,null,null,null,null,null,null,null,null,null,null,null,null,null,null,null,null,null,null,null,null,null,null,null,null,null,null,null,null,null,null,null,null,null,null,null,null,""]
[null,null,null,null,null,null,null,null,null,null,null,null,null,null,null,null,null,null,null,null,null,null,null,null,null,null,null,null,null,null,null,null,null,null,null,null,null,null,null,null,""]
[null,null,null,null,null,null,null,null,null,null,null,null,null,null,null,null,null,null,null,null,null,null,null,null,null,null,null,null,null,null,null,null,null,null,null,null,null,null,null,null,""]

{"sheet":"1-1-3","index":3,"n_rows":120,"n_cols":53,"rows_kept":120,"cut":false,"hidden":false,"merged":[[29,2,33,2],[0,23,1,27],[2,3,2,27],[2,28,2,37],[3,3,3,7],[3,8,3,12],[3,13,3,17],[3,18,3,22],[3,23,3,27],[3,28,3,32],[3,33,3,37],[4,2,8,2],[9,2,13,2],[14,2,18,2],[19,2,23,2],[24,2,28,2]]}
[null,null,null,null,null,null,null,null,null,null,null,null,null,null,null,null,null,null,null,null,null,null,null,"Palette"]
[null,null,null,null,null,null,null,null,null,null,null,null,null,null,null,null,null,null,null,null,null,null,null,null,null,null,null,null,null,null,null,null,null,null,null,null,null,null,null,null,null,null,null,null,null,"[A-1](a-1)"]
["Toolbar",null,null,"Level 1-1 Third",null,null,null,null,null,null,null,null,null,null,null,null,null,null,null,null,null,null,null,null,null,null,null,null,"1-1 3rd",null,null,null,null,null,null,null,null,null,null,"Icon list",null,null,null,null,null,"Shape list"]
[null,null,null,1,null,null,null,null,2,null,null,null,null,3,null,null,null,null,4,null,null,null,null,5,null,null,null,null,6,null,null,null,null,7,null,null,null,null,null,"Coordinates","Icon","Layer","Balloon direction","Text",null,"Coordinates","Shape","Layer","Color","X","Y"]
[null,null,"A",null,null,null,null,null,null,null,null,null,null,null,null,null,null,null,null,null,null,null,null,null,null,null,null,null,null,null,null,null,null,null,null,null,null,null,null,"[B-6](d-4)","Question","Treasure box","↗","Coin",null,"[C-5](d-2)","Arrow","Gimmick","#0000ff",0,-4,null,"Enemies"]
[null,null,null,null,null,null,null,null,null,null,null,null,null,null,null,null,null,null,null,null,null,null,null,null,null,null,null,null,null,null,null,null,null,null,null,null,null,null,null,"[C-7](b-3)","F.O.E","F.O.E","↗","<a>Little Goomba</a>",null,"[C-5](d-3)","Arrow","Gimmick","#0000ff",0,-4,null,"<a>Little Goomba</a>"]
[null,null,null,null,null,null,null,null,null,null,null,null,null,null,null,null,null,null,null,null,null,null,null,null,null,null,null,null,null,null,null,null,null,null,null,null,null,null,null,"[C-7](b-4)","F.O.E","F.O.E","↗"]
[null,null,null,null,null,null,null,null,null,null,null,null,null,null,null,null,null,null,null,null,null,null,null,null,null,null,null,null,null,null,null,null,null,null,null,null,null,null,null,null,""]
[null,null,null,null,null,null,null,null,null,null,null,null,null,null,null,null,null,null,null,null,null,null,null,null,null,null,null,null,null,null,null,null,null,null,null,null,null,null,null,null,""]
[null,null,"B",null,null,null,null,null,null,null,null,null,null,null,null,null,null,null,null,null,null,null,null,null,null,null,null,null,null,null,null,null,null,null,null,null,null,null,null,null,""]
[null,null,null,null,null,null,null,null,null,null,null,null,null,null,null,null,null,null,null,null,null,null,null,null,null,null,null,null,null,null,null,null,null,null,null,null,null,null,null,null,""]
[null,null,null,null,null,null,null,null,null,null,null,null,null,null,null,null,null,null,null,null,null,null,null,null,null,null,null,null,null,null,null,null,null,null,null,null,null,null,null,null,""]
[null,null,null,null,null,null,null,null,null,null,null,null,null,null,null,null,null,null,null,null,null,null,null,null,null,null,null,null,null,null,null,"?",null,null,null,null,null,null,null,null,""]
[null,null,null,null,null,null,null,null,null,null,null,null,null,null,null,null,null,null,null,null,null,null,null,null,null,null,null,null,null,null,null,null,null,null,null,null,null,null,null,null,""]
[null,null,"C",null,null,null,null,null,null,null,null,null,null,null,null,null,null,null,null,null,null,null,null,null,null,null,null,null,null,null,null,null,null,null,null,null,null,null,null,null,""]
[null,null,null,null,null,null,null,null,null,null,null,null,null,null,null,null,null,null,null,null,null,null,null,null,null,null,null,null,null,null,null,null,null,null,null,"FOE","FOE",null,null,null,""]
[null,null,null,null,null,null,null,null,null,null,null,null,null,null,null,null,null,null,null,null,null,null,null,null,null,null,null,null,null,null,null,null,null,null,null,null,null,null,null,null,""]
[null,null,null,null,null,null,null,null,null,null,null,null,null,null,null,null,null,null,null,null,null,null,null,null,null,null,null,null,null,null,null,null,null,null,null,null,null,null,null,null,""]
[null,null,null,null,null,null,null,null,null,null,null,null,null,null,null,null,null,null,null,null,null,null,null,null,null,null,null,null,null,null,null,null,null,null,null,null,null,null,null,null,""]
[null,null,"D",null,null,null,null,null,null,null,null,null,null,null,null,null,null,null,null,null,null,null,null,null,null,null,null,null,null,null,null,null,null,null,null,null,null,null,null,null,""]
[null,null,null,null,null,null,null,null,null,null,null,null,null,null,null,null,null,null,null,null,null,null,null,null,null,null,null,null,null,null,null,null,null,null,null,null,null,null,null,null,""]
[null,null,null,null,null,null,null,null,null,null,null,null,null,null,null,null,null,null,null,null,null,null,null,null,null,null,null,null,null,null,null,null,null,null,null,null,null,null,null,null,""]
[null,null,null,null,null,null,null,null,null,null,null,null,null,null,null,null,null,null,null,null,null,null,null,null,null,null,null,null,null,null,null,null,null,null,null,null,null,null,null,null,""]
[null,null,null,null,null,null,null,null,null,null,null,null,null,null,null,null,null,null,null,null,null,null,null,null,null,null,null,null,null,null,null,null,null,null,null,null,null,null,null,null,""]
[null,null,"Ｅ",null,null,null,null,null,null,null,null,null,null,null,null,null,null,null,null,null,null,null,null,null,null,null,null,null,null,null,null,null,null,null,null,null,null,null,null,null,""]
[null,null,null,null,null,null,null,null,null,null,null,null,null,null,null,null,null,null,null,null,null,null,null,null,null,null,null,null,null,null,null,null,null,null,null,null,null,null,null,null,""]
[null,null,null,null,null,null,null,null,null,null,null,null,null,null,null,null,null,null,null,null,null,null,null,null,null,null,null,null,null,null,null,null,null,null,null,null,null,null,null,null,""]
[null,null,null,null,null,null,null,null,null,null,null,null,null,null,null,null,null,null,null,null,null,null,null,null,null,null,null,null,null,null,null,null,null,null,null,null,null,null,null,null,""]
[null,null,null,null,null,null,null,null,null,null,null,null,null,null,null,null,null,null,null,null,null,null,null,null,null,null,null,null,null,null,null,null,null,null,null,null,null,null,null,null,""]
[null,null,"F",null,null,null,null,null,null,null,null,null,null,null,null,null,null,null,null,null,null,null,null,null,null,null,null,null,null,null,null,null,null,null,null,null,null,null,null,null,""]
[null,null,null,null,null,null,null,null,null,null,null,null,null,null,null,null,null,null,null,null,null,null,null,null,null,null,null,null,null,null,null,null,null,null,null,null,null,null,null,null,""]
[null,null,null,null,null,null,null,null,null,null,null,null,null,null,null,null,null,null,null,null,null,null,null,null,null,null,null,null,null,null,null,null,null,null,null,null,null,null,null,null,""]
[null,null,null,null,null,null,null,null,null,null,null,null,null,null,null,null,null,null,null,null,null,null,null,null,null,null,null,null,null,null,null,null,null,null,null,null,null,null,null,null,""]
[null,null,null,null,null,null,null,null,null,null,null,null,null,null,null,null,null,null,null,null,null,null,null,null,null,null,null,null,null,null,null,null,null,null,null,null,null,null,null,null,""]
[null,null,null,null,null,null,null,null,null,null,null,null,null,null,null,null,null,null,null,null,null,null,null,null,null,null,null,null,null,null,null,null,null,null,null,null,null,null,null,null,""]
[null,null,null,null,null,null,null,null,null,null,null,null,null,null,null,null,null,null,null,null,null,null,null,null,null,null,null,null,null,null,null,null,null,null,null,null,null,null,null,null,""]
[null,null,null,null,null,null,null,null,null,null,null,null,null,null,null,null,null,null,null,null,null,null,null,null,null,null,null,null,null,null,null,null,null,null,null,null,null,null,null,null,""]
[null,null,null,null,null,null,null,null,null,null,null,null,null,null,null,null,null,null,null,null,null,null,null,null,null,null,null,null,null,null,null,null,null,null,null,null,null,null,null,null,""]
[null,null,null,null,null,null,null,null,null,null,null,null,null,null,null,null,null,null,null,null,null,null,null,null,null,null,null,null,null,null,null,null,null,null,null,null,null,null,null,null,""]
[null,null,null,null,null,null,null,null,null,null,null,null,null,null,null,null,null,null,null,null,null,null,null,null,null,null,null,null,null,null,null,null,null,null,null,null,null,null,null,null,""]
[null,null,null,null,null,null,null,null,null,null,null,null,null,null,null,null,null,null,null,null,null,null,null,null,null,null,null,null,null,null,null,null,null,null,null,null,null,null,null,null,""]
[null,null,null,null,null,null,null,null,null,null,null,null,null,null,null,null,null,null,null,null,null,null,null,null,null,null,null,null,null,null,null,null,null,null,null,null,null,null,null,null,""]
[null,null,null,null,null,null,null,null,null,null,null,null,null,null,null,null,null,null,null,null,null,null,null,null,null,null,null,null,null,null,null,null,null,null,null,null,null,null,null,null,""]
[null,null,null,null,null,null,null,null,null,null,null,null,null,null,null,null,null,null,null,null,null,null,null,null,null,null,null,null,null,null,null,null,null,null,null,null,null,null,null,null,""]
[null,null,null,null,null,null,null,null,null,null,null,null,null,null,null,null,null,null,null,null,null,null,null,null,null,null,null,null,null,null,null,null,null,null,null,null,null,null,null,null,""]
[null,null,null,null,null,null,null,null,null,null,null,null,null,null,null,null,null,null,null,null,null,null,null,null,null,null,null,null,null,null,null,null,null,null,null,null,null,null,null,null,""]
[null,null,null,null,null,null,null,null,null,null,null,null,null,null,null,null,null,null,null,null,null,null,null,null,null,null,null,null,null,null,null,null,null,null,null,null,null,null,null,null,""]
[null,null,null,null,null,null,null,null,null,null,null,null,null,null,null,null,null,null,null,null,null,null,null,null,null,null,null,null,null,null,null,null,null,null,null,null,null,null,null,null,""]
[null,null,null,null,null,null,null,null,null,null,null,null,null,null,null,null,null,null,null,null,null,null,null,null,null,null,null,null,null,null,null,null,null,null,null,null,null,null,null,null,""]
[null,null,null,null,null,null,null,null,null,null,null,null,null,null,null,null,null,null,null,null,null,null,null,null,null,null,null,null,null,null,null,null,null,null,null,null,null,null,null,null,""]
[null,null,null,null,null,null,null,null,null,null,null,null,null,null,null,null,null,null,null,null,null,null,null,null,null,null,null,null,null,null,null,null,null,null,null,null,null,null,null,null,""]
[null,null,null,null,null,null,null,null,null,null,null,null,null,null,null,null,null,null,null,null,null,null,null,null,null,null,null,null,null,null,null,null,null,null,null,null,null,null,null,null,""]
[null,null,null,null,null,null,null,null,null,null,null,null,null,null,null,null,null,null,null,null,null,null,null,null,null,null,null,null,null,null,null,null,null,null,null,null,null,null,null,null,""]
[null,null,null,null,null,null,null,null,null,null,null,null,null,null,null,null,null,null,null,null,null,null,null,null,null,null,null,null,null,null,null,null,null,null,null,null,null,null,null,null,""]
[null,null,null,null,null,null,null,null,null,null,null,null,null,null,null,null,null,null,null,null,null,null,null,null,null,null,null,null,null,null,null,null,null,null,null,null,null,null,null,null,""]
[null,null,null,null,null,null,null,null,null,null,null,null,null,null,null,null,null,null,null,null,null,null,null,null,null,null,null,null,null,null,null,null,null,null,null,null,null,null,null,null,""]
[null,null,null,null,null,null,null,null,null,null,null,null,null,null,null,null,null,null,null,null,null,null,null,null,null,null,null,null,null,null,null,null,null,null,null,null,null,null,null,null,""]
[null,null,null,null,null,null,null,null,null,null,null,null,null,null,null,null,null,null,null,null,null,null,null,null,null,null,null,null,null,null,null,null,null,null,null,null,null,null,null,null,""]
[null,null,null,null,null,null,null,null,null,null,null,null,null,null,null,null,null,null,null,null,null,null,null,null,null,null,null,null,null,null,null,null,null,null,null,null,null,null,null,null,""]
[null,null,null,null,null,null,null,null,null,null,null,null,null,null,null,null,null,null,null,null,null,null,null,null,null,null,null,null,null,null,null,null,null,null,null,null,null,null,null,null,""]
[null,null,null,null,null,null,null,null,null,null,null,null,null,null,null,null,null,null,null,null,null,null,null,null,null,null,null,null,null,null,null,null,null,null,null,null,null,null,null,null,""]
[null,null,null,null,null,null,null,null,null,null,null,null,null,null,null,null,null,null,null,null,null,null,null,null,null,null,null,null,null,null,null,null,null,null,null,null,null,null,null,null,""]
[null,null,null,null,null,null,null,null,null,null,null,null,null,null,null,null,null,null,null,null,null,null,null,null,null,null,null,null,null,null,null,null,null,null,null,null,null,null,null,null,""]
[null,null,null,null,null,null,null,null,null,null,null,null,null,null,null,null,null,null,null,null,null,null,null,null,null,null,null,null,null,null,null,null,null,null,null,null,null,null,null,null,""]
[null,null,null,null,null,null,null,null,null,null,null,null,null,null,null,null,null,null,null,null,null,null,null,null,null,null,null,null,null,null,null,null,null,null,null,null,null,null,null,null,""]
[null,null,null,null,null,null,null,null,null,null,null,null,null,null,null,null,null,null,null,null,null,null,null,null,null,null,null,null,null,null,null,null,null,null,null,null,null,null,null,null,""]
[null,null,null,null,null,null,null,null,null,null,null,null,null,null,null,null,null,null,null,null,null,null,null,null,null,null,null,null,null,null,null,null,null,null,null,null,null,null,null,null,""]
[null,null,null,null,null,null,null,null,null,null,null,null,null,null,null,null,null,null,null,null,null,null,null,null,null,null,null,null,null,null,null,null,null,null,null,null,null,null,null,null,""]
[null,null,null,null,null,null,null,null,null,null,null,null,null,null,null,null,null,null,null,null,null,null,null,null,null,null,null,null,null,null,null,null,null,null,null,null,null,null,null,null,""]
[null,null,null,null,null,null,null,null,null,null,null,null,null,null,null,null,null,null,null,null,null,null,null,null,null,null,null,null,null,null,null,null,null,null,null,null,null,null,null,null,""]
[null,null,null,null,null,null,null,null,null,null,null,null,null,null,null,null,null,null,null,null,null,null,null,null,null,null,null,null,null,null,null,null,null,null,null,null,null,null,null,null,""]
[null,null,null,null,null,null,null,null,null,null,null,null,null,null,null,null,null,null,null,null,null,null,null,null,null,null,null,null,null,null,null,null,null,null,null,null,null,null,null,null,""]
[null,null,null,null,null,null,null,null,null,null,null,null,null,null,null,null,null,null,null,null,null,null,null,null,null,null,null,null,null,null,null,null,null,null,null,null,null,null,null,null,""]
[null,null,null,null,null,null,null,null,null,null,null,null,null,null,null,null,null,null,null,null,null,null,null,null,null,null,null,null,null,null,null,null,null,null,null,null,null,null,null,null,""]
[null,null,null,null,null,null,null,null,null,null,null,null,null,null,null,null,null,null,null,null,null,null,null,null,null,null,null,null,null,null,null,null,null,null,null,null,null,null,null,null,""]
[null,null,null,null,null,null,null,null,null,null,null,null,null,null,null,null,null,null,null,null,null,null,null,null,null,null,null,null,null,null,null,null,null,null,null,null,null,null,null,null,""]
[null,null,null,null,null,null,null,null,null,null,null,null,null,null,null,null,null,null,null,null,null,null,null,null,null,null,null,null,null,null,null,null,null,null,null,null,null,null,null,null,""]
[null,null,null,null,null,null,null,null,null,null,null,null,null,null,null,null,null,null,null,null,null,null,null,null,null,null,null,null,null,null,null,null,null,null,null,null,null,null,null,null,""]
[null,null,null,null,null,null,null,null,null,null,null,null,null,null,null,null,null,null,null,null,null,null,null,null,null,null,null,null,null,null,null,null,null,null,null,null,null,null,null,null,""]
[null,null,null,null,null,null,null,null,null,null,null,null,null,null,null,null,null,null,null,null,null,null,null,null,null,null,null,null,null,null,null,null,null,null,null,null,null,null,null,null,""]
[null,null,null,null,null,null,null,null,null,null,null,null,null,null,null,null,null,null,null,null,null,null,null,null,null,null,null,null,null,null,null,null,null,null,null,null,null,null,null,null,""]
[null,null,null,null,null,null,null,null,null,null,null,null,null,null,null,null,null,null,null,null,null,null,null,null,null,null,null,null,null,null,null,null,null,null,null,null,null,null,null,null,""]
[null,null,null,null,null,null,null,null,null,null,null,null,null,null,null,null,null,null,null,null,null,null,null,null,null,null,null,null,null,null,null,null,null,null,null,null,null,null,null,null,""]
[null,null,null,null,null,null,null,null,null,null,null,null,null,null,null,null,null,null,null,null,null,null,null,null,null,null,null,null,null,null,null,null,null,null,null,null,null,null,null,null,""]
[null,null,null,null,null,null,null,null,null,null,null,null,null,null,null,null,null,null,null,null,null,null,null,null,null,null,null,null,null,null,null,null,null,null,null,null,null,null,null,null,""]
[null,null,null,null,null,null,null,null,null,null,null,null,null,null,null,null,null,null,null,null,null,null,null,null,null,null,null,null,null,null,null,null,null,null,null,null,null,null,null,null,""]
[null,null,null,null,null,null,null,null,null,null,null,null,null,null,null,null,null,null,null,null,null,null,null,null,null,null,null,null,null,null,null,null,null,null,null,null,null,null,null,null,""]
[null,null,null,null,null,null,null,null,null,null,null,null,null,null,null,null,null,null,null,null,null,null,null,null,null,null,null,null,null,null,null,null,null,null,null,null,null,null,null,null,""]
[null,null,null,null,null,null,null,null,null,null,null,null,null,null,null,null,null,null,null,null,null,null,null,null,null,null,null,null,null,null,null,null,null,null,null,null,null,null,null,null,""]
[null,null,null,null,null,null,null,null,null,null,null,null,null,null,null,null,null,null,null,null,null,null,null,null,null,null,null,null,null,null,null,null,null,null,null,null,null,null,null,null,""]
[null,null,null,null,null,null,null,null,null,null,null,null,null,null,null,null,null,null,null,null,null,null,null,null,null,null,null,null,null,null,null,null,null,null,null,null,null,null,null,null,""]
[null,null,null,null,null,null,null,null,null,null,null,null,null,null,null,null,null,null,null,null,null,null,null,null,null,null,null,null,null,null,null,null,null,null,null,null,null,null,null,null,""]
[null,null,null,null,null,null,null,null,null,null,null,null,null,null,null,null,null,null,null,null,null,null,null,null,null,null,null,null,null,null,null,null,null,null,null,null,null,null,null,null,""]
[null,null,null,null,null,null,null,null,null,null,null,null,null,null,null,null,null,null,null,null,null,null,null,null,null,null,null,null,null,null,null,null,null,null,null,null,null,null,null,null,""]
[null,null,null,null,null,null,null,null,null,null,null,null,null,null,null,null,null,null,null,null,null,null,null,null,null,null,null,null,null,null,null,null,null,null,null,null,null,null,null,null,""]
[null,null,null,null,null,null,null,null,null,null,null,null,null,null,null,null,null,null,null,null,null,null,null,null,null,null,null,null,null,null,null,null,null,null,null,null,null,null,null,null,""]
[null,null,null,null,null,null,null,null,null,null,null,null,null,null,null,null,null,null,null,null,null,null,null,null,null,null,null,null,null,null,null,null,null,null,null,null,null,null,null,null,""]
[null,null,null,null,null,null,null,null,null,null,null,null,null,null,null,null,null,null,null,null,null,null,null,null,null,null,null,null,null,null,null,null,null,null,null,null,null,null,null,null,""]
[null,null,null,null,null,null,null,null,null,null,null,null,null,null,null,null,null,null,null,null,null,null,null,null,null,null,null,null,null,null,null,null,null,null,null,null,null,null,null,null,""]
[null,null,null,null,null,null,null,null,null,null,null,null,null,null,null,null,null,null,null,null,null,null,null,null,null,null,null,null,null,null,null,null,null,null,null,null,null,null,null,null,""]
[null,null,null,null,null,null,null,null,null,null,null,null,null,null,null,null,null,null,null,null,null,null,null,null,null,null,null,null,null,null,null,null,null,null,null,null,null,null,null,null,""]
[null,null,null,null,null,null,null,null,null,null,null,null,null,null,null,null,null,null,null,null,null,null,null,null,null,null,null,null,null,null,null,null,null,null,null,null,null,null,null,null,""]
[null,null,null,null,null,null,null,null,null,null,null,null,null,null,null,null,null,null,null,null,null,null,null,null,null,null,null,null,null,null,null,null,null,null,null,null,null,null,null,null,""]
[null,null,null,null,null,null,null,null,null,null,null,null,null,null,null,null,null,null,null,null,null,null,null,null,null,null,null,null,null,null,null,null,null,null,null,null,null,null,null,null,""]
[null,null,null,null,null,null,null,null,null,null,null,null,null,null,null,null,null,null,null,null,null,null,null,null,null,null,null,null,null,null,null,null,null,null,null,null,null,null,null,null,""]
[null,null,null,null,null,null,null,null,null,null,null,null,null,null,null,null,null,null,null,null,null,null,null,null,null,null,null,null,null,null,null,null,null,null,null,null,null,null,null,null,""]
[null,null,null,null,null,null,null,null,null,null,null,null,null,null,null,null,null,null,null,null,null,null,null,null,null,null,null,null,null,null,null,null,null,null,null,null,null,null,null,null,""]
[null,null,null,null,null,null,null,null,null,null,null,null,null,null,null,null,null,null,null,null,null,null,null,null,null,null,null,null,null,null,null,null,null,null,null,null,null,null,null,null,""]
[null,null,null,null,null,null,null,null,null,null,null,null,null,null,null,null,null,null,null,null,null,null,null,null,null,null,null,null,null,null,null,null,null,null,null,null,null,null,null,null,""]
[null,null,null,null,null,null,null,null,null,null,null,null,null,null,null,null,null,null,null,null,null,null,null,null,null,null,null,null,null,null,null,null,null,null,null,null,null,null,null,null,""]
[null,null,null,null,null,null,null,null,null,null,null,null,null,null,null,null,null,null,null,null,null,null,null,null,null,null,null,null,null,null,null,null,null,null,null,null,null,null,null,null,""]
[null,null,null,null,null,null,null,null,null,null,null,null,null,null,null,null,null,null,null,null,null,null,null,null,null,null,null,null,null,null,null,null,null,null,null,null,null,null,null,null,""]
[null,null,null,null,null,null,null,null,null,null,null,null,null,null,null,null,null,null,null,null,null,null,null,null,null,null,null,null,null,null,null,null,null,null,null,null,null,null,null,null,""]
[null,null,null,null,null,null,null,null,null,null,null,null,null,null,null,null,null,null,null,null,null,null,null,null,null,null,null,null,null,null,null,null,null,null,null,null,null,null,null,null,""]
[null,null,null,null,null,null,null,null,null,null,null,null,null,null,null,null,null,null,null,null,null,null,null,null,null,null,null,null,null,null,null,null,null,null,null,null,null,null,null,null,""]
[null,null,null,null,null,null,null,null,null,null,null,null,null,null,null,null,null,null,null,null,null,null,null,null,null,null,null,null,null,null,null,null,null,null,null,null,null,null,null,null,""]
[null,null,null,null,null,null,null,null,null,null,null,null,null,null,null,null,null,null,null,null,null,null,null,null,null,null,null,null,null,null,null,null,null,null,null,null,null,null,null,null,""]
[null,null,null,null,null,null,null,null,null,null,null,null,null,null,null,null,null,null,null,null,null,null,null,null,null,null,null,null,null,null,null,null,null,null,null,null,null,null,null,null,""]
[null,null,null,null,null,null,null,null,null,null,null,null,null,null,null,null,null,null,null,null,null,null,null,null,null,null,null,null,null,null,null,null,null,null,null,null,null,null,null,null,""]
[null,null,null,null,null,null,null,null,null,null,null,null,null,null,null,null,null,null,null,null,null,null,null,null,null,null,null,null,null,null,null,null,null,null,null,null,null,null,null,null,""]

{"sheet":"Base","index":4,"n_rows":120,"n_cols":53,"rows_kept":120,"cut":false,"hidden":false,"merged":[[29,2,33,2],[4,2,8,2],[9,2,13,2],[14,2,18,2],[19,2,23,2],[24,2,28,2],[0,23,1,27],[2,3,2,27],[2,28,2,37],[3,33,3,37],[3,3,3,7],[3,8,3,12],[3,13,3,17],[3,18,3,22],[3,23,3,27],[3,28,3,32]]}
[null,null,null,null,null,null,null,null,null,null,null,null,null,null,null,null,null,null,null,null,null,null,null,"Palette"]
[null,null,null,null,null,null,null,null,null,null,null,null,null,null,null,null,null,null,null,null,null,null,null,null,null,null,null,null,null,null,null,null,null,null,null,null,null,null,null,null,null,null,null,null,null,"[A-1](a-1)"]
["Toolbar",null,null,null,null,null,null,null,null,null,null,null,null,null,null,null,null,null,null,null,null,null,null,null,null,null,null,null,null,null,null,null,null,null,null,null,null,null,null,"Icon list",null,null,null,null,null,"Shape list"]
[null,null,null,1,null,null,null,null,2,null,null,null,null,3,null,null,null,null,4,null,null,null,null,5,null,null,null,null,6,null,null,null,null,7,null,null,null,null,null,"Coordinates","Icon","Layer","Balloon direction","Text",null,"Coordinates","Shape","Layer","Color","X","Y"]
[null,null,"A",null,null,null,null,null,null,null,null,null,null,null,null,null,null,null,null,null,null,null,null,null,null,null,null,null,null,null,null,null,null,null,null,null,null,null,null,null,"",null,null,null,null,null,null,null,null,null,null,null,"Enemies"]
[null,null,null,null,null,null,null,null,null,null,null,null,null,null,null,null,null,null,null,null,null,null,null,null,null,null,null,null,null,null,null,null,null,null,null,null,null,null,null,null,""]
[null,null,null,null,null,null,null,null,null,null,null,null,null,null,null,null,null,null,null,null,null,null,null,null,null,null,null,null,null,null,null,null,null,null,null,null,null,null,null,null,""]
[null,null,null,null,null,null,null,null,null,null,null,null,null,null,null,null,null,null,null,null,null,null,null,null,null,null,null,null,null,null,null,null,null,null,null,null,null,null,null,null,""]
[null,null,null,null,null,null,null,null,null,null,null,null,null,null,null,null,null,null,null,null,null,null,null,null,null,null,null,null,null,null,null,null,null,null,null,null,null,null,null,null,""]
[null,null,"B",null,null,null,null,null,null,null,null,null,null,null,null,null,null,null,null,null,null,null,null,null,null,null,null,null,null,null,null,null,null,null,null,null,null,null,null,null,""]
[null,null,null,null,null,null,null,null,null,null,null,null,null,null,null,null,null,null,null,null,null,null,null,null,null,null,null,null,null,null,null,null,null,null,null,null,null,null,null,null,""]
[null,null,null,null,null,null,null,null,null,null,null,null,null,null,null,null,null,null,null,null,null,null,null,null,null,null,null,null,null,null,null,null,null,null,null,null,null,null,null,null,""]
[null,null,null,null,null,null,null,null,null,null,null,null,null,null,null,null,null,null,null,null,null,null,null,null,null,null,null,null,null,null,null,null,null,null,null,null,null,null,null,null,""]
[null,null,null,null,null,null,null,null,null,null,null,null,null,null,null,null,null,null,null,null,null,null,null,null,null,null,null,null,null,null,null,null,null,null,null,null,null,null,null,null,""]
[null,null,"C",null,null,null,null,null,null,null,null,null,null,null,null,null,null,null,null,null,null,null,null,null,null,null,null,null,null,null,null,null,null,null,null,null,null,null,null,null,""]
[null,null,null,null,null,null,null,null,null,null,null,null,null,null,null,null,null,null,null,null,null,null,null,null,null,null,null,null,null,null,null,null,null,null,null,null,null,null,null,null,""]
[null,null,null,null,null,null,null,null,null,null,null,null,null,null,null,null,null,null,null,null,null,null,null,null,null,null,null,null,null,null,null,null,null,null,null,null,null,null,null,null,""]
[null,null,null,null,null,null,null,null,null,null,null,null,null,null,null,null,null,null,null,null,null,null,null,null,null,null,null,null,null,null,null,null,null,null,null,null,null,null,null,null,""]
[null,null,null,null,null,null,null,null,null,null,null,null,null,null,null,null,null,null,null,null,null,null,null,null,null,null,null,null,null,null,null,null,null,null,null,null,null,null,null,null,""]
[null,null,"D",null,null,null,null,null,null,null,null,null,null,null,null,null,null,null,null,null,null,null,null,null,null,null,null,null,null,null,null,null,null,null,null,null,null,null,null,null,""]
[null,null,null,null,null,null,null,null,null,null,null,null,null,null,null,null,null,null,null,null,null,null,null,null,null,null,null,null,null,null,null,null,null,null,null,null,null,null,null,null,""]
[null,null,null,null,null,null,null,null,null,null,null,null,null,null,null,null,null,null,null,null,null,null,null,null,null,null,null,null,null,null,null,null,null,null,null,null,null,null,null,null,""]
[null,null,null,null,null,null,null,null,null,null,null,null,null,null,null,null,null,null,null,null,null,null,null,null,null,null,null,null,null,null,null,null,null,null,null,null,null,null,null,null,""]
[null,null,null,null,null,null,null,null,null,null,null,null,null,null,null,null,null,null,null,null,null,null,null,null,null,null,null,null,null,null,null,null,null,null,null,null,null,null,null,null,""]
[null,null,"Ｅ",null,null,null,null,null,null,null,null,null,null,null,null,null,null,null,null,null,null,null,null,null,null,null,null,null,null,null,null,null,null,null,null,null,null,null,null,null,""]
[null,null,null,null,null,null,null,null,null,null,null,null,null,null,null,null,null,null,null,null,null,null,null,null,null,null,null,null,null,null,null,null,null,null,null,null,null,null,null,null,""]
[null,null,null,null,null,null,null,null,null,null,null,null,null,null,null,null,null,null,null,null,null,null,null,null,null,null,null,null,null,null,null,null,null,null,null,null,null,null,null,null,""]
[null,null,null,null,null,null,null,null,null,null,null,null,null,null,null,null,null,null,null,null,null,null,null,null,null,null,null,null,null,null,null,null,null,null,null,null,null,null,null,null,""]
[null,null,null,null,null,null,null,null,null,null,null,null,null,null,null,null,null,null,null,null,null,null,null,null,null,null,null,null,null,null,null,null,null,null,null,null,null,null,null,null,""]
[null,null,"F",null,null,null,null,null,null,null,null,null,null,null,null,null,null,null,null,null,null,null,null,null,null,null,null,null,null,null,null,null,null,null,null,null,null,null,null,null,""]
[null,null,null,null,null,null,null,null,null,null,null,null,null,null,null,null,null,null,null,null,null,null,null,null,null,null,null,null,null,null,null,null,null,null,null,null,null,null,null,null,""]
[null,null,null,null,null,null,null,null,null,null,null,null,null,null,null,null,null,null,null,null,null,null,null,null,null,null,null,null,null,null,null,null,null,null,null,null,null,null,null,null,""]
[null,null,null,null,null,null,null,null,null,null,null,null,null,null,null,null,null,null,null,null,null,null,null,null,null,null,null,null,null,null,null,null,null,null,null,null,null,null,null,null,""]
[null,null,null,null,null,null,null,null,null,null,null,null,null,null,null,null,null,null,null,null,null,null,null,null,null,null,null,null,null,null,null,null,null,null,null,null,null,null,null,null,""]
[null,null,null,null,null,null,null,null,null,null,null,null,null,null,null,null,null,null,null,null,null,null,null,null,null,null,null,null,null,null,null,null,null,null,null,null,null,null,null,null,""]
[null,null,null,null,null,null,null,null,null,null,null,null,null,null,null,null,null,null,null,null,null,null,null,null,null,null,null,null,null,null,null,null,null,null,null,null,null,null,null,null,""]
[null,null,null,null,null,null,null,null,null,null,null,null,null,null,null,null,null,null,null,null,null,null,null,null,null,null,null,null,null,null,null,null,null,null,null,null,null,null,null,null,""]
[null,null,null,null,null,null,null,null,null,null,null,null,null,null,null,null,null,null,null,null,null,null,null,null,null,null,null,null,null,null,null,null,null,null,null,null,null,null,null,null,""]
[null,null,null,null,null,null,null,null,null,null,null,null,null,null,null,null,null,null,null,null,null,null,null,null,null,null,null,null,null,null,null,null,null,null,null,null,null,null,null,null,""]
[null,null,null,null,null,null,null,null,null,null,null,null,null,null,null,null,null,null,null,null,null,null,null,null,null,null,null,null,null,null,null,null,null,null,null,null,null,null,null,null,""]
[null,null,null,null,null,null,null,null,null,null,null,null,null,null,null,null,null,null,null,null,null,null,null,null,null,null,null,null,null,null,null,null,null,null,null,null,null,null,null,null,""]
[null,null,null,null,null,null,null,null,null,null,null,null,null,null,null,null,null,null,null,null,null,null,null,null,null,null,null,null,null,null,null,null,null,null,null,null,null,null,null,null,""]
[null,null,null,null,null,null,null,null,null,null,null,null,null,null,null,null,null,null,null,null,null,null,null,null,null,null,null,null,null,null,null,null,null,null,null,null,null,null,null,null,""]
[null,null,null,null,null,null,null,null,null,null,null,null,null,null,null,null,null,null,null,null,null,null,null,null,null,null,null,null,null,null,null,null,null,null,null,null,null,null,null,null,""]
[null,null,null,null,null,null,null,null,null,null,null,null,null,null,null,null,null,null,null,null,null,null,null,null,null,null,null,null,null,null,null,null,null,null,null,null,null,null,null,null,""]
[null,null,null,null,null,null,null,null,null,null,null,null,null,null,null,null,null,null,null,null,null,null,null,null,null,null,null,null,null,null,null,null,null,null,null,null,null,null,null,null,""]
[null,null,null,null,null,null,null,null,null,null,null,null,null,null,null,null,null,null,null,null,null,null,null,null,null,null,null,null,null,null,null,null,null,null,null,null,null,null,null,null,""]
[null,null,null,null,null,null,null,null,null,null,null,null,null,null,null,null,null,null,null,null,null,null,null,null,null,null,null,null,null,null,null,null,null,null,null,null,null,null,null,null,""]
[null,null,null,null,null,null,null,null,null,null,null,null,null,null,null,null,null,null,null,null,null,null,null,null,null,null,null,null,null,null,null,null,null,null,null,null,null,null,null,null,""]
[null,null,null,null,null,null,null,null,null,null,null,null,null,null,null,null,null,null,null,null,null,null,null,null,null,null,null,null,null,null,null,null,null,null,null,null,null,null,null,null,""]
[null,null,null,null,null,null,null,null,null,null,null,null,null,null,null,null,null,null,null,null,null,null,null,null,null,null,null,null,null,null,null,null,null,null,null,null,null,null,null,null,""]
[null,null,null,null,null,null,null,null,null,null,null,null,null,null,null,null,null,null,null,null,null,null,null,null,null,null,null,null,null,null,null,null,null,null,null,null,null,null,null,null,""]
[null,null,null,null,null,null,null,null,null,null,null,null,null,null,null,null,null,null,null,null,null,null,null,null,null,null,null,null,null,null,null,null,null,null,null,null,null,null,null,null,""]
[null,null,null,null,null,null,null,null,null,null,null,null,null,null,null,null,null,null,null,null,null,null,null,null,null,null,null,null,null,null,null,null,null,null,null,null,null,null,null,null,""]
[null,null,null,null,null,null,null,null,null,null,null,null,null,null,null,null,null,null,null,null,null,null,null,null,null,null,null,null,null,null,null,null,null,null,null,null,null,null,null,null,""]
[null,null,null,null,null,null,null,null,null,null,null,null,null,null,null,null,null,null,null,null,null,null,null,null,null,null,null,null,null,null,null,null,null,null,null,null,null,null,null,null,""]
[null,null,null,null,null,null,null,null,null,null,null,null,null,null,null,null,null,null,null,null,null,null,null,null,null,null,null,null,null,null,null,null,null,null,null,null,null,null,null,null,""]
[null,null,null,null,null,null,null,null,null,null,null,null,null,null,null,null,null,null,null,null,null,null,null,null,null,null,null,null,null,null,null,null,null,null,null,null,null,null,null,null,""]
[null,null,null,null,null,null,null,null,null,null,null,null,null,null,null,null,null,null,null,null,null,null,null,null,null,null,null,null,null,null,null,null,null,null,null,null,null,null,null,null,""]
[null,null,null,null,null,null,null,null,null,null,null,null,null,null,null,null,null,null,null,null,null,null,null,null,null,null,null,null,null,null,null,null,null,null,null,null,null,null,null,null,""]
[null,null,null,null,null,null,null,null,null,null,null,null,null,null,null,null,null,null,null,null,null,null,null,null,null,null,null,null,null,null,null,null,null,null,null,null,null,null,null,null,""]
[null,null,null,null,null,null,null,null,null,null,null,null,null,null,null,null,null,null,null,null,null,null,null,null,null,null,null,null,null,null,null,null,null,null,null,null,null,null,null,null,""]
[null,null,null,null,null,null,null,null,null,null,null,null,null,null,null,null,null,null,null,null,null,null,null,null,null,null,null,null,null,null,null,null,null,null,null,null,null,null,null,null,""]
[null,null,null,null,null,null,null,null,null,null,null,null,null,null,null,null,null,null,null,null,null,null,null,null,null,null,null,null,null,null,null,null,null,null,null,null,null,null,null,null,""]
[null,null,null,null,null,null,null,null,null,null,null,null,null,null,null,null,null,null,null,null,null,null,null,null,null,null,null,null,null,null,null,null,null,null,null,null,null,null,null,null,""]
[null,null,null,null,null,null,null,null,null,null,null,null,null,null,null,null,null,null,null,null,null,null,null,null,null,null,null,null,null,null,null,null,null,null,null,null,null,null,null,null,""]
[null,null,null,null,null,null,null,null,null,null,null,null,null,null,null,null,null,null,null,null,null,null,null,null,null,null,null,null,null,null,null,null,null,null,null,null,null,null,null,null,""]
[null,null,null,null,null,null,null,null,null,null,null,null,null,null,null,null,null,null,null,null,null,null,null,null,null,null,null,null,null,null,null,null,null,null,null,null,null,null,null,null,""]
[null,null,null,null,null,null,null,null,null,null,null,null,null,null,null,null,null,null,null,null,null,null,null,null,null,null,null,null,null,null,null,null,null,null,null,null,null,null,null,null,""]
[null,null,null,null,null,null,null,null,null,null,null,null,null,null,null,null,null,null,null,null,null,null,null,null,null,null,null,null,null,null,null,null,null,null,null,null,null,null,null,null,""]
[null,null,null,null,null,null,null,null,null,null,null,null,null,null,null,null,null,null,null,null,null,null,null,null,null,null,null,null,null,null,null,null,null,null,null,null,null,null,null,null,""]
[null,null,null,null,null,null,null,null,null,null,null,null,null,null,null,null,null,null,null,null,null,null,null,null,null,null,null,null,null,null,null,null,null,null,null,null,null,null,null,null,""]
[null,null,null,null,null,null,null,null,null,null,null,null,null,null,null,null,null,null,null,null,null,null,null,null,null,null,null,null,null,null,null,null,null,null,null,null,null,null,null,null,""]
[null,null,null,null,null,null,null,null,null,null,null,null,null,null,null,null,null,null,null,null,null,null,null,null,null,null,null,null,null,null,null,null,null,null,null,null,null,null,null,null,""]
[null,null,null,null,null,null,null,null,null,null,null,null,null,null,null,null,null,null,null,null,null,null,null,null,null,null,null,null,null,null,null,null,null,null,null,null,null,null,null,null,""]
[null,null,null,null,null,null,null,null,null,null,null,null,null,null,null,null,null,null,null,null,null,null,null,null,null,null,null,null,null,null,null,null,null,null,null,null,null,null,null,null,""]
[null,null,null,null,null,null,null,null,null,null,null,null,null,null,null,null,null,null,null,null,null,null,null,null,null,null,null,null,null,null,null,null,null,null,null,null,null,null,null,null,""]
[null,null,null,null,null,null,null,null,null,null,null,null,null,null,null,null,null,null,null,null,null,null,null,null,null,null,null,null,null,null,null,null,null,null,null,null,null,null,null,null,""]
[null,null,null,null,null,null,null,null,null,null,null,null,null,null,null,null,null,null,null,null,null,null,null,null,null,null,null,null,null,null,null,null,null,null,null,null,null,null,null,null,""]
[null,null,null,null,null,null,null,null,null,null,null,null,null,null,null,null,null,null,null,null,null,null,null,null,null,null,null,null,null,null,null,null,null,null,null,null,null,null,null,null,""]
[null,null,null,null,null,null,null,null,null,null,null,null,null,null,null,null,null,null,null,null,null,null,null,null,null,null,null,null,null,null,null,null,null,null,null,null,null,null,null,null,""]
[null,null,null,null,null,null,null,null,null,null,null,null,null,null,null,null,null,null,null,null,null,null,null,null,null,null,null,null,null,null,null,null,null,null,null,null,null,null,null,null,""]
[null,null,null,null,null,null,null,null,null,null,null,null,null,null,null,null,null,null,null,null,null,null,null,null,null,null,null,null,null,null,null,null,null,null,null,null,null,null,null,null,""]
[null,null,null,null,null,null,null,null,null,null,null,null,null,null,null,null,null,null,null,null,null,null,null,null,null,null,null,null,null,null,null,null,null,null,null,null,null,null,null,null,""]
[null,null,null,null,null,null,null,null,null,null,null,null,null,null,null,null,null,null,null,null,null,null,null,null,null,null,null,null,null,null,null,null,null,null,null,null,null,null,null,null,""]
[null,null,null,null,null,null,null,null,null,null,null,null,null,null,null,null,null,null,null,null,null,null,null,null,null,null,null,null,null,null,null,null,null,null,null,null,null,null,null,null,""]
[null,null,null,null,null,null,null,null,null,null,null,null,null,null,null,null,null,null,null,null,null,null,null,null,null,null,null,null,null,null,null,null,null,null,null,null,null,null,null,null,""]
[null,null,null,null,null,null,null,null,null,null,null,null,null,null,null,null,null,null,null,null,null,null,null,null,null,null,null,null,null,null,null,null,null,null,null,null,null,null,null,null,""]
[null,null,null,null,null,null,null,null,null,null,null,null,null,null,null,null,null,null,null,null,null,null,null,null,null,null,null,null,null,null,null,null,null,null,null,null,null,null,null,null,""]
[null,null,null,null,null,null,null,null,null,null,null,null,null,null,null,null,null,null,null,null,null,null,null,null,null,null,null,null,null,null,null,null,null,null,null,null,null,null,null,null,""]
[null,null,null,null,null,null,null,null,null,null,null,null,null,null,null,null,null,null,null,null,null,null,null,null,null,null,null,null,null,null,null,null,null,null,null,null,null,null,null,null,""]
[null,null,null,null,null,null,null,null,null,null,null,null,null,null,null,null,null,null,null,null,null,null,null,null,null,null,null,null,null,null,null,null,null,null,null,null,null,null,null,null,""]
[null,null,null,null,null,null,null,null,null,null,null,null,null,null,null,null,null,null,null,null,null,null,null,null,null,null,null,null,null,null,null,null,null,null,null,null,null,null,null,null,""]
[null,null,null,null,null,null,null,null,null,null,null,null,null,null,null,null,null,null,null,null,null,null,null,null,null,null,null,null,null,null,null,null,null,null,null,null,null,null,null,null,""]
[null,null,null,null,null,null,null,null,null,null,null,null,null,null,null,null,null,null,null,null,null,null,null,null,null,null,null,null,null,null,null,null,null,null,null,null,null,null,null,null,""]
[null,null,null,null,null,null,null,null,null,null,null,null,null,null,null,null,null,null,null,null,null,null,null,null,null,null,null,null,null,null,null,null,null,null,null,null,null,null,null,null,""]
[null,null,null,null,null,null,null,null,null,null,null,null,null,null,null,null,null,null,null,null,null,null,null,null,null,null,null,null,null,null,null,null,null,null,null,null,null,null,null,null,""]
[null,null,null,null,null,null,null,null,null,null,null,null,null,null,null,null,null,null,null,null,null,null,null,null,null,null,null,null,null,null,null,null,null,null,null,null,null,null,null,null,""]
[null,null,null,null,null,null,null,null,null,null,null,null,null,null,null,null,null,null,null,null,null,null,null,null,null,null,null,null,null,null,null,null,null,null,null,null,null,null,null,null,""]
[null,null,null,null,null,null,null,null,null,null,null,null,null,null,null,null,null,null,null,null,null,null,null,null,null,null,null,null,null,null,null,null,null,null,null,null,null,null,null,null,""]
[null,null,null,null,null,null,null,null,null,null,null,null,null,null,null,null,null,null,null,null,null,null,null,null,null,null,null,null,null,null,null,null,null,null,null,null,null,null,null,null,""]
[null,null,null,null,null,null,null,null,null,null,null,null,null,null,null,null,null,null,null,null,null,null,null,null,null,null,null,null,null,null,null,null,null,null,null,null,null,null,null,null,""]
[null,null,null,null,null,null,null,null,null,null,null,null,null,null,null,null,null,null,null,null,null,null,null,null,null,null,null,null,null,null,null,null,null,null,null,null,null,null,null,null,""]
[null,null,null,null,null,null,null,null,null,null,null,null,null,null,null,null,null,null,null,null,null,null,null,null,null,null,null,null,null,null,null,null,null,null,null,null,null,null,null,null,""]
[null,null,null,null,null,null,null,null,null,null,null,null,null,null,null,null,null,null,null,null,null,null,null,null,null,null,null,null,null,null,null,null,null,null,null,null,null,null,null,null,""]
[null,null,null,null,null,null,null,null,null,null,null,null,null,null,null,null,null,null,null,null,null,null,null,null,null,null,null,null,null,null,null,null,null,null,null,null,null,null,null,null,""]
[null,null,null,null,null,null,null,null,null,null,null,null,null,null,null,null,null,null,null,null,null,null,null,null,null,null,null,null,null,null,null,null,null,null,null,null,null,null,null,null,""]
[null,null,null,null,null,null,null,null,null,null,null,null,null,null,null,null,null,null,null,null,null,null,null,null,null,null,null,null,null,null,null,null,null,null,null,null,null,null,null,null,""]
[null,null,null,null,null,null,null,null,null,null,null,null,null,null,null,null,null,null,null,null,null,null,null,null,null,null,null,null,null,null,null,null,null,null,null,null,null,null,null,null,""]
[null,null,null,null,null,null,null,null,null,null,null,null,null,null,null,null,null,null,null,null,null,null,null,null,null,null,null,null,null,null,null,null,null,null,null,null,null,null,null,null,""]
[null,null,null,null,null,null,null,null,null,null,null,null,null,null,null,null,null,null,null,null,null,null,null,null,null,null,null,null,null,null,null,null,null,null,null,null,null,null,null,null,""]
[null,null,null,null,null,null,null,null,null,null,null,null,null,null,null,null,null,null,null,null,null,null,null,null,null,null,null,null,null,null,null,null,null,null,null,null,null,null,null,null,""]
[null,null,null,null,null,null,null,null,null,null,null,null,null,null,null,null,null,null,null,null,null,null,null,null,null,null,null,null,null,null,null,null,null,null,null,null,null,null,null,null,""]
[null,null,null,null,null,null,null,null,null,null,null,null,null,null,null,null,null,null,null,null,null,null,null,null,null,null,null,null,null,null,null,null,null,null,null,null,null,null,null,null,""]
[null,null,null,null,null,null,null,null,null,null,null,null,null,null,null,null,null,null,null,null,null,null,null,null,null,null,null,null,null,null,null,null,null,null,null,null,null,null,null,null,""]
[null,null,null,null,null,null,null,null,null,null,null,null,null,null,null,null,null,null,null,null,null,null,null,null,null,null,null,null,null,null,null,null,null,null,null,null,null,null,null,null,""]
[null,null,null,null,null,null,null,null,null,null,null,null,null,null,null,null,null,null,null,null,null,null,null,null,null,null,null,null,null,null,null,null,null,null,null,null,null,null,null,null,""]
[null,null,null,null,null,null,null,null,null,null,null,null,null,null,null,null,null,null,null,null,null,null,null,null,null,null,null,null,null,null,null,null,null,null,null,null,null,null,null,null,""]
[null,null,null,null,null,null,null,null,null,null,null,null,null,null,null,null,null,null,null,null,null,null,null,null,null,null,null,null,null,null,null,null,null,null,null,null,null,null,null,null,""]
[null,null,null,null,null,null,null,null,null,null,null,null,null,null,null,null,null,null,null,null,null,null,null,null,null,null,null,null,null,null,null,null,null,null,null,null,null,null,null,null,""]

{"sheet":"Monster","index":5,"n_rows":254,"n_cols":33,"rows_kept":254,"cut":false,"hidden":false,"merged":[[2,1,2,3]]}
[]
[null,"HTML"]
[null,"<span class=\"reference-title\"><<1>></span>\n<table class=\"reference\">\n <tr>\n  <th colspan=\"4\">HP</th>\n  <td colspan=\"8\" style=\"text-align: right\"><<3>></td>\n </tr>\n <tr>\n  <th colspan=\"2\">ATK</th>\n  <td colspan=\"2\" style=\"text-align: right;\"><<4>></td>\n  <th colspan=\"8\" style=\"width: 140px\">SKILLS</th>\n </tr>\n <tr>\n  <th colspan=\"2\">MAT</th>\n  <td colspan=\"2\" style=\"text-align: right\"><<5>></td>\n  <td colspan=\"8\"><<26>></td>\n </tr>\n <tr>\n  <th colspan=\"2\">DEF</th>\n  <td colspan=\"2\" style=\"text-align: right\"><<6>></td>\n  <td colspan=\"8\"><<27>></td>\n </tr>\n <tr>\n  <th colspan=\"2\">MDF</th>\n  <td colspan=\"2\" style=\"text-align: right\"><<7>></td>\n  <td colspan=\"8\"><<28>></td>\n </tr>\n <tr>\n  <th style=\"padding: 0px; width: 16px;\">\n   <svg xmlns=\"http://www.w3.org/2000/svg\" width=\"16\" height=\"16\">\n    <use x=\"0\" y=\"0\" xlink:href=\"#icon-slash\" />\n   </svg>\n  </th>\n  <th style=\"padding: 0px; width: 16px;\">\n   <svg xmlns=\"http://www.w3.org/2000/svg\" width=\"16\" height=\"16\">\n    <use x=\"0\" y=\"0\" xlink:href=\"#icon-stab\" />\n   </svg>\n  </th>\n  <th style=\"padding: 0px; width: 16px;\">\n   <svg xmlns=\"http://www.w3.org/2000/svg\" width=\"16\" height=\"16\">\n    <use x=\"0\" y=\"0\" xlink:href=\"#icon-bash\" />\n   </svg>\n  </th>\n  <th></th>\n  <th colspan=\"8\">DROPS</th>\n </tr>\n <tr>\n  <td style=\"text-align: center\"><<8>></td>\n  <td style=\"text-align: center\"><<9>></td>\n  <td style=\"text-align: center\"><<10>></td>\n  <td></td>\n  <td colspan=\"8\"><<29>></td>\n </tr>\n <tr>\n  <th style=\"padding: 0px; width: 16px;\">\n   <svg xmlns=\"http://www.w3.org/2000/svg\" width=\"16\" height=\"16\">\n    <use x=\"0\" y=\"0\" xlink:href=\"#icon-fire\" />\n   </svg>\n  </th>\n  <th style=\"padding: 0px; width: 16px;\">\n   <svg xmlns=\"http://www.w3.org/2000/svg\" width=\"16\" height=\"16\">\n    <use x=\"0\" y=\"0\" xlink:href=\"#icon-ice\" />\n   </svg>\n  </th>\n  <th style=\"padding: 0px; width: 16px;\">\n   <svg xmlns=\"http://www.w3.org/2000/svg\" width=\"16\" height=\"16\">\n    <use x=\"0\" y=\"0\" xlink:href=\"#icon-thunder\" />\n   </svg>\n  </th>\n  <th></th>\n  <td colspan=\"8\"><<30>></td>\n </tr>\n <tr>\n  <td style=\"text-align: center\"><<11>></td>\n  <td style=\"text-align: center\"><<12>></td>\n  <td style=\"text-align: center\"><<13>></td>\n  <td></td>\n  <td colspan=\"8\"><<31>></td>\n </tr>\n <tr>\n  <th style=\"padding: 0px; width: 16px;\">\n   <svg xmlns=\"http://www.w3.org/2000/svg\" width=\"16\" height=\"16\">\n    <use x=\"0\" y=\"0\" xlink:href=\"#icon-stun\" />\n   </svg>\n  </th>\n  <th style=\"padding: 0px; width: 16px;\">\n   <svg xmlns=\"http://www.w3.org/2000/svg\" width=\"16\" height=\"16\">\n    <use x=\"0\" y=\"0\" xlink:href=\"#icon-death\" />\n   </svg>\n  </th>\n  <th style=\"padding: 0px; width: 16px;\">\n   <svg xmlns=\"http://www.w3.org/2000/svg\" width=\"16\" height=\"16\">\n    <use x=\"0\" y=\"0\" xlink:href=\"#icon-petrification\" />\n   </svg>\n  </th>\n  <th style=\"padding: 0px; width: 16px;\">\n   <svg xmlns=\"http://www.w3.org/2000/svg\" width=\"16\" height=\"16\">\n    <use x=\"0\" y=\"0\" xlink:href=\"#icon-curse\" />\n   </svg>\n  </th>\n  <th style=\"padding: 0px; width: 16px;\">\n   <svg xmlns=\"http://www.w3.org/2000/svg\" width=\"16\" height=\"16\">\n    <use x=\"0\" y=\"0\" xlink:href=\"#icon-sleep\" />\n   </svg>\n  </th>\n  <th style=\"padding: 0px; width: 16px;\">\n   <svg xmlns=\"http://www.w3.org/2000/svg\" width=\"16\" height=\"16\">\n    <use x=\"0\" y=\"0\" xlink:href=\"#icon-panic\" />\n   </svg>\n  </th>\n  <th style=\"padding: 0px; width: 16px;\">\n   <svg xmlns=\"http://www.w3.org/2000/svg\" width=\"16\" height=\"16\">\n    <use x=\"0\" y=\"0\" xlink:href=\"#icon-paralysis\" />\n   </svg>\n  </th>\n  <th style=\"padding: 0px; width: 16px;\">\n   <svg xmlns=\"http://www.w3.org/2000/svg\" width=\"16\" height=\"16\">\n    <use x=\"0\" y=\"0\" xlink:href=\"#icon-poison\" />\n   </svg>\n  </th>\n  <th style=\"padding: 0px; width: 16px;\">\n   <svg xmlns=\"http://www.w3.org/2000/svg\" width=\"16\" height=\"16\">\n    <use x=\"0\" y=\"0\" xlink:href=\"#icon-blind\" />\n   </svg>\n  </th>\n  <th style=\"padding: 0px; width: 16px;\">\n   <svg xmlns=\"http://www.w3.org/2000/svg\" width=\"16\" height=\"16\">\n    <use x=\"0\" y=\"0\" xlink:href=\"#icon-head\" />\n   </svg>\n  </th>\n  <th style=\"padding: 0px; width: 16px;\">\n   <svg xmlns=\"http://www.w3.org/2000/svg\" width=\"16\" height=\"16\">\n    <use x=\"0\" y=\"0\" xlink:href=\"#icon-arm\" />\n   </svg>\n  </th>\n  <th style=\"padding: 0px; width: 16px;\">\n   <svg xmlns=\"http://www.w3.org/2000/svg\" width=\"16\" height=\"16\">\n    <use x=\"0\" y=\"0\" xlink:href=\"#icon-leg\" />\n   </svg>\n  </th>\n </tr>\n <tr>\n  <td style=\"text-align: center\"><<14>></td>\n  <td style=\"text-align: center\"><<15>></td>\n  <td style=\"text-align: center\"><<16>></td>\n  <td style=\"text-align: center\"><<17>></td>\n  <td style=\"text-align: center\"><<18>></td>\n  <td style=\"text-align: center\"><<19>></td>\n  <td style=\"text-align: center\"><<20>></td>\n  <td style=\"text-align: center\"><<21>></td>\n  <td style=\"text-align: center\"><<22>></td>\n  <td style=\"text-align: center\"><<23>></td>\n  <td style=\"text-align: center\"><<24>></td>\n  <td style=\"text-align: center\"><<25>></td>\n </tr>\n <tr>\n  <th colspan=\"12\">メモ</th>\n </tr>\n <tr>\n  <td colspan=\"12\"><<2>></td>\n </tr>\n</table>"]
[]
[null,"ID","表示","メモ","HP","ATK","MAT","DEF","MDF","斬","突","壊","炎","氷","雷","ス","死","石","呪","眠","混","麻","毒","盲","頭","腕","足","SKILL1","SKILL2","SKILL3","ITEM1","ITEM2","ITEM3"]
[null,"Little Goomba",{"$f":"LIST_START","v":"Little Goomba"},"－",1,1,1,1,1,"○","○","○","○","○","○","○","○","○","○","○","○","○","○","○","○","○","○","－","－","－","－","－","－"]
[null,"Koopa Troopa",{"$f":"B7","v":"Koopa Troopa"},"－",2,2,2,2,2,"○","○","○","○","○","○","○","○","○","○","○","○","○","○","○","○","○","○","－","－","－","－","－","－"]
[null,null,{"$f":"B8","v":0},"－",9999,99,99,99,99,"○","○","○","○","○","○","○","○","○","○","○","○","○","○","○","○","○","○","－","－","－","－","－","－"]
[null,null,0,"－",9999,99,99,99,99,"○","○","○","○","○","○","○","○","○","○","○","○","○","○","○","○","○","○","－","－","－","－","－","－"]
[null,null,0,"－",9999,99,99,99,99,"○","○","○","○","○","○","○","○","○","○","○","○","○","○","○","○","○","○","－","－","－","－","－","－"]
[null,null,0,"－",9999,99,99,99,99,"○","○","○","○","○","○","○","○","○","○","○","○","○","○","○","○","○","○","－","－","－","－","－","－"]
[null,null,0,"－",9999,99,99,99,99,"○","○","○","○","○","○","○","○","○","○","○","○","○","○","○","○","○","○","－","－","－","－","－","－"]
[null,null,0,"－",9999,99,99,99,99,"○","○","○","○","○","○","○","○","○","○","○","○","○","○","○","○","○","○","－","－","－","－","－","－"]
[null,null,0,"－",9999,99,99,99,99,"○","○","○","○","○","○","○","○","○","○","○","○","○","○","○","○","○","○","－","－","－","－","－","－"]
[null,null,0,"－",9999,99,99,99,99,"○","○","○","○","○","○","○","○","○","○","○","○","○","○","○","○","○","○","－","－","－","－","－","－"]
[null,null,0,"－",9999,99,99,99,99,"○","○","○","○","○","○","○","○","○","○","○","○","○","○","○","○","○","○","－","－","－","－","－","－"]
[null,null,0,"－",9999,99,99,99,99,"○","○","○","○","○","○","○","○","○","○","○","○","○","○","○","○","○","○","－","－","－","－","－","－"]
[null,null,0,"－",9999,99,99,99,99,"○","○","○","○","○","○","○","○","○","○","○","○","○","○","○","○","○","○","－","－","－","－","－","－"]
[null,null,0,"－",9999,99,99,99,99,"○","○","○","○","○","○","○","○","○","○","○","○","○","○","○","○","○","○","－","－","－","－","－","－"]
[null,null,0,"－",9999,99,99,99,99,"○","○","○","○","○","○","○","○","○","○","○","○","○","○","○","○","○","○","－","－","－","－","－","－"]
[null,null,0,"－",9999,99,99,99,99,"○","○","○","○","○","○","○","○","○","○","○","○","○","○","○","○","○","○","－","－","－","－","－","－"]
[null,null,0,"－",9999,99,99,99,99,"○","○","○","○","○","○","○","○","○","○","○","○","○","○","○","○","○","○","－","－","－","－","－","－"]
[null,null,0,"－",9999,99,99,99,99,"○","○","○","○","○","○","○","○","○","○","○","○","○","○","○","○","○","○","－","－","－","－","－","－"]
[null,null,0,"－",9999,99,99,99,99,"○","○","○","○","○","○","○","○","○","○","○","○","○","○","○","○","○","○","－","－","－","－","－","－"]
[null,null,0,"－",9999,99,99,99,99,"○","○","○","○","○","○","○","○","○","○","○","○","○","○","○","○","○","○","－","－","－","－","－","－"]
[null,null,0,"－",9999,99,99,99,99,"○","○","○","○","○","○","○","○","○","○","○","○","○","○","○","○","○","○","－","－","－","－","－","－"]
[null,null,0,"－",9999,99,99,99,99,"○","○","○","○","○","○","○","○","○","○","○","○","○","○","○","○","○","○","－","－","－","－","－","－"]
[null,null,0,"－",9999,99,99,99,99,"○","○","○","○","○","○","○","○","○","○","○","○","○","○","○","○","○","○","－","－","－","－","－","－"]
[null,null,0,"－",9999,99,99,99,99,"○","○","○","○","○","○","○","○","○","○","○","○","○","○","○","○","○","○","－","－","－","－","－","－"]
[null,null,0,"－",9999,99,99,99,99,"○","○","○","○","○","○","○","○","○","○","○","○","○","○","○","○","○","○","－","－","－","－","－","－"]
[null,null,0,"－",9999,99,99,99,99,"○","○","○","○","○","○","○","○","○","○","○","○","○","○","○","○","○","○","－","－","－","－","－","－"]
[null,null,0,"－",9999,99,99,99,99,"○","○","○","○","○","○","○","○","○","○","○","○","○","○","○","○","○","○","－","－","－","－","－","－"]
[null,null,0,"－",9999,99,99,99,99,"○","○","○","○","○","○","○","○","○","○","○","○","○","○","○","○","○","○","－","－","－","－","－","－"]
[null,null,0,"－",9999,99,99,99,99,"○","○","○","○","○","○","○","○","○","○","○","○","○","○","○","○","○","○","－","－","－","－","－","－"]
[null,null,0,"－",9999,99,99,99,99,"○","○","○","○","○","○","○","○","○","○","○","○","○","○","○","○","○","○","－","－","－","－","－","－"]
[null,null,0,"－",9999,99,99,99,99,"○","○","○","○","○","○","○","○","○","○","○","○","○","○","○","○","○","○","－","－","－","－","－","－"]
[null,null,0,"－",9999,99,99,99,99,"○","○","○","○","○","○","○","○","○","○","○","○","○","○","○","○","○","○","－","－","－","－","－","－"]
[null,null,0,"－",9999,99,99,99,99,"○","○","○","○","○","○","○","○","○","○","○","○","○","○","○","○","○","○","－","－","－","－","－","－"]
[null,null,0,"－",9999,99,99,99,99,"○","○","○","○","○","○","○","○","○","○","○","○","○","○","○","○","○","○","－","－","－","－","－","－"]
[null,null,0,"－",9999,99,99,99,99,"○","○","○","○","○","○","○","○","○","○","○","○","○","○","○","○","○","○","－","－","－","－","－","－"]
[null,null,0,"－",9999,99,99,99,99,"○","○","○","○","○","○","○","○","○","○","○","○","○","○","○","○","○","○","－","－","－","－","－","－"]
[null,null,0,"－",9999,99,99,99,99,"○","○","○","○","○","○","○","○","○","○","○","○","○","○","○","○","○","○","－","－","－","－","－","－"]
[null,null,0,"－",9999,99,99,99,99,"○","○","○","○","○","○","○","○","○","○","○","○","○","○","○","○","○","○","－","－","－","－","－","－"]
[null,null,0,"－",9999,99,99,99,99,"○","○","○","○","○","○","○","○","○","○","○","○","○","○","○","○","○","○","－","－","－","－","－","－"]
[null,null,0,"－",9999,99,99,99,99,"○","○","○","○","○","○","○","○","○","○","○","○","○","○","○","○","○","○","－","－","－","－","－","－"]
[null,null,0,"－",9999,99,99,99,99,"○","○","○","○","○","○","○","○","○","○","○","○","○","○","○","○","○","○","－","－","－","－","－","－"]
[null,null,0,"－",9999,99,99,99,99,"○","○","○","○","○","○","○","○","○","○","○","○","○","○","○","○","○","○","－","－","－","－","－","－"]
[null,null,0,"－",9999,99,99,99,99,"○","○","○","○","○","○","○","○","○","○","○","○","○","○","○","○","○","○","－","－","－","－","－","－"]
[null,null,0,"－",9999,99,99,99,99,"○","○","○","○","○","○","○","○","○","○","○","○","○","○","○","○","○","○","－","－","－","－","－","－"]
[null,null,0,"－",9999,99,99,99,99,"○","○","○","○","○","○","○","○","○","○","○","○","○","○","○","○","○","○","－","－","－","－","－","－"]
[null,null,0,"－",9999,99,99,99,99,"○","○","○","○","○","○","○","○","○","○","○","○","○","○","○","○","○","○","－","－","－","－","－","－"]
[null,null,0,"－",9999,99,99,99,99,"○","○","○","○","○","○","○","○","○","○","○","○","○","○","○","○","○","○","－","－","－","－","－","－"]
[null,null,0,"－",9999,99,99,99,99,"○","○","○","○","○","○","○","○","○","○","○","○","○","○","○","○","○","○","－","－","－","－","－","－"]
[null,null,0,"－",9999,99,99,99,99,"○","○","○","○","○","○","○","○","○","○","○","○","○","○","○","○","○","○","－","－","－","－","－","－"]
[null,null,0,"－",9999,99,99,99,99,"○","○","○","○","○","○","○","○","○","○","○","○","○","○","○","○","○","○","－","－","－","－","－","－"]
[null,null,0,"－",9999,99,99,99,99,"○","○","○","○","○","○","○","○","○","○","○","○","○","○","○","○","○","○","－","－","－","－","－","－"]
[null,null,0,"－",9999,99,99,99,99,"○","○","○","○","○","○","○","○","○","○","○","○","○","○","○","○","○","○","－","－","－","－","－","－"]
[null,null,0,"－",9999,99,99,99,99,"○","○","○","○","○","○","○","○","○","○","○","○","○","○","○","○","○","○","－","－","－","－","－","－"]
[null,null,0,"－",9999,99,99,99,99,"○","○","○","○","○","○","○","○","○","○","○","○","○","○","○","○","○","○","－","－","－","－","－","－"]
[null,null,0,"－",9999,99,99,99,99,"○","○","○","○","○","○","○","○","○","○","○","○","○","○","○","○","○","○","－","－","－","－","－","－"]
[null,null,0,"－",9999,99,99,99,99,"○","○","○","○","○","○","○","○","○","○","○","○","○","○","○","○","○","○","－","－","－","－","－","－"]
[null,null,0,"－",9999,99,99,99,99,"○","○","○","○","○","○","○","○","○","○","○","○","○","○","○","○","○","○","－","－","－","－","－","－"]
[null,null,0,"－",9999,99,99,99,99,"○","○","○","○","○","○","○","○","○","○","○","○","○","○","○","○","○","○","－","－","－","－","－","－"]
[null,null,0,"－",9999,99,99,99,99,"○","○","○","○","○","○","○","○","○","○","○","○","○","○","○","○","○","○","－","－","－","－","－","－"]
[null,null,0,"－",9999,99,99,99,99,"○","○","○","○","○","○","○","○","○","○","○","○","○","○","○","○","○","○","－","－","－","－","－","－"]
[null,null,0,"－",9999,99,99,99,99,"○","○","○","○","○","○","○","○","○","○","○","○","○","○","○","○","○","○","－","－","－","－","－","－"]
[null,null,0,"－",9999,99,99,99,99,"○","○","○","○","○","○","○","○","○","○","○","○","○","○","○","○","○","○","－","－","－","－","－","－"]
[null,null,0,"－",9999,99,99,99,99,"○","○","○","○","○","○","○","○","○","○","○","○","○","○","○","○","○","○","－","－","－","－","－","－"]
[null,null,0,"－",9999,99,99,99,99,"○","○","○","○","○","○","○","○","○","○","○","○","○","○","○","○","○","○","－","－","－","－","－","－"]
[null,null,0,"－",9999,99,99,99,99,"○","○","○","○","○","○","○","○","○","○","○","○","○","○","○","○","○","○","－","－","－","－","－","－"]
[null,null,0,"－",9999,99,99,99,99,"○","○","○","○","○","○","○","○","○","○","○","○","○","○","○","○","○","○","－","－","－","－","－","－"]
[null,null,{"$f":"B72","v":0},"－",9999,99,99,99,99,"○","○","○","○","○","○","○","○","○","○","○","○","○","○","○","○","○","○","－","－","－","－","－","－"]
[null,null,0,"－",9999,99,99,99,99,"○","○","○","○","○","○","○","○","○","○","○","○","○","○","○","○","○","○","－","－","－","－","－","－"]
[null,null,0,"－",9999,99,99,99,99,"○","○","○","○","○","○","○","○","○","○","○","○","○","○","○","○","○","○","－","－","－","－","－","－"]
[null,null,0,"－",9999,99,99,99,99,"○","○","○","○","○","○","○","○","○","○","○","○","○","○","○","○","○","○","－","－","－","－","－","－"]
[null,null,0,"－",9999,99,99,99,99,"○","○","○","○","○","○","○","○","○","○","○","○","○","○","○","○","○","○","－","－","－","－","－","－"]
[null,null,0,"－",9999,99,99,99,99,"○","○","○","○","○","○","○","○","○","○","○","○","○","○","○","○","○","○","－","－","－","－","－","－"]
[null,null,0,"－",9999,99,99,99,99,"○","○","○","○","○","○","○","○","○","○","○","○","○","○","○","○","○","○","－","－","－","－","－","－"]
[null,null,0,"－",9999,99,99,99,99,"○","○","○","○","○","○","○","○","○","○","○","○","○","○","○","○","○","○","－","－","－","－","－","－"]
[null,null,0,"－",9999,99,99,99,99,"○","○","○","○","○","○","○","○","○","○","○","○","○","○","○","○","○","○","－","－","－","－","－","－"]
[null,null,0,"－",9999,99,99,99,99,"○","○","○","○","○","○","○","○","○","○","○","○","○","○","○","○","○","○","－","－","－","－","－","－"]
[null,null,0,"－",9999,99,99,99,99,"○","○","○","○","○","○","○","○","○","○","○","○","○","○","○","○","○","○","－","－","－","－","－","－"]
[null,null,0,"－",9999,99,99,99,99,"○","○","○","○","○","○","○","○","○","○","○","○","○","○","○","○","○","○","－","－","－","－","－","－"]
[null,null,0,"－",9999,99,99,99,99,"○","○","○","○","○","○","○","○","○","○","○","○","○","○","○","○","○","○","－","－","－","－","－","－"]
[null,null,0,"－",9999,99,99,99,99,"○","○","○","○","○","○","○","○","○","○","○","○","○","○","○","○","○","○","－","－","－","－","－","－"]
[null,null,0,"－",9999,99,99,99,99,"○","○","○","○","○","○","○","○","○","○","○","○","○","○","○","○","○","○","－","－","－","－","－","－"]
[null,null,0,"－",9999,99,99,99,99,"○","○","○","○","○","○","○","○","○","○","○","○","○","○","○","○","○","○","－","－","－","－","－","－"]
[null,null,0,"－",9999,99,99,99,99,"○","○","○","○","○","○","○","○","○","○","○","○","○","○","○","○","○","○","－","－","－","－","－","－"]
[null,null,0,"－",9999,99,99,99,99,"○","○","○","○","○","○","○","○","○","○","○","○","○","○","○","○","○","○","－","－","－","－","－","－"]
[null,null,0,"－",9999,99,99,99,99,"○","○","○","○","○","○","○","○","○","○","○","○","○","○","○","○","○","○","－","－","－","－","－","－"]
[null,null,0,"－",9999,99,99,99,99,"○","○","○","○","○","○","○","○","○","○","○","○","○","○","○","○","○","○","－","－","－","－","－","－"]
[null,null,0,"－",9999,99,99,99,99,"○","○","○","○","○","○","○","○","○","○","○","○","○","○","○","○","○","○","－","－","－","－","－","－"]
[null,null,0,"－",9999,99,99,99,99,"○","○","○","○","○","○","○","○","○","○","○","○","○","○","○","○","○","○","－","－","－","－","－","－"]
[null,null,0,"－",9999,99,99,99,99,"○","○","○","○","○","○","○","○","○","○","○","○","○","○","○","○","○","○","－","－","－","－","－","－"]
[null,null,0,"－",9999,99,99,99,99,"○","○","○","○","○","○","○","○","○","○","○","○","○","○","○","○","○","○","－","－","－","－","－","－"]
[null,null,0,"－",9999,99,99,99,99,"○","○","○","○","○","○","○","○","○","○","○","○","○","○","○","○","○","○","－","－","－","－","－","－"]
[null,null,0,"－",9999,99,99,99,99,"○","○","○","○","○","○","○","○","○","○","○","○","○","○","○","○","○","○","－","－","－","－","－","－"]
[null,null,0,"－",9999,99,99,99,99,"○","○","○","○","○","○","○","○","○","○","○","○","○","○","○","○","○","○","－","－","－","－","－","－"]
[null,null,0,"－",9999,99,99,99,99,"○","○","○","○","○","○","○","○","○","○","○","○","○","○","○","○","○","○","－","－","－","－","－","－"]
[null,null,0,"－",9999,99,99,99,99,"○","○","○","○","○","○","○","○","○","○","○","○","○","○","○","○","○","○","－","－","－","－","－","－"]
[null,null,0,"－",9999,99,99,99,99,"○","○","○","○","○","○","○","○","○","○","○","○","○","○","○","○","○","○","－","－","－","－","－","－"]
[null,null,0,"－",9999,99,99,99,99,"○","○","○","○","○","○","○","○","○","○","○","○","○","○","○","○","○","○","－","－","－","－","－","－"]
[null,null,0,"－",9999,99,99,99,99,"○","○","○","○","○","○","○","○","○","○","○","○","○","○","○","○","○","○","－","－","－","－","－","－"]
[null,null,0,"－",9999,99,99,99,99,"○","○","○","○","○","○","○","○","○","○","○","○","○","○","○","○","○","○","－","－","－","－","－","－"]
[null,null,0,"－",9999,99,99,99,99,"○","○","○","○","○","○","○","○","○","○","○","○","○","○","○","○","○","○","－","－","－","－","－","－"]
[null,null,0,"－",9999,99,99,99,99,"○","○","○","○","○","○","○","○","○","○","○","○","○","○","○","○","○","○","－","－","－","－","－","－"]
[null,null,0,"－",9999,99,99,99,99,"○","○","○","○","○","○","○","○","○","○","○","○","○","○","○","○","○","○","－","－","－","－","－","－"]
[null,null,0,"－",9999,99,99,99,99,"○","○","○","○","○","○","○","○","○","○","○","○","○","○","○","○","○","○","－","－","－","－","－","－"]
[null,null,0,"－",9999,99,99,99,99,"○","○","○","○","○","○","○","○","○","○","○","○","○","○","○","○","○","○","－","－","－","－","－","－"]
[null,null,0,"－",9999,99,99,99,99,"○","○","○","○","○","○","○","○","○","○","○","○","○","○","○","○","○","○","－","－","－","－","－","－"]
[null,null,0,"－",9999,99,99,99,99,"○","○","○","○","○","○","○","○","○","○","○","○","○","○","○","○","○","○","－","－","－","－","－","－"]
[null,null,0,"－",9999,99,99,99,99,"○","○","○","○","○","○","○","○","○","○","○","○","○","○","○","○","○","○","－","－","－","－","－","－"]
[null,null,0,"－",9999,99,99,99,99,"○","○","○","○","○","○","○","○","○","○","○","○","○","○","○","○","○","○","－","－","－","－","－","－"]
[null,null,0,"－",9999,99,99,99,99,"○","○","○","○","○","○","○","○","○","○","○","○","○","○","○","○","○","○","－","－","－","－","－","－"]
[null,null,0,"－",9999,99,99,99,99,"○","○","○","○","○","○","○","○","○","○","○","○","○","○","○","○","○","○","－","－","－","－","－","－"]
[null,null,0,"－",9999,99,99,99,99,"○","○","○","○","○","○","○","○","○","○","○","○","○","○","○","○","○","○","－","－","－","－","－","－"]
[null,null,0,"－",9999,99,99,99,99,"○","○","○","○","○","○","○","○","○","○","○","○","○","○","○","○","○","○","－","－","－","－","－","－"]
[null,null,0,"－",9999,99,99,99,99,"○","○","○","○","○","○","○","○","○","○","○","○","○","○","○","○","○","○","－","－","－","－","－","－"]
[null,null,0,"－",9999,99,99,99,99,"○","○","○","○","○","○","○","○","○","○","○","○","○","○","○","○","○","○","－","－","－","－","－","－"]
[null,null,0,"－",9999,99,99,99,99,"○","○","○","○","○","○","○","○","○","○","○","○","○","○","○","○","○","○","－","－","－","－","－","－"]
[null,null,0,"－",9999,99,99,99,99,"○","○","○","○","○","○","○","○","○","○","○","○","○","○","○","○","○","○","－","－","－","－","－","－"]
[null,null,0,"－",9999,99,99,99,99,"○","○","○","○","○","○","○","○","○","○","○","○","○","○","○","○","○","○","－","－","－","－","－","－"]
[null,null,0,"－",9999,99,99,99,99,"○","○","○","○","○","○","○","○","○","○","○","○","○","○","○","○","○","○","－","－","－","－","－","－"]
[null,null,0,"－",9999,99,99,99,99,"○","○","○","○","○","○","○","○","○","○","○","○","○","○","○","○","○","○","－","－","－","－","－","－"]
[null,null,0,"－",9999,99,99,99,99,"○","○","○","○","○","○","○","○","○","○","○","○","○","○","○","○","○","○","－","－","－","－","－","－"]
[null,null,0,"－",9999,99,99,99,99,"○","○","○","○","○","○","○","○","○","○","○","○","○","○","○","○","○","○","－","－","－","－","－","－"]
[null,null,0,"－",9999,99,99,99,99,"○","○","○","○","○","○","○","○","○","○","○","○","○","○","○","○","○","○","－","－","－","－","－","－"]
[null,null,0,"－",9999,99,99,99,99,"○","○","○","○","○","○","○","○","○","○","○","○","○","○","○","○","○","○","－","－","－","－","－","－"]
[null,null,0,"－",9999,99,99,99,99,"○","○","○","○","○","○","○","○","○","○","○","○","○","○","○","○","○","○","－","－","－","－","－","－"]
[null,null,0,"－",9999,99,99,99,99,"○","○","○","○","○","○","○","○","○","○","○","○","○","○","○","○","○","○","－","－","－","－","－","－"]
[null,null,0,"－",9999,99,99,99,99,"○","○","○","○","○","○","○","○","○","○","○","○","○","○","○","○","○","○","－","－","－","－","－","－"]
[null,null,0,"－",9999,99,99,99,99,"○","○","○","○","○","○","○","○","○","○","○","○","○","○","○","○","○","○","－","－","－","－","－","－"]
[null,null,0,"－",9999,99,99,99,99,"○","○","○","○","○","○","○","○","○","○","○","○","○","○","○","○","○","○","－","－","－","－","－","－"]
[null,null,0,"－",9999,99,99,99,99,"○","○","○","○","○","○","○","○","○","○","○","○","○","○","○","○","○","○","－","－","－","－","－","－"]
[null,null,0,"－",9999,99,99,99,99,"○","○","○","○","○","○","○","○","○","○","○","○","○","○","○","○","○","○","－","－","－","－","－","－"]
[null,null,{"$f":"B136","v":0},"－",9999,99,99,99,99,"○","○","○","○","○","○","○","○","○","○","○","○","○","○","○","○","○","○","－","－","－","－","－","－"]
[null,null,0,"－",9999,99,99,99,99,"○","○","○","○","○","○","○","○","○","○","○","○","○","○","○","○","○","○","－","－","－","－","－","－"]
[null,null,0,"－",9999,99,99,99,99,"○","○","○","○","○","○","○","○","○","○","○","○","○","○","○","○","○","○","－","－","－","－","－","－"]
[null,null,0,"－",9999,99,99,99,99,"○","○","○","○","○","○","○","○","○","○","○","○","○","○","○","○","○","○","－","－","－","－","－","－"]
[null,null,0,"－",9999,99,99,99,99,"○","○","○","○","○","○","○","○","○","○","○","○","○","○","○","○","○","○","－","－","－","－","－","－"]
[null,null,0,"－",9999,99,99,99,99,"○","○","○","○","○","○","○","○","○","○","○","○","○","○","○","○","○","○","－","－","－","－","－","－"]
[null,null,0,"－",9999,99,99,99,99,"○","○","○","○","○","○","○","○","○","○","○","○","○","○","○","○","○","○","－","－","－","－","－","－"]
[null,null,0,"－",9999,99,99,99,99,"○","○","○","○","○","○","○","○","○","○","○","○","○","○","○","○","○","○","－","－","－","－","－","－"]
[null,null,0,"－",9999,99,99,99,99,"○","○","○","○","○","○","○","○","○","○","○","○","○","○","○","○","○","○","－","－","－","－","－","－"]
[null,null,0,"－",9999,99,99,99,99,"○","○","○","○","○","○","○","○","○","○","○","○","○","○","○","○","○","○","－","－","－","－","－","－"]
[null,null,0,"－",9999,99,99,99,99,"○","○","○","○","○","○","○","○","○","○","○","○","○","○","○","○","○","○","－","－","－","－","－","－"]
[null,null,0,"－",9999,99,99,99,99,"○","○","○","○","○","○","○","○","○","○","○","○","○","○","○","○","○","○","－","－","－","－","－","－"]
[null,null,0,"－",9999,99,99,99,99,"○","○","○","○","○","○","○","○","○","○","○","○","○","○","○","○","○","○","－","－","－","－","－","－"]
[null,null,0,"－",9999,99,99,99,99,"○","○","○","○","○","○","○","○","○","○","○","○","○","○","○","○","○","○","－","－","－","－","－","－"]
[null,null,0,"－",9999,99,99,99,99,"○","○","○","○","○","○","○","○","○","○","○","○","○","○","○","○","○","○","－","－","－","－","－","－"]
[null,null,0,"－",9999,99,99,99,99,"○","○","○","○","○","○","○","○","○","○","○","○","○","○","○","○","○","○","－","－","－","－","－","－"]
[null,null,0,"－",9999,99,99,99,99,"○","○","○","○","○","○","○","○","○","○","○","○","○","○","○","○","○","○","－","－","－","－","－","－"]
[null,null,0,"－",9999,99,99,99,99,"○","○","○","○","○","○","○","○","○","○","○","○","○","○","○","○","○","○","－","－","－","－","－","－"]
[null,null,0,"－",9999,99,99,99,99,"○","○","○","○","○","○","○","○","○","○","○","○","○","○","○","○","○","○","－","－","－","－","－","－"]
[null,null,0,"－",9999,99,99,99,99,"○","○","○","○","○","○","○","○","○","○","○","○","○","○","○","○","○","○","－","－","－","－","－","－"]
[null,null,0,"－",9999,99,99,99,99,"○","○","○","○","○","○","○","○","○","○","○","○","○","○","○","○","○","○","－","－","－","－","－","－"]
[null,null,0,"－",9999,99,99,99,99,"○","○","○","○","○","○","○","○","○","○","○","○","○","○","○","○","○","○","－","－","－","－","－","－"]
[null,null,0,"－",9999,99,99,99,99,"○","○","○","○","○","○","○","○","○","○","○","○","○","○","○","○","○","○","－","－","－","－","－","－"]
[null,null,0,"－",9999,99,99,99,99,"○","○","○","○","○","○","○","○","○","○","○","○","○","○","○","○","○","○","－","－","－","－","－","－"]
[null,null,0,"－",9999,99,99,99,99,"○","○","○","○","○","○","○","○","○","○","○","○","○","○","○","○","○","○","－","－","－","－","－","－"]
[null,null,0,"－",9999,99,99,99,99,"○","○","○","○","○","○","○","○","○","○","○","○","○","○","○","○","○","○","－","－","－","－","－","－"]
[null,null,0,"－",9999,99,99,99,99,"○","○","○","○","○","○","○","○","○","○","○","○","○","○","○","○","○","○","－","－","－","－","－","－"]
[null,null,0,"－",9999,99,99,99,99,"○","○","○","○","○","○","○","○","○","○","○","○","○","○","○","○","○","○","－","－","－","－","－","－"]
[null,null,0,"－",9999,99,99,99,99,"○","○","○","○","○","○","○","○","○","○","○","○","○","○","○","○","○","○","－","－","－","－","－","－"]
[null,null,0,"－",9999,99,99,99,99,"○","○","○","○","○","○","○","○","○","○","○","○","○","○","○","○","○","○","－","－","－","－","－","－"]
[null,null,0,"－",9999,99,99,99,99,"○","○","○","○","○","○","○","○","○","○","○","○","○","○","○","○","○","○","－","－","－","－","－","－"]
[null,null,0,"－",9999,99,99,99,99,"○","○","○","○","○","○","○","○","○","○","○","○","○","○","○","○","○","○","－","－","－","－","－","－"]
[null,null,0,"－",9999,99,99,99,99,"○","○","○","○","○","○","○","○","○","○","○","○","○","○","○","○","○","○","－","－","－","－","－","－"]
[null,null,0,"－",9999,99,99,99,99,"○","○","○","○","○","○","○","○","○","○","○","○","○","○","○","○","○","○","－","－","－","－","－","－"]
[null,null,0,"－",9999,99,99,99,99,"○","○","○","○","○","○","○","○","○","○","○","○","○","○","○","○","○","○","－","－","－","－","－","－"]
[null,null,0,"－",9999,99,99,99,99,"○","○","○","○","○","○","○","○","○","○","○","○","○","○","○","○","○","○","－","－","－","－","－","－"]
[null,null,0,"－",9999,99,99,99,99,"○","○","○","○","○","○","○","○","○","○","○","○","○","○","○","○","○","○","－","－","－","－","－","－"]
[null,null,0,"－",9999,99,99,99,99,"○","○","○","○","○","○","○","○","○","○","○","○","○","○","○","○","○","○","－","－","－","－","－","－"]
[null,null,0,"－",9999,99,99,99,99,"○","○","○","○","○","○","○","○","○","○","○","○","○","○","○","○","○","○","－","－","－","－","－","－"]
[null,null,0,"－",9999,99,99,99,99,"○","○","○","○","○","○","○","○","○","○","○","○","○","○","○","○","○","○","－","－","－","－","－","－"]
[null,null,0,"－",9999,99,99,99,99,"○","○","○","○","○","○","○","○","○","○","○","○","○","○","○","○","○","○","－","－","－","－","－","－"]
[null,null,0,"－",9999,99,99,99,99,"○","○","○","○","○","○","○","○","○","○","○","○","○","○","○","○","○","○","－","－","－","－","－","－"]
[null,null,0,"－",9999,99,99,99,99,"○","○","○","○","○","○","○","○","○","○","○","○","○","○","○","○","○","○","－","－","－","－","－","－"]
[null,null,0,"－",9999,99,99,99,99,"○","○","○","○","○","○","○","○","○","○","○","○","○","○","○","○","○","○","－","－","－","－","－","－"]
[null,null,0,"－",9999,99,99,99,99,"○","○","○","○","○","○","○","○","○","○","○","○","○","○","○","○","○","○","－","－","－","－","－","－"]
[null,null,0,"－",9999,99,99,99,99,"○","○","○","○","○","○","○","○","○","○","○","○","○","○","○","○","○","○","－","－","－","－","－","－"]
[null,null,0,"－",9999,99,99,99,99,"○","○","○","○","○","○","○","○","○","○","○","○","○","○","○","○","○","○","－","－","－","－","－","－"]
[null,null,0,"－",9999,99,99,99,99,"○","○","○","○","○","○","○","○","○","○","○","○","○","○","○","○","○","○","－","－","－","－","－","－"]
[null,null,0,"－",9999,99,99,99,99,"○","○","○","○","○","○","○","○","○","○","○","○","○","○","○","○","○","○","－","－","－","－","－","－"]
[null,null,0,"－",9999,99,99,99,99,"○","○","○","○","○","○","○","○","○","○","○","○","○","○","○","○","○","○","－","－","－","－","－","－"]
[null,null,0,"－",9999,99,99,99,99,"○","○","○","○","○","○","○","○","○","○","○","○","○","○","○","○","○","○","－","－","－","－","－","－"]
[null,null,0,"－",9999,99,99,99,99,"○","○","○","○","○","○","○","○","○","○","○","○","○","○","○","○","○","○","－","－","－","－","－","－"]
[null,null,0,"－",9999,99,99,99,99,"○","○","○","○","○","○","○","○","○","○","○","○","○","○","○","○","○","○","－","－","－","－","－","－"]
[null,null,0,"－",9999,99,99,99,99,"○","○","○","○","○","○","○","○","○","○","○","○","○","○","○","○","○","○","－","－","－","－","－","－"]
[null,null,0,"－",9999,99,99,99,99,"○","○","○","○","○","○","○","○","○","○","○","○","○","○","○","○","○","○","－","－","－","－","－","－"]
[null,null,0,"－",9999,99,99,99,99,"○","○","○","○","○","○","○","○","○","○","○","○","○","○","○","○","○","○","－","－","－","－","－","－"]
[null,null,0,"－",9999,99,99,99,99,"○","○","○","○","○","○","○","○","○","○","○","○","○","○","○","○","○","○","－","－","－","－","－","－"]
[null,null,0,"－",9999,99,99,99,99,"○","○","○","○","○","○","○","○","○","○","○","○","○","○","○","○","○","○","－","－","－","－","－","－"]
[null,null,0,"－",9999,99,99,99,99,"○","○","○","○","○","○","○","○","○","○","○","○","○","○","○","○","○","○","－","－","－","－","－","－"]
[null,null,0,"－",9999,99,99,99,99,"○","○","○","○","○","○","○","○","○","○","○","○","○","○","○","○","○","○","－","－","－","－","－","－"]
[null,null,0,"－",9999,99,99,99,99,"○","○","○","○","○","○","○","○","○","○","○","○","○","○","○","○","○","○","－","－","－","－","－","－"]
[null,null,0,"－",9999,99,99,99,99,"○","○","○","○","○","○","○","○","○","○","○","○","○","○","○","○","○","○","－","－","－","－","－","－"]
[null,null,0,"－",9999,99,99,99,99,"○","○","○","○","○","○","○","○","○","○","○","○","○","○","○","○","○","○","－","－","－","－","－","－"]
[null,null,0,"－",9999,99,99,99,99,"○","○","○","○","○","○","○","○","○","○","○","○","○","○","○","○","○","○","－","－","－","－","－","－"]
[null,null,{"$f":"B200","v":0},"－",9999,99,99,99,99,"○","○","○","○","○","○","○","○","○","○","○","○","○","○","○","○","○","○","－","－","－","－","－","－"]
[null,null,0,"－",9999,99,99,99,99,"○","○","○","○","○","○","○","○","○","○","○","○","○","○","○","○","○","○","－","－","－","－","－","－"]
[null,null,0,"－",9999,99,99,99,99,"○","○","○","○","○","○","○","○","○","○","○","○","○","○","○","○","○","○","－","－","－","－","－","－"]
[null,null,0,"－",9999,99,99,99,99,"○","○","○","○","○","○","○","○","○","○","○","○","○","○","○","○","○","○","－","－","－","－","－","－"]
[null,null,0,"－",9999,99,99,99,99,"○","○","○","○","○","○","○","○","○","○","○","○","○","○","○","○","○","○","－","－","－","－","－","－"]
[null,null,0,"－",9999,99,99,99,99,"○","○","○","○","○","○","○","○","○","○","○","○","○","○","○","○","○","○","－","－","－","－","－","－"]
[null,null,0,"－",9999,99,99,99,99,"○","○","○","○","○","○","○","○","○","○","○","○","○","○","○","○","○","○","－","－","－","－","－","－"]
[null,null,0,"－",9999,99,99,99,99,"○","○","○","○","○","○","○","○","○","○","○","○","○","○","○","○","○","○","－","－","－","－","－","－"]
[null,null,0,"－",9999,99,99,99,99,"○","○","○","○","○","○","○","○","○","○","○","○","○","○","○","○","○","○","－","－","－","－","－","－"]
[null,null,0,"－",9999,99,99,99,99,"○","○","○","○","○","○","○","○","○","○","○","○","○","○","○","○","○","○","－","－","－","－","－","－"]
[null,null,0,"－",9999,99,99,99,99,"○","○","○","○","○","○","○","○","○","○","○","○","○","○","○","○","○","○","－","－","－","－","－","－"]
[null,null,0,"－",9999,99,99,99,99,"○","○","○","○","○","○","○","○","○","○","○","○","○","○","○","○","○","○","－","－","－","－","－","－"]
[null,null,0,"－",9999,99,99,99,99,"○","○","○","○","○","○","○","○","○","○","○","○","○","○","○","○","○","○","－","－","－","－","－","－"]
[null,null,0,"－",9999,99,99,99,99,"○","○","○","○","○","○","○","○","○","○","○","○","○","○","○","○","○","○","－","－","－","－","－","－"]
[null,null,0,"－",9999,99,99,99,99,"○","○","○","○","○","○","○","○","○","○","○","○","○","○","○","○","○","○","－","－","－","－","－","－"]
[null,null,0,"－",9999,99,99,99,99,"○","○","○","○","○","○","○","○","○","○","○","○","○","○","○","○","○","○","－","－","－","－","－","－"]
[null,null,0,"－",9999,99,99,99,99,"○","○","○","○","○","○","○","○","○","○","○","○","○","○","○","○","○","○","－","－","－","－","－","－"]
[null,null,0,"－",9999,99,99,99,99,"○","○","○","○","○","○","○","○","○","○","○","○","○","○","○","○","○","○","－","－","－","－","－","－"]
[null,null,0,"－",9999,99,99,99,99,"○","○","○","○","○","○","○","○","○","○","○","○","○","○","○","○","○","○","－","－","－","－","－","－"]
[null,null,0,"－",9999,99,99,99,99,"○","○","○","○","○","○","○","○","○","○","○","○","○","○","○","○","○","○","－","－","－","－","－","－"]
[null,null,0,"－",9999,99,99,99,99,"○","○","○","○","○","○","○","○","○","○","○","○","○","○","○","○","○","○","－","－","－","－","－","－"]
[null,null,0,"－",9999,99,99,99,99,"○","○","○","○","○","○","○","○","○","○","○","○","○","○","○","○","○","○","－","－","－","－","－","－"]
[null,null,0,"－",9999,99,99,99,99,"○","○","○","○","○","○","○","○","○","○","○","○","○","○","○","○","○","○","－","－","－","－","－","－"]
[null,null,0,"－",9999,99,99,99,99,"○","○","○","○","○","○","○","○","○","○","○","○","○","○","○","○","○","○","－","－","－","－","－","－"]
[null,null,0,"－",9999,99,99,99,99,"○","○","○","○","○","○","○","○","○","○","○","○","○","○","○","○","○","○","－","－","－","－","－","－"]
[null,null,0,"－",9999,99,99,99,99,"○","○","○","○","○","○","○","○","○","○","○","○","○","○","○","○","○","○","－","－","－","－","－","－"]
[null,null,0,"－",9999,99,99,99,99,"○","○","○","○","○","○","○","○","○","○","○","○","○","○","○","○","○","○","－","－","－","－","－","－"]
[null,null,0,"－",9999,99,99,99,99,"○","○","○","○","○","○","○","○","○","○","○","○","○","○","○","○","○","○","－","－","－","－","－","－"]
[null,null,0,"－",9999,99,99,99,99,"○","○","○","○","○","○","○","○","○","○","○","○","○","○","○","○","○","○","－","－","－","－","－","－"]
[null,null,0,"－",9999,99,99,99,99,"○","○","○","○","○","○","○","○","○","○","○","○","○","○","○","○","○","○","－","－","－","－","－","－"]
[null,null,0,"－",9999,99,99,99,99,"○","○","○","○","○","○","○","○","○","○","○","○","○","○","○","○","○","○","－","－","－","－","－","－"]
[null,null,0,"－",9999,99,99,99,99,"○","○","○","○","○","○","○","○","○","○","○","○","○","○","○","○","○","○","－","－","－","－","－","－"]
[null,null,0,"－",9999,99,99,99,99,"○","○","○","○","○","○","○","○","○","○","○","○","○","○","○","○","○","○","－","－","－","－","－","－"]
[null,null,0,"－",9999,99,99,99,99,"○","○","○","○","○","○","○","○","○","○","○","○","○","○","○","○","○","○","－","－","－","－","－","－"]
[null,null,0,"－",9999,99,99,99,99,"○","○","○","○","○","○","○","○","○","○","○","○","○","○","○","○","○","○","－","－","－","－","－","－"]
[null,null,0,"－",9999,99,99,99,99,"○","○","○","○","○","○","○","○","○","○","○","○","○","○","○","○","○","○","－","－","－","－","－","－"]
[null,null,0,"－",9999,99,99,99,99,"○","○","○","○","○","○","○","○","○","○","○","○","○","○","○","○","○","○","－","－","－","－","－","－"]
[null,null,0,"－",9999,99,99,99,99,"○","○","○","○","○","○","○","○","○","○","○","○","○","○","○","○","○","○","－","－","－","－","－","－"]
[null,null,0,"－",9999,99,99,99,99,"○","○","○","○","○","○","○","○","○","○","○","○","○","○","○","○","○","○","－","－","－","－","－","－"]
[null,null,0,"－",9999,99,99,99,99,"○","○","○","○","○","○","○","○","○","○","○","○","○","○","○","○","○","○","－","－","－","－","－","－"]
[null,null,0,"－",9999,99,99,99,99,"○","○","○","○","○","○","○","○","○","○","○","○","○","○","○","○","○","○","－","－","－","－","－","－"]
[null,null,0,"－",9999,99,99,99,99,"○","○","○","○","○","○","○","○","○","○","○","○","○","○","○","○","○","○","－","－","－","－","－","－"]
[null,null,0,"－",9999,99,99,99,99,"○","○","○","○","○","○","○","○","○","○","○","○","○","○","○","○","○","○","－","－","－","－","－","－"]
[null,null,0,"－",9999,99,99,99,99,"○","○","○","○","○","○","○","○","○","○","○","○","○","○","○","○","○","○","－","－","－","－","－","－"]
[null,null,0,"－",9999,99,99,99,99,"○","○","○","○","○","○","○","○","○","○","○","○","○","○","○","○","○","○","－","－","－","－","－","－"]
[null,null,0,"－",9999,99,99,99,99,"○","○","○","○","○","○","○","○","○","○","○","○","○","○","○","○","○","○","－","－","－","－","－","－"]
[null,null,0,"－",9999,99,99,99,99,"○","○","○","○","○","○","○","○","○","○","○","○","○","○","○","○","○","○","－","－","－","－","－","－"]
[null,null,0,"－",9999,99,99,99,99,"○","○","○","○","○","○","○","○","○","○","○","○","○","○","○","○","○","○","－","－","－","－","－","－"]
[null,null,0,"－",9999,99,99,99,99,"○","○","○","○","○","○","○","○","○","○","○","○","○","○","○","○","○","○","－","－","－","－","－","－"]
[null,null,0,"－",9999,99,99,99,99,"○","○","○","○","○","○","○","○","○","○","○","○","○","○","○","○","○","○","－","－","－","－","－","－"]
[null,null,0,"－",9999,99,99,99,99,"○","○","○","○","○","○","○","○","○","○","○","○","○","○","○","○","○","○","－","－","－","－","－","－"]
[null,null,0,"－",9999,99,99,99,99,"○","○","○","○","○","○","○","○","○","○","○","○","○","○","○","○","○","○","－","－","－","－","－","－"]
[null,null,0,"－",9999,99,99,99,99,"○","○","○","○","○","○","○","○","○","○","○","○","○","○","○","○","○","○","－","－","－","－","－","－"]
[null,null,0,"－",9999,99,99,99,99,"○","○","○","○","○","○","○","○","○","○","○","○","○","○","○","○","○","○","－","－","－","－","－","－"]
[null,null,0,"－",9999,99,99,99,99,"○","○","○","○","○","○","○","○","○","○","○","○","○","○","○","○","○","○","－","－","－","－","－","－"]